Workbook

Sheet Summary
A1: WUTC Docket No. UE-19____
A2: Normalized Usage by Month
A3: Twelve Months Ended December 31, 2018
A4: WASHINGTON ELECTRIC SYSTEM
D5: January | E5: February | F5: March | G5: April | H5: May | I5: June | J5: July | K5: August | L5: September | M5: October | N5: November | O5: December | P5: Annual Total
A6: Revenue Run Billed Usage
B7: Residential Schedule 001/002 | D7: ='Billed Usage'!D96 -> 290781554.1 | E7: ='Billed Usage'!E96 -> 227575425 | F7: ='Billed Usage'!F96 -> 233136064.2 | G7: ='Billed Usage'!G96 -> 195827349.3 | H7: ='Billed Usage'!H96 -> 159686942.7 | I7: ='Billed Usage'!I96 -> 149276244.6 | J7: ='Billed Usage'!J96 -> 162965398.6 | K7: ='Billed Usage'!K96 -> 205105319.9 | L7: ='Billed Usage'!L96 -> 165901549.6 | M7: ='Billed Usage'!M96 -> 149412587.1 | N7: ='Billed Usage'!N96 -> 181215231.5 | O7: ='Billed Usage'!O96 -> 245751615 | P7: =SUM(D7:O7) -> 2366635282
B8: General Svc Schedule 011/012 | D8: ='Billed Usage'!D97 -> 64968017.22 | E8: ='Billed Usage'!E97 -> 55958109.22 | F8: ='Billed Usage'!F97 -> 55740105.92 | G8: ='Billed Usage'!G97 -> 50692240.11 | H8: ='Billed Usage'!H97 -> 46948189.07 | I8: ='Billed Usage'!I97 -> 46100696.83 | J8: ='Billed Usage'!J97 -> 48168343.66 | K8: ='Billed Usage'!K97 -> 55210418.3 | L8: ='Billed Usage'!L97 -> 48512488.31 | M8: ='Billed Usage'!M97 -> 45641900.68 | N8: ='Billed Usage'!N97 -> 47727635.01 | O8: ='Billed Usage'!O97 -> 57034428.78 | P8: =SUM(D8:O8) -> 622702573.1
B9: Large Gen Svc Schedule 021/022 | D9: ='Billed Usage'!D98 -> 125937052.8 | E9: ='Billed Usage'!E98 -> 113399610.2 | F9: ='Billed Usage'!F98 -> 112223930.4 | G9: ='Billed Usage'!G98 -> 111090733.6 | H9: ='Billed Usage'!H98 -> 112273215.2 | I9: ='Billed Usage'!I98 -> 113413112.2 | J9: ='Billed Usage'!J98 -> 114915539.8 | K9: ='Billed Usage'!K98 -> 124759437.3 | L9: ='Billed Usage'!L98 -> 113710882.9 | M9: ='Billed Usage'!M98 -> 110448175.9 | N9: ='Billed Usage'!N98 -> 109051287.4 | O9: ='Billed Usage'!O98 -> 119116948.3 | P9: 1380339926
B10: Extra Large Gen Schedule 25 | D10: ='Billed Usage'!D99 -> 85895739.5 | E10: ='Billed Usage'!E99 -> 82389792.7 | F10: ='Billed Usage'!F99 -> 59452404.5 | G10: ='Billed Usage'!G99 -> 91719050 | H10: ='Billed Usage'!H99 -> 50375927.6 | I10: ='Billed Usage'!I99 -> 94067376.9 | J10: ='Billed Usage'!J99 -> 91430986 | K10: ='Billed Usage'!K99 -> 95462593.19 | L10: ='Billed Usage'!L99 -> 98727948.69 | M10: ='Billed Usage'!M99 -> 89411353.7 | N10: ='Billed Usage'!N99 -> 95120660.88 | O10: ='Billed Usage'!O99 -> 88922599.9 | P10: 1022976434
B11: Pumping Schedule 31/32 | D11: ='Billed Usage'!D100 -> 5199805.678 | E11: ='Billed Usage'!E100 -> 4295325.279 | F11: ='Billed Usage'!F100 -> 4226647.8 | G11: ='Billed Usage'!G100 -> 5323831.003 | H11: ='Billed Usage'!H100 -> 10126135.69 | I11: ='Billed Usage'!I100 -> 18516636.55 | J11: ='Billed Usage'!J100 -> 23083952.64 | K11: ='Billed Usage'!K100 -> 28015837.67 | L11: ='Billed Usage'!L100 -> 23798947.99 | M11: ='Billed Usage'!M100 -> 12939703.93 | N11: ='Billed Usage'!N100 -> 6282585.274 | O11: ='Billed Usage'!O100 -> 3998282.943 | P11: 145807692.4
B12: Street and Area Lights | D12: ='Billed Usage'!D101 -> 1677509.998 | E12: ='Billed Usage'!E101 -> 1505148.608 | F12: ='Billed Usage'!F101 -> 1474261.937 | G12: ='Billed Usage'!G101 -> 1503568.736 | H12: ='Billed Usage'!H101 -> 1565521.43 | I12: ='Billed Usage'!I101 -> 1544276.268 | J12: ='Billed Usage'!J101 -> 1517440.931 | K12: ='Billed Usage'!K101 -> 1578869.159 | L12: ='Billed Usage'!L101 -> 1535455.022 | M12: ='Billed Usage'!M101 -> 1534835.862 | N12: ='Billed Usage'!N101 -> 1517745.801 | O12: ='Billed Usage'!O101 -> 1587397.787 | P12: 18542031.54
A13: Total Revenue Run Billed Usage | D13: =SUM(D7:D12) -> 574459679.3 | E13: =SUM(E7:E12) -> 485123411 | F13: 466253414.7 | G13: 456156772.8 | H13: 380975931.7 | I13: 422918343.3 | J13: 442081661.7 | K13: 510132475.5 | L13: 452187272.6 | M13: 409388557.2 | N13: 440915145.9 | O13: 516411272.7 | P13: 5557003938
A15: Net Unbilled Usage
B16: Residential Schedule 001/002 | D16: ='Unbilled Usage '!E179 -> -16807345 | E16: ='Unbilled Usage '!F179 -> -11417924 | F16: ='Unbilled Usage '!G179 -> -2538576 | G16: ='Unbilled Usage '!H179 -> -21339210 | H16: ='Unbilled Usage '!I179 -> -11882566 | I16: ='Unbilled Usage '!J179 -> -6167987 | J16: ='Unbilled Usage '!K179 -> 22269076 | K16: ='Unbilled Usage '!L179 -> -2879705 | L16: ='Unbilled Usage '!M179 -> -26562728 | M16: ='Unbilled Usage '!N179 -> 10771561 | N16: ='Unbilled Usage '!O179 -> 32345083 | O16: ='Unbilled Usage '!P179 -> 12693423 | P16: =SUM(D16:O16) -> -21516898
B17: General Svc Schedule 011/012 | D17: ='Unbilled Usage '!E180 -> -5056613 | E17: ='Unbilled Usage '!F180 -> 226900 | F17: ='Unbilled Usage '!G180 -> -1492318 | G17: ='Unbilled Usage '!H180 -> -3135024 | H17: ='Unbilled Usage '!I180 -> -94436 | I17: ='Unbilled Usage '!J180 -> -612520 | J17: ='Unbilled Usage '!K180 -> 5513065 | K17: ='Unbilled Usage '!L180 -> -3427114 | L17: ='Unbilled Usage '!M180 -> -5492340 | M17: ='Unbilled Usage '!N180 -> 4178114 | N17: ='Unbilled Usage '!O180 -> 5066221 | O17: ='Unbilled Usage '!P180 -> -648853 | P17: =SUM(D17:O17) -> -4974918
B18: Large Gen Svc Schedule 021/022 | D18: ='Unbilled Usage '!E181 -> -17335146 | E18: ='Unbilled Usage '!F181 -> 2932085 | F18: ='Unbilled Usage '!G181 -> -3284636 | G18: ='Unbilled Usage '!H181 -> -1903474 | H18: ='Unbilled Usage '!I181 -> 4768104 | I18: ='Unbilled Usage '!J181 -> 131589 | J18: ='Unbilled Usage '!K181 -> 11356739 | K18: ='Unbilled Usage '!L181 -> -11474036 | L18: ='Unbilled Usage '!M181 -> -10604470 | M18: ='Unbilled Usage '!N181 -> 11698081 | N18: ='Unbilled Usage '!O181 -> 8235200 | O18: ='Unbilled Usage '!P181 -> -7362830 | P18: -12842794
B19: Extra Large Gen Schedule 25 | D19: ='Unbilled Usage '!E182 -> 9694517 | E19: ='Unbilled Usage '!F182 -> 4244920 | F19: ='Unbilled Usage '!G182 -> 29856455 | G19: ='Unbilled Usage '!H182 -> 3968084 | H19: ='Unbilled Usage '!I182 -> 42504574 | I19: ='Unbilled Usage '!J182 -> 1641436 | J19: ='Unbilled Usage '!K182 -> 1095411 | K19: ='Unbilled Usage '!L182 -> 3752803 | L19: ='Unbilled Usage '!M182 -> -8960868 | M19: ='Unbilled Usage '!N182 -> 5368369 | N19: ='Unbilled Usage '!O182 -> -7500338 | O19: ='Unbilled Usage '!P182 -> 4713680 | P19: 90379043
B20: Pumping Schedule 31/32 | D20: ='Unbilled Usage '!E183 -> 329032 | E20: ='Unbilled Usage '!F183 -> -115788 | F20: ='Unbilled Usage '!G183 -> -137275 | G20: ='Unbilled Usage '!H183 -> 22402 | H20: ='Unbilled Usage '!I183 -> 930226 | I20: ='Unbilled Usage '!J183 -> 2217873 | J20: ='Unbilled Usage '!K183 -> 2033088 | K20: ='Unbilled Usage '!L183 -> 726896 | L20: ='Unbilled Usage '!M183 -> -1530437 | M20: ='Unbilled Usage '!N183 -> -1792052 | N20: ='Unbilled Usage '!O183 -> -1310272 | O20: ='Unbilled Usage '!P183 -> -1358868 | P20: 14825
B21: Street and Area Lights | D21: ='Unbilled Usage '!E184 -> 0 | E21: ='Unbilled Usage '!F184 -> 0 | F21: ='Unbilled Usage '!G184 -> 0 | G21: ='Unbilled Usage '!H184 -> 0 | H21: ='Unbilled Usage '!I184 -> 0 | I21: ='Unbilled Usage '!J184 -> 0 | J21: ='Unbilled Usage '!K184 -> 0 | K21: ='Unbilled Usage '!L184 -> 0 | L21: ='Unbilled Usage '!M184 -> 0 | M21: ='Unbilled Usage '!N184 -> 0 | N21: ='Unbilled Usage '!O184 -> 0 | O21: ='Unbilled Usage '!P184 -> 0 | P21: 0
A22: Net Unbilled Usage | D22: =SUM(D16:D21) -> -29175555 | E22: =SUM(E16:E21) -> -4129807 | F22: 22403650 | G22: -22387222 | H22: 36225902 | I22: -2789609 | J22: 42267379 | K22: -13301156 | L22: -53150843 | M22: 30224073 | N22: 36835894 | O22: 8036552 | P22: 51059258
A24: Schedule Shifting Adjustment
B25: General Svc Schedule 011/012 | P25: =SUM(D25:O25) -> 0
B26: Large Gen Svc Schedule 021/022 | P26: =SUM(D26:O26) -> 0
A27: Schedule Shifting Adjustment | D27: =SUM(D25:D26) -> 0 | E27: =SUM(E25:E26) -> 0 | F27: 0 | G27: 0 | H27: 0 | I27: 0 | J27: 0 | K27: 0 | L27: 0 | M27: 0 | N27: 0 | O27: 0 | P27: =SUM(D27:O27) -> 0
A29: Other Usage Adjustments
B30: Extra Large Gen Schedule 25 | D30: ='WA Sch 25'!D32+'WA Sch 25'!D33 -> -2351888 | E30: ='WA Sch 25'!E32+'WA Sch 25'!E33 -> 424875 | F30: ='WA Sch 25'!F32+'WA Sch 25'!F33 -> 5841699 | G30: ='WA Sch 25'!G32+'WA Sch 25'!G33 -> -3190697 | H30: ='WA Sch 25'!H32+'WA Sch 25'!H33 -> 1186875 | I30: ='WA Sch 25'!I32+'WA Sch 25'!I33 -> -4277827 | J30: ='WA Sch 25'!J32+'WA Sch 25'!J33 -> 2936196 | K30: ='WA Sch 25'!K32+'WA Sch 25'!K33 -> -487447 | L30: ='WA Sch 25'!L32+'WA Sch 25'!L33 -> -355727 | M30: ='WA Sch 25'!M32+'WA Sch 25'!M33 -> 340938 | N30: ='WA Sch 25'!N32+'WA Sch 25'!N33 -> 1302277 | O30: ='WA Sch 25'!O32+'WA Sch 25'!O33 -> -1160739 | P30: =SUM(D30:O30) -> 208535
A32: Weather Adjustment
B33: Residential Schedule 001/002 | D33: ='Weather Adjustment'!E7 -> 18971503 | E33: ='Weather Adjustment'!F7 -> -7032417 | F33: ='Weather Adjustment'!G7 -> -1444882 | G33: ='Weather Adjustment'!H7 -> -357275 | H33: ='Weather Adjustment'!I7 -> 11243016 | I33: ='Weather Adjustment'!J7 -> 8391924 | J33: ='Weather Adjustment'!K7 -> -18566532 | K33: ='Weather Adjustment'!L7 -> -7591998 | L33: ='Weather Adjustment'!M7 -> 6498512 | M33: ='Weather Adjustment'!N7 -> 1439157 | N33: ='Weather Adjustment'!O7 -> 2721258 | O33: ='Weather Adjustment'!P7 -> 15313039 | P33: =SUM(D33:O33) -> 29585305
B34: General Svc Schedule 011/012 | D34: ='Weather Adjustment'!E8 -> 1930773 | E34: ='Weather Adjustment'!F8 -> -710823 | F34: ='Weather Adjustment'!G8 -> -145200 | G34: ='Weather Adjustment'!H8 -> -42341 | H34: ='Weather Adjustment'!I8 -> 444874 | I34: ='Weather Adjustment'!J8 -> 944145 | J34: ='Weather Adjustment'!K8 -> -2529540 | K34: ='Weather Adjustment'!L8 -> -1038088 | L34: ='Weather Adjustment'!M8 -> 865276 | M34: ='Weather Adjustment'!N8 -> 123714 | N34: ='Weather Adjustment'!O8 -> 198669 | O34: ='Weather Adjustment'!P8 -> 1536838 | P34: =SUM(D34:O34) -> 1578297
B35: Large Gen Svc Schedule 021/022 | D35: ='Weather Adjustment'!E9 -> 991519 | E35: ='Weather Adjustment'!F9 -> -366102 | F35: ='Weather Adjustment'!G9 -> -74963 | G35: ='Weather Adjustment'!H9 -> -40508 | H35: ='Weather Adjustment'!I9 -> -779435 | I35: ='Weather Adjustment'!J9 -> 825754 | J35: ='Weather Adjustment'!K9 -> -2819054 | K35: ='Weather Adjustment'!L9 -> -1160154 | L35: ='Weather Adjustment'!M9 -> 980935 | M35: ='Weather Adjustment'!N9 -> 50179 | N35: ='Weather Adjustment'!O9 -> 20819 | O35: ='Weather Adjustment'!P9 -> 778502 | P35: -1592508
B36: Extra Large Gen Schedule 25 | D36: 0 | E36: 0 | F36: 0 | G36: 0 | H36: 0 | I36: 0 | J36: 0 | K36: 0 | L36: 0 | M36: 0 | N36: 0 | O36: 0 | P36: 0
B37: Pumping Schedule 31/32 | D37: 0 | E37: 0 | F37: 0 | G37: 0 | H37: 0 | I37: 0 | J37: 0 | K37: 0 | L37: 0 | M37: 0 | N37: 0 | O37: 0 | P37: 0
B38: Street and Area Lights | D38: 0 | E38: 0 | F38: 0 | G38: 0 | H38: 0 | I38: 0 | J38: 0 | K38: 0 | L38: 0 | M38: 0 | N38: 0 | O38: 0 | P38: 0
A39: Total Weather Adjustment | D39: =SUM(D33:D38) -> 21893795 | E39: =SUM(E33:E38) -> -8109342 | F39: -1665045 | G39: -440124 | H39: 10908455 | I39: 10161823 | J39: -23915126 | K39: -9790240 | L39: 8344723 | M39: 1613050 | N39: 2940746 | O39: 17628379 | P39: 29571094 | Q39: =P39/P13 -> 0.005321409581 | T39: Current Authorized
R40: 12ME 12.2018 | T40: 12ME 12.2016
A41: Normalized Test Year Usage | R41: UE-19____ | T41: UE-170485
B42: Residential Schedule 001/002 | D42: =D7+D16+D33 -> 292945712.1 | E42: 209125084 | F42: 229152606.2 | G42: 174130864.3 | H42: 159047392.7 | I42: 151500181.6 | J42: 166667942.6 | K42: 194633616.9 | L42: 145837333.6 | M42: 161623305.1 | N42: 216281572.5 | O42: 273758077 | P42: =SUM(D42:O42) -> 2374703689 | R42: 2374703689 | S42: =P42-R42 -> -0.4197502136 | T42: 2361885989 | U42: =R42-T42 -> 12817700
B43: General Svc Schedule 011/012 | D43: =D8+D17+D34+D25 -> 61842177.22 | E43: =E8+E17+E34+E25 -> 55474186.22 | F43: 54102587.92 | G43: 47514875.11 | H43: 47298627.07 | I43: 46432321.83 | J43: 51151868.66 | K43: 50745216.3 | L43: 43885424.31 | M43: 49943728.68 | N43: 52992525.01 | O43: 57922413.78 | P43: 619305952.1 | R43: 619305952 | S43: =P43-R43 -> 0.1090400219 | T43: 623243883 | U43: =R43-T43 -> -3937931
B44: Large Gen Svc Schedule 021/022 | D44: =D9+D18+D35+D26 -> 109593425.8 | E44: =E9+E18+E35+E26 -> 115965593.2 | F44: 108864331.4 | G44: 109146751.6 | H44: 116261884.2 | I44: 114370455.2 | J44: 123453224.8 | K44: 112125247.3 | L44: 104087347.9 | M44: 122196435.9 | N44: 117307306.4 | O44: 112532620.3 | P44: 1365904624 | R44: 1365904624 | S44: 0.129999876 | T44: 1409459201 | U44: -43554577
B45: Extra Large Gen Schedule 25 | D45: =D10+D19+D30+D36 -> 93238368.5 | E45: =E10+E19+E30+E36 -> 87059587.7 | F45: 95150558.5 | G45: 92496437 | H45: 94067376.6 | I45: 91430985.9 | J45: 95462593 | K45: 98727949.19 | L45: 89411353.69 | M45: 95120660.7 | N45: 88922599.88 | O45: 92475540.9 | P45: 1113564012 | R45: 1113564012 | S45: -0.4390001297 | T45: 1107408158 | U45: 6155854
B46: Pumping Schedule 31/32 | D46: =D11+D20+D37 -> 5528837.678 | E46: 4179537.279 | F46: 4089372.8 | G46: 5346233.003 | H46: 11056361.69 | I46: 20734509.55 | J46: 25117040.64 | K46: 28742733.67 | L46: 22268510.99 | M46: 11147651.93 | N46: 4972313.274 | O46: 2639414.943 | P46: 145822517.4 | R46: 145822517 | S46: 0.4420099854 | T46: 133495310 | U46: 12327207
B47: Street and Area Lights | D47: =D12+D21+D38 -> 1677509.998 | E47: 1505148.608 | F47: 1474261.937 | G47: 1503568.736 | H47: 1565521.43 | I47: 1544276.268 | J47: 1517440.931 | K47: 1578869.159 | L47: 1535455.022 | M47: 1534835.862 | N47: 1517745.801 | O47: 1587397.787 | P47: 18542031.54 | R47: 18542032 | S47: -0.4594900012 | T47: 23121171 | U47: -4579139
A48: Total Normalized Test Year Usage | D48: =SUM(D42:D47) -> 564826031.3 | E48: =SUM(E42:E47) -> 473309137 | F48: 492833718.7 | G48: 430138729.8 | H48: 429297163.7 | I48: 426012730.3 | J48: 463370110.7 | K48: 486553632.5 | L48: 407025425.6 | M48: 441566618.2 | N48: 481994062.9 | O48: 540915464.7 | P48: 5637842825 | R48: =SUM(R42:R47) -> 5637842826 | S48: =P48-R48 -> -0.6371898651 | T48: =SUM(T42:T47) -> 5658613712 | U48: =SUM(U42:U47) -> -20770886
B50: Residential Usage | D50: =D42 -> 292945712.1 | E50: =E42 -> 209125084 | F50: 229152606.2 | G50: 174130864.3 | H50: 159047392.7 | I50: 151500181.6 | J50: 166667942.6 | K50: 194633616.9 | L50: 145837333.6 | M50: 161623305.1 | N50: 216281572.5 | O50: 273758077 | P50: =SUM(D50:O50) -> 2374703689 | R50: =R42 -> 2374703689 | T50: 2361885989 | U50: =R50-T50 -> 12817700
B51: Schedule 001 Customers | D51: =Meters!D98 -> 215198 | E51: =Meters!E98 -> 214198 | F51: =Meters!F98 -> 216045 | G51: =Meters!G98 -> 214971 | H51: =Meters!H98 -> 215099 | I51: =Meters!I98 -> 214829 | J51: =Meters!J98 -> 215408 | K51: =Meters!K98 -> 215648 | L51: =Meters!L98 -> 214122 | M51: =Meters!M98 -> 218388 | N51: =Meters!N98 -> 216943 | O51: =Meters!O98 -> 217126 | P51: 2587975 | R51: 2587975 | T51: 2518371 | U51: 69604
B52: Schedule 001 Norm Use/Customer | D52: =D50/D51 -> 1361.284548 | E52: =E50/E51 -> 976.3166976 | F52: 1060.670722 | G52: 810.0202553 | H52: 739.4148401 | I52: 705.2128977 | J52: 773.7314428 | K52: 902.5523859 | L52: 681.0945798 | M52: 740.0741115 | N52: 996.951146 | O52: 1260.825866 | P52: 917.5914329 | R52: 917.5914331 | T52: =T50/T51 -> 937.862606 | U52: -20.27117296
B53: Non-Residential Group Usage | D53: =D43+D44+D46 -> 176964440.7 | E53: =E43+E44+E46 -> 175619316.7 | F53: 167056292.1 | G53: 162007859.7 | H53: 174616873 | I53: 181537286.6 | J53: 199722134.1 | K53: 191613197.2 | L53: 170241283.2 | M53: 183287816.6 | N53: 175272144.7 | O53: 173094449 | P53: =SUM(D53:O53) -> 2131033094 | R53: =R43+R44+R46 -> 2131033093 | T53: 2166198394 | U53: -35165301
B54: Non-Residential Group Customers | D54: =Meters!D99+Meters!D100+Meters!D102 -> 36868 | E54: =Meters!E99+Meters!E100+Meters!E102 -> 36445 | F54: =Meters!F99+Meters!F100+Meters!F102 -> 36552 | G54: =Meters!G99+Meters!G100+Meters!G102 -> 36255 | H54: =Meters!H99+Meters!H100+Meters!H102 -> 36544 | I54: =Meters!I99+Meters!I100+Meters!I102 -> 36486 | J54: =Meters!J99+Meters!J100+Meters!J102 -> 36644 | K54: =Meters!K99+Meters!K100+Meters!K102 -> 36729 | L54: =Meters!L99+Meters!L100+Meters!L102 -> 35718 | M54: =Meters!M99+Meters!M100+Meters!M102 -> 37528 | N54: =Meters!N99+Meters!N100+Meters!N102 -> 36613 | O54: =Meters!O99+Meters!O100+Meters!O102 -> 36651 | P54: 439033 | R54: =386800+22787+29446 -> 439033 | T54: =375436+22836+29193 -> 427465 | U54: 11568
B55: Non-Residential Group Norm Use/Customer | D55: =D53/D54 -> 4799.946857 | E55: =E53/E54 -> 4818.749258 | F55: 4570.373498 | G55: 4468.565983 | H55: 4778.263818 | I55: 4975.532713 | J55: 5450.336593 | K55: 5216.945663 | L55: 4766.26024 | M55: 4884.028367 | N55: 4787.156057 | O55: 4722.775613 | P55: 4853.924634 | R55: 4853.924632 | T55: =T53/T54 -> 5067.545633 | U55: -213.6210009
B57: WA Jurisdiction % of Annual Usage | D57: =D48/$P48 -> 0.1001847779 | E57: =E48/$P48 -> 0.0839521696 | F57: 0.08741529943 | G57: 0.07629491334 | H57: 0.0761456424 | I57: 0.07556307324 | J57: 0.08218925661 | K57: 0.08630138292 | L57: 0.07219524172 | M57: 0.07832190997 | N57: 0.08549263926 | O57: 0.09594369362 | P57: =SUM(D57:O57) -> 1
A58: IDAHO ELECTRIC SYSTEM
D59: =D5 -> January | E59: =E5 -> February | F59: March | G59: April | H59: May | I59: June | J59: July | K59: August | L59: September | M59: October | N59: November | O59: December | P59: Annual Total | X59: WA001 | Y59: 208638.1667 | Z59: 210734.1667 | AA59: 212876.1667 | AB59: 214943.25 | AC59: 217071.0833
A60: Revenue Run Billed Usage (1) | X60: WA011 | Y60: 21941.81511 | Z60: 22181.65246 | AA60: 22431.89822 | AB60: 22678.81414 | AC60: 22929.23076
B61: Residential Schedule 001 | D61: ='Billed Usage'!D102 -> 138450884.1 | E61: ='Billed Usage'!E102 -> 113509558 | F61: ='Billed Usage'!F102 -> 115712978.3 | G61: ='Billed Usage'!G102 -> 98304116.16 | H61: ='Billed Usage'!H102 -> 76625045.03 | I61: ='Billed Usage'!I102 -> 71762388.66 | J61: ='Billed Usage'!J102 -> 80390371.05 | K61: ='Billed Usage'!K102 -> 94285935.11 | L61: ='Billed Usage'!L102 -> 75907615.46 | M61: ='Billed Usage'!M102 -> 73452321.34 | N61: ='Billed Usage'!N102 -> 91595336.79 | O61: ='Billed Usage'!O102 -> 125732895.8 | P61: =SUM(D61:O61) -> 1155729446 | X61: WA012 | Y61: 9092.416667 | Z61: 9297.416667 | AA61: 9503.75 | AB61: 9710.333333 | AC61: 9916.833333
B62: General Svc Schedule 011/012 | D62: ='Billed Usage'!D103 -> 38776947.66 | E62: ='Billed Usage'!E103 -> 34222891.01 | F62: ='Billed Usage'!F103 -> 33911944.39 | G62: ='Billed Usage'!G103 -> 30519983.49 | H62: ='Billed Usage'!H103 -> 27431212.74 | I62: ='Billed Usage'!I103 -> 27276460.54 | J62: ='Billed Usage'!J103 -> 29343590.88 | K62: ='Billed Usage'!K103 -> 32692469.09 | L62: ='Billed Usage'!L103 -> 29175357.11 | M62: ='Billed Usage'!M103 -> 26500587.7 | N62: ='Billed Usage'!N103 -> 28874313.64 | O62: ='Billed Usage'!O103 -> 36001115.65 | P62: =SUM(D62:O62) -> 374726873.9 | X62: WA021 | Y62: 1969.963433 | Z62: 1969.965415 | AA62: 1969.962096 | AB62: 1969.961558 | AC62: 1969.961531
B63: Large Gen Svc Schedule 021/022 | D63: ='Billed Usage'!D104 -> 56729337.87 | E63: ='Billed Usage'!E104 -> 53439400.59 | F63: ='Billed Usage'!F104 -> 52467140.04 | G63: ='Billed Usage'!G104 -> 51275677.41 | H63: ='Billed Usage'!H104 -> 49426007.62 | I63: ='Billed Usage'!I104 -> 49581862.36 | J63: ='Billed Usage'!J104 -> 51066127.73 | K63: ='Billed Usage'!K104 -> 54943397.14 | L63: ='Billed Usage'!L104 -> 51872432.02 | M63: ='Billed Usage'!M104 -> 48195762.45 | N63: ='Billed Usage'!N104 -> 49098362.84 | O63: ='Billed Usage'!O104 -> 54839761.8 | P63: 622935269.9 | X63: WA022 | Y63: 55.58353333 | Z63: 55.8864 | AA63: 56.08811667 | AB63: 56.22250833 | AC63: 56.31201667
B64: Extra Large Gen Schedule 25 | D64: ='Billed Usage'!D105 -> 28245246.8 | E64: ='Billed Usage'!E105 -> 26107649.1 | F64: ='Billed Usage'!F105 -> 22507242.22 | G64: ='Billed Usage'!G105 -> 27375213.06 | H64: ='Billed Usage'!H105 -> 5514471.86 | I64: ='Billed Usage'!I105 -> 27431445.85 | J64: ='Billed Usage'!J105 -> 25765555.6 | K64: ='Billed Usage'!K105 -> 27505011 | L64: ='Billed Usage'!L105 -> 28587593.54 | M64: ='Billed Usage'!M105 -> 26251537.53 | N64: ='Billed Usage'!N105 -> 28333802.39 | O64: ='Billed Usage'!O105 -> 26332786.93 | P64: 299957555.9 | X64: WA025 | Y64: 21.14364126 | Z64: 21.14133943 | AA64: 21.14102987 | AB64: 21.14102044 | AC64: 21.14102466
B65: Extra Large Gen Schedule 25P | D65: ='Billed Usage'!D106 -> 31034360 | E65: ='Billed Usage'!E106 -> 29136680 | F65: ='Billed Usage'!F106 -> 33893450 | G65: ='Billed Usage'!G106 -> 34523990 | H65: ='Billed Usage'!H106 -> 0 | I65: ='Billed Usage'!I106 -> 36069710 | J65: ='Billed Usage'!J106 -> 33600660 | K65: ='Billed Usage'!K106 -> 38255050 | L65: ='Billed Usage'!L106 -> 62513600 | M65: ='Billed Usage'!M106 -> 47084840 | N65: ='Billed Usage'!N106 -> 35905670 | O65: ='Billed Usage'!O106 -> 30311220 | P65: 412329230 | X65: WA028 | Y65: 0 | Z65: 0 | AA65: 0 | AB65: 0 | AC65: 0
B66: Pumping Schedule 31/32 | D66: ='Billed Usage'!D107 -> 3674819.217 | E66: ='Billed Usage'!E107 -> 3557713.261 | F66: ='Billed Usage'!F107 -> 3471292.054 | G66: ='Billed Usage'!G107 -> 3434552.964 | H66: ='Billed Usage'!H107 -> 4237335.598 | I66: ='Billed Usage'!I107 -> 6509434.64 | J66: ='Billed Usage'!J107 -> 8334800.094 | K66: ='Billed Usage'!K107 -> 9633952.029 | L66: ='Billed Usage'!L107 -> 7676661.285 | M66: ='Billed Usage'!M107 -> 5236492.435 | N66: ='Billed Usage'!N107 -> 3101449.56 | O66: ='Billed Usage'!O107 -> 3575745.18 | P66: 62444248.32 | X66: WA031 | Y66: 1245.077211 | Z66: 1263.611509 | AA66: 1280.681792 | AB66: 1296.525438 | AC66: 1312.902348
B67: Street and Area Lights | D67: ='Billed Usage'!D108 -> 874991.3087 | E67: ='Billed Usage'!E108 -> 1074207.234 | F67: ='Billed Usage'!F108 -> 945872.6935 | G67: ='Billed Usage'!G108 -> 960974.364 | H67: ='Billed Usage'!H108 -> 969419.75 | I67: ='Billed Usage'!I108 -> 953100.0294 | J67: ='Billed Usage'!J108 -> 954604.143 | K67: ='Billed Usage'!K108 -> 958681.917 | L67: ='Billed Usage'!L108 -> 959807.501 | M67: ='Billed Usage'!M108 -> 1022205.535 | N67: ='Billed Usage'!N108 -> 911165.3258 | O67: ='Billed Usage'!O108 -> 972429.007 | P67: 11557458.81 | X67: WA032 | Y67: 1204.492917 | Z67: 1202.620725 | AA67: 1201.0344 | AB67: 1199.534158 | AC67: 1198.0341
A68: Total Revenue Run Billed Usage | D68: =SUM(D61:D67) -> 297786586.9 | E68: =SUM(E61:E67) -> 261048099.2 | F68: 262909919.7 | G68: 246394507.4 | H68: 164203492.6 | I68: 219584402.1 | J68: 229455709.5 | K68: 258274496.3 | L68: 256693066.9 | M68: 227743747 | N68: 237820100.5 | O68: 277765954.4 | P68: 2939680083 | X68: WA04X | Y68: 383.8311083 | Z68: 388.204575 | AA68: 392.5389 | AB68: 396.87175 | AC68: 401.2045667
X69: ID001 | Y69: 104832.4167 | Z69: 105896.8333 | AA69: 106998.4167 | AB69: 108131.8333 | AC69: 109312.1667
A70: Adjustments to Revenue Runs | X70: ID011 | Y70: 15818.81503 | Z70: 15998.33088 | AA70: 16180.83515 | AB70: 16365.16963 | AC70: 16553.00326
B71: Schedule 21 Schedule Shifting | P71: =SUM(D71:O71) -> 0 | X71: ID012 | Y71: 5288.75 | Z71: 5436.916667 | AA71: 5585.5 | AB71: 5733.75 | AC71: 5881.916667
B72: Schedule 25 Schedule Shifting | P72: =SUM(D72:O72) -> 0 | X72: ID021 | Y72: 1134.104234 | Z72: 1134.090002 | AA72: 1134.089321 | AB72: 1134.089661 | AC72: 1134.089738
A73: Total Adjustments to Revenue Runs | D73: =SUM(D71:D72) -> 0 | E73: =SUM(E71:E72) -> 0 | F73: 0 | G73: 0 | H73: 0 | I73: 0 | J73: 0 | K73: 0 | L73: 0 | M73: 0 | N73: 0 | O73: 0 | P73: 0 | X73: ID022 | Y73: 19.18527608 | Z73: 19.18084309 | AA73: 19.17956197 | AB73: 19.17947258 | AC73: 19.17948341
X74: ID025 | Y74: 9.156815767 | Z74: 9.154482984 | AA74: 9.153887255 | AB74: 9.153840245 | AC74: 9.153844358
A75: Net Unbilled Usage | X75: ID025P | Y75: 1 | Z75: 1 | AA75: 1 | AB75: 1 | AC75: 1
B76: Residential Schedule 001 | D76: ='Unbilled Usage '!E185 -> -11722489 | E76: ='Unbilled Usage '!F185 -> -2719002 | F76: ='Unbilled Usage '!G185 -> -1570599 | G76: ='Unbilled Usage '!H185 -> -10014963 | H76: ='Unbilled Usage '!I185 -> -7824354 | I76: ='Unbilled Usage '!J185 -> -2880416 | J76: ='Unbilled Usage '!K185 -> 11972065 | K76: ='Unbilled Usage '!L185 -> -4717778 | L76: ='Unbilled Usage '!M185 -> -12365166 | M76: ='Unbilled Usage '!N185 -> 7726601 | N76: ='Unbilled Usage '!O185 -> 17477859 | O76: ='Unbilled Usage '!P185 -> 7202625 | P76: =SUM(D76:O76) -> -9435617 | X76: ID031 | Y76: 735.5936917 | Z76: 742.769075 | AA76: 749.94605 | AB76: 757.1229083 | AC76: 764.299775
B77: General Svc Schedule 011/012 | D77: ='Unbilled Usage '!E186 -> -3766804 | E77: ='Unbilled Usage '!F186 -> 542741 | F77: ='Unbilled Usage '!G186 -> -973396 | G77: ='Unbilled Usage '!H186 -> -2062269 | H77: ='Unbilled Usage '!I186 -> -465416 | I77: ='Unbilled Usage '!J186 -> -182527 | J77: ='Unbilled Usage '!K186 -> 3796924 | K77: ='Unbilled Usage '!L186 -> -2538183 | L77: ='Unbilled Usage '!M186 -> -3048269 | M77: ='Unbilled Usage '!N186 -> 1998332 | N77: ='Unbilled Usage '!O186 -> 3627245 | O77: ='Unbilled Usage '!P186 -> 379898 | P77: =SUM(D77:O77) -> -2691724 | X77: ID032 | Y77: 686.4302167 | Z77: 697.683225 | AA77: 709.877 | AB77: 722.9187667 | AC77: 736.5278917
B78: Large Gen Svc Schedule 021/022 | D78: ='Unbilled Usage '!E187 -> -7871323 | E78: ='Unbilled Usage '!F187 -> 2588201 | F78: ='Unbilled Usage '!G187 -> -1752288 | G78: ='Unbilled Usage '!H187 -> -1239782 | H78: ='Unbilled Usage '!I187 -> 952456 | I78: ='Unbilled Usage '!J187 -> -119332 | J78: ='Unbilled Usage '!K187 -> 5492896 | K78: ='Unbilled Usage '!L187 -> -5357730 | L78: ='Unbilled Usage '!M187 -> -3908676 | M78: ='Unbilled Usage '!N187 -> 4171909 | N78: ='Unbilled Usage '!O187 -> 4495181 | O78: ='Unbilled Usage '!P187 -> -2659528 | P78: -5208016 | X78: ID04X | Y78: 145.3902542 | Z78: 145.4077898 | AA78: 145.410232 | AB78: 145.4102987 | AC78: 145.4102639
B79: Extra Large Gen Schedule 25 | D79: ='Unbilled Usage '!E188 -> 0 | E79: ='Unbilled Usage '!F188 -> 0 | F79: ='Unbilled Usage '!G188 -> 0 | G79: ='Unbilled Usage '!H188 -> 5514472 | H79: ='Unbilled Usage '!I188 -> 59941218 | I79: ='Unbilled Usage '!J188 -> -42101903 | J79: ='Unbilled Usage '!K188 -> 4033523 | K79: ='Unbilled Usage '!L188 -> 3991305 | L79: ='Unbilled Usage '!M188 -> -4944438 | M79: ='Unbilled Usage '!N188 -> 1820643 | N79: ='Unbilled Usage '!O188 -> -1970706 | O79: ='Unbilled Usage '!P188 -> 781869 | P79: 27065983
B80: Extra Large Gen Schedule 25P | D80: ='Unbilled Usage '!E189 -> 0 | E80: ='Unbilled Usage '!F189 -> 0 | F80: ='Unbilled Usage '!G189 -> 0 | G80: ='Unbilled Usage '!H189 -> 0 | H80: ='Unbilled Usage '!I189 -> 0 | I80: ='Unbilled Usage '!J189 -> 35849850 | J80: ='Unbilled Usage '!K189 -> 2077648 | K80: ='Unbilled Usage '!L189 -> 24586102 | L80: ='Unbilled Usage '!M189 -> -16180267 | M80: ='Unbilled Usage '!N189 -> -10082439 | N80: ='Unbilled Usage '!O189 -> -5939674 | O80: ='Unbilled Usage '!P189 -> 0 | P80: 30311220
B81: Pumping Schedule 31/32 | D81: ='Unbilled Usage '!E190 -> -378657 | E81: ='Unbilled Usage '!F190 -> 122472 | F81: ='Unbilled Usage '!G190 -> -62602 | G81: ='Unbilled Usage '!H190 -> -49319 | H81: ='Unbilled Usage '!I190 -> 336742 | I81: ='Unbilled Usage '!J190 -> 867819 | J81: ='Unbilled Usage '!K190 -> 1322890 | K81: ='Unbilled Usage '!L190 -> -382444 | L81: ='Unbilled Usage '!M190 -> -805813 | M81: ='Unbilled Usage '!N190 -> -257029 | N81: ='Unbilled Usage '!O190 -> -850050 | O81: ='Unbilled Usage '!P190 -> -109461 | P81: -245452
B82: Street and Area Lights | D82: ='Unbilled Usage '!E191 -> 0 | E82: ='Unbilled Usage '!F191 -> 0 | F82: ='Unbilled Usage '!G191 -> 0 | G82: ='Unbilled Usage '!H191 -> 0 | H82: ='Unbilled Usage '!I191 -> 0 | I82: ='Unbilled Usage '!J191 -> 0 | J82: ='Unbilled Usage '!K191 -> 0 | K82: ='Unbilled Usage '!L191 -> 0 | L82: ='Unbilled Usage '!M191 -> 0 | M82: ='Unbilled Usage '!N191 -> 0 | N82: ='Unbilled Usage '!O191 -> 0 | O82: ='Unbilled Usage '!P191 -> 0 | P82: 0
A83: Net Unbilled Usage | D83: =SUM(D76:D82) -> -23739273 | E83: =SUM(E76:E82) -> 534412 | F83: -4358885 | G83: -7851861 | H83: 52940646 | I83: -8566509 | J83: 28695946 | K83: 15581272 | L83: -41252629 | M83: 5378017 | N83: 16839855 | O83: 5595403 | P83: 39796394
A85: Other Usage Adjustments
B86: Schedule 25 to 21 Shifting | D86: ='ID Sch 25'!E7 -> 855483.6 | E86: ='ID Sch 25'!F7 -> 770070 | F86: ='ID Sch 25'!G7 -> 810138 | G86: ='ID Sch 25'!H7 -> 737127.6 | H86: ='ID Sch 25'!I7 -> 784754.4 | I86: ='ID Sch 25'!J7 -> 776937.6 | J86: ='ID Sch 25'!K7 -> 944554.8 | K86: ='ID Sch 25'!L7 -> 909382.8 | L86: ='ID Sch 25'!M7 -> 732451.2 | M86: ='ID Sch 25'!N7 -> 716073.6 | N86: ='ID Sch 25'!O7 -> 766382.4 | O86: ='ID Sch 25'!P7 -> 875492.399 | P86: =SUM(D86:O86) -> 9678848.399
B87: Extra Large Gen Schedule 25 | D87: ='ID Sch 25'!E22+'ID Sch 25'!E23 -> -3.725290298e-09 | E87: ='ID Sch 25'!F22+'ID Sch 25'!F23 -> 0 | F87: ='ID Sch 25'!G22+'ID Sch 25'!G23 -> 5992677 | G87: ='ID Sch 25'!H22+'ID Sch 25'!H23 -> -5992677.14 | H87: ='ID Sch 25'!I22+'ID Sch 25'!I23 -> -38024244.01 | I87: ='ID Sch 25'!J22+'ID Sch 25'!J23 -> 40436012.75 | J87: ='ID Sch 25'!K22+'ID Sch 25'!K23 -> -2294067.6 | K87: ='ID Sch 25'!L22+'ID Sch 25'!L23 -> -2908722.46 | L87: ='ID Sch 25'!M22+'ID Sch 25'!M23 -> 2608381.99 | M87: ='ID Sch 25'!N22+'ID Sch 25'!N23 -> 261621.86 | N87: ='ID Sch 25'!O22+'ID Sch 25'!O23 -> -30309.46 | O87: ='ID Sch 25'!P22+'ID Sch 25'!P23 -> -122780.181 | P87: -74107.251
B88: Extra Large Gen Schedule 25P | D88: ='ID Sch 25'!E35+'ID Sch 25'!E36 -> 0 | E88: ='ID Sch 25'!F35+'ID Sch 25'!F36 -> 0 | F88: ='ID Sch 25'!G35+'ID Sch 25'!G36 -> 0 | G88: ='ID Sch 25'!H35+'ID Sch 25'!H36 -> 0 | H88: ='ID Sch 25'!I35+'ID Sch 25'!I36 -> 36069710 | I88: ='ID Sch 25'!J35+'ID Sch 25'!J36 -> -38318900 | J88: ='ID Sch 25'!K35+'ID Sch 25'!K36 -> 2576742 | K88: ='ID Sch 25'!L35+'ID Sch 25'!L36 -> -327552 | L88: ='ID Sch 25'!M35+'ID Sch 25'!M36 -> 751507 | M88: ='ID Sch 25'!N35+'ID Sch 25'!N36 -> -1096731 | N88: ='ID Sch 25'!O35+'ID Sch 25'!O36 -> 345224 | O88: ='ID Sch 25'!P35+'ID Sch 25'!P36 -> 4008750 | P88: 4008750
A90: Weather Adjustment
B91: Residential Schedule 001 | D91: ='Weather Adjustment'!E11 -> 9268696 | E91: ='Weather Adjustment'!F11 -> -3450152 | F91: ='Weather Adjustment'!G11 -> -703489 | G91: ='Weather Adjustment'!H11 -> -155370 | H91: ='Weather Adjustment'!I11 -> 6390820 | I91: ='Weather Adjustment'!J11 -> 3747841 | J91: ='Weather Adjustment'!K11 -> -7549185 | K91: ='Weather Adjustment'!L11 -> -3091284 | L91: ='Weather Adjustment'!M11 -> 2671464 | M91: ='Weather Adjustment'!N11 -> 705338 | N91: ='Weather Adjustment'!O11 -> 1399364 | O91: ='Weather Adjustment'!P11 -> 7521455 | P91: =SUM(D91:O91) -> 16755498
B92: General Svc Schedule 011/012 | D92: ='Weather Adjustment'!E12 -> 1291253 | E92: ='Weather Adjustment'!F12 -> -483255 | F92: ='Weather Adjustment'!G12 -> -98557 | G92: ='Weather Adjustment'!H12 -> -30755 | H92: ='Weather Adjustment'!I12 -> 225550 | I92: ='Weather Adjustment'!J12 -> 677027 | J92: ='Weather Adjustment'!K12 -> -1860138 | K92: ='Weather Adjustment'!L12 -> -759631 | L92: ='Weather Adjustment'!M12 -> 654036 | M92: ='Weather Adjustment'!N12 -> 82564 | N92: ='Weather Adjustment'!O12 -> 130615 | O92: ='Weather Adjustment'!P12 -> 1046569 | P92: =SUM(D92:O92) -> 875278
B93: Large Gen Svc Schedule 021/022 | D93: ='Weather Adjustment'!E13 -> 842191 | E93: ='Weather Adjustment'!F13 -> -317857 | F93: ='Weather Adjustment'!G13 -> -63698 | G93: ='Weather Adjustment'!H13 -> -22042 | H93: ='Weather Adjustment'!I13 -> -285551 | I93: ='Weather Adjustment'!J13 -> 455864 | J93: ='Weather Adjustment'!K13 -> -1481464 | K93: ='Weather Adjustment'!L13 -> -606089 | L93: ='Weather Adjustment'!M13 -> 518290 | M93: ='Weather Adjustment'!N13 -> 33951 | N93: ='Weather Adjustment'!O13 -> 29523 | O93: ='Weather Adjustment'!P13 -> 653055 | P93: -243827
B94: Extra Large Gen Schedule 25 | D94: 0 | E94: 0 | F94: 0 | G94: 0 | H94: 0 | I94: 0 | J94: 0 | K94: 0 | L94: 0 | M94: 0 | N94: 0 | O94: 0 | P94: 0
B95: Extra Large Gen Schedule 25P | D95: 0 | E95: 0 | F95: 0 | G95: 0 | H95: 0 | I95: 0 | J95: 0 | K95: 0 | L95: 0 | M95: 0 | N95: 0 | O95: 0 | P95: 0
B96: Pumping Schedule 31/32 | D96: 0 | E96: 0 | F96: 0 | G96: 0 | H96: 0 | I96: 0 | J96: 0 | K96: 0 | L96: 0 | M96: 0 | N96: 0 | O96: 0 | P96: 0
B97: Street and Area Lights | D97: 0 | E97: 0 | F97: 0 | G97: 0 | H97: 0 | I97: 0 | J97: 0 | K97: 0 | L97: 0 | M97: 0 | N97: 0 | O97: 0 | P97: 0
A98: Total Weather Adjustment | D98: =SUM(D91:D97) -> 11402140 | E98: =SUM(E91:E97) -> -4251264 | F98: -865744 | G98: -208167 | H98: 6330819 | I98: 4880732 | J98: -10890787 | K98: -4457004 | L98: 3843790 | M98: 821853 | N98: 1559502 | O98: 9221079 | P98: 17386949
A100: Normalized Test Year Usage | R100: AVU-E-19-__ | T100: AVU-E-17-__
B101: Residential Schedule 001 | D101: =D61+D76+D91 -> 135997091.1 | E101: 107340404 | F101: 113438890.3 | G101: 88133783.16 | H101: 75191511.03 | I101: 72629813.66 | J101: 84813251.05 | K101: 86476873.11 | L101: 66213913.46 | M101: 81884260.34 | N101: 110472559.8 | O101: 140456975.8 | P101: =SUM(D101:O101) -> 1163049327 | R101: 1163049327 | S101: =P101-R101 -> -0.250649929 | T101: 1145126003 | U101: =R101-T101 -> 17923324
B102: General Svc Schedule 011/012 | D102: =D62+D77+D92 -> 36301396.66 | E102: 34282377.01 | F102: 32839991.39 | G102: 28426959.49 | H102: 27191346.74 | I102: 27770960.54 | J102: 31280376.88 | K102: 29394655.09 | L102: 26781124.11 | M102: 28581483.7 | N102: 32632173.64 | O102: 37427582.65 | P102: 372910427.9 | R102: 372910428 | S102: =P102-R102 -> -0.09983998537 | T102: 365113814 | U102: =R102-T102 -> 7796614
B103: Large Gen Svc Schedule 021/022 | D103: =D63+D78+D93+D71+D86 -> 50555689.47 | E103: =E63+E78+E93+E71+E86 -> 56479814.59 | F103: 51461292.04 | G103: 50750981.01 | H103: 50877667.02 | I103: 50695331.96 | J103: 56022114.53 | K103: 49888960.94 | L103: 49214497.22 | M103: 53117696.05 | N103: 54389449.24 | O103: 53708781.2 | P103: 627162275.3 | R103: 627162275 | S103: 0.2679998875 | T103: 649192595 | U103: -22030320
B104: Extra Large Gen Schedule 25 | D104: =D64+D79+D94+D87-D86 -> 27389763.2 | E104: =E64+E79+E94+E87-E86 -> 25337579.1 | F104: 27689781.22 | G104: 26159880.32 | H104: 26646691.45 | I104: 24988618 | J104: 26560456.2 | K104: 27678210.74 | L104: 25519086.33 | M104: 27617728.79 | N104: 25566404.53 | O104: 26116383.35 | P104: 317270583.2 | R104: 317270583 | S104: 0.2300000191 | T104: 357288245 | U104: -40017662
B105: Extra Large Gen Schedule 25P | D105: =D65+D80+D88+D95 -> 31034360 | E105: =E65+E80+E88+E95 -> 29136680 | F105: 33893450 | G105: 34523990 | H105: 36069710 | I105: 33600660 | J105: 38255050 | K105: 62513600 | L105: 47084840 | M105: 35905670 | N105: 30311220 | O105: 34319970 | P105: 446649200 | R105: 446649200 | S105: 0 | T105: 362572860 | U105: 84076340
B106: Pumping Schedule 31/32 | D106: =D66+D81+D96 -> 3296162.217 | E106: 3680185.261 | F106: 3408690.054 | G106: 3385233.964 | H106: 4574077.598 | I106: 7377253.64 | J106: 9657690.094 | K106: 9251508.029 | L106: 6870848.285 | M106: 4979463.435 | N106: 2251399.56 | O106: 3466284.18 | P106: 62198796.32 | R106: 62198796 | S106: 0.3170100078 | T106: 60392324 | U106: 1806472
B107: Street and Area Lights | D107: =D67+D82+D97 -> 874991.3087 | E107: 1074207.234 | F107: 945872.6935 | G107: 960974.364 | H107: 969419.75 | I107: 953100.0294 | J107: 954604.143 | K107: 958681.917 | L107: 959807.501 | M107: 1022205.535 | N107: 911165.3258 | O107: 972429.007 | P107: 11557458.81 | R107: 11557459 | S107: -0.1912700012 | T107: 13345092 | U107: -1787633
A108: Total Normalized Test Year Usage | D108: =SUM(D101:D107) -> 285449453.9 | E108: =SUM(E101:E107) -> 257331247.2 | F108: 263677967.7 | G108: 232341802.3 | H108: 221520423.6 | I108: 218015737.8 | J108: 247543542.9 | K108: 266162489.8 | L108: 222644116.9 | M108: 233108507.8 | N108: 256534372.1 | O108: 296468406.2 | P108: 3000798068 | R108: =SUM(R101:R107) -> 3000798068 | S108: =SUM(S101:S107) -> 0.2732499987 | T108: =SUM(T101:T107) -> 2953030933 | U108: =SUM(U101:U107) -> 47767135
B110: Residential Usage | D110: =D101 -> 135997091.1 | E110: =E101 -> 107340404 | F110: 113438890.3 | G110: 88133783.16 | H110: 75191511.03 | I110: 72629813.66 | J110: 84813251.05 | K110: 86476873.11 | L110: 66213913.46 | M110: 81884260.34 | N110: 110472559.8 | O110: 140456975.8 | P110: =SUM(D110:O110) -> 1163049327 | R110: =R101 -> 1163049327 | S110: =P110-R110 -> -0.250649929 | T110: =T101 -> 1145126003 | U110: =R110-T110 -> 17923324
B111: Schedule 001 Customers | D111: =Meters!D104 -> 107450 | E111: =Meters!E104 -> 107398 | F111: =Meters!F104 -> 107502 | G111: =Meters!G104 -> 107465 | H111: =Meters!H104 -> 107498 | I111: =Meters!I104 -> 107445 | J111: =Meters!J104 -> 107744 | K111: =Meters!K104 -> 108017 | L111: =Meters!L104 -> 108283 | M111: =Meters!M104 -> 108613 | N111: =Meters!N104 -> 108900 | O111: =Meters!O104 -> 108991 | P111: 1295306 | R111: 1295306 | S111: 0 | T111: 1258258 | U111: 37048
B112: Schedule 001 Norm Use/Customer | D112: =D110/D111 -> 1265.677907 | E112: =E110/E111 -> 999.4637141 | F112: 1055.225859 | G112: 820.1161602 | H112: 699.4689299 | I112: 675.9720198 | J112: 787.1737735 | K112: 800.5857699 | L112: 611.4894624 | M112: 753.9084671 | N112: 1014.440402 | O112: 1288.702515 | P112: 897.8954214 | R112: =R110/R111 -> 897.8954216 | S112: -1.935063665e-07 | T112: =T110/T111 -> 910.0883944 | U112: -12.19297281
B113: Non-Residential Group Usage | D113: =D102+D103+D106 -> 90153248.35 | E113: =E102+E103+E106 -> 94442376.86 | F113: 87709973.48 | G113: 82563174.47 | H113: 82643091.36 | I113: 85843546.14 | J113: 96960181.51 | K113: 88535124.06 | L113: 82866469.62 | M113: 86678643.18 | N113: 89273022.44 | O113: 94602648.03 | P113: =SUM(D113:O113) -> 1062271499 | R113: =R102+R103+R106 -> 1062271499 | S113: 0.485170126 | T113: 1074698733 | U113: -12427234
B114: Non-Residential Group Customers | D114: =Meters!D105+Meters!D106+Meters!D109+1 -> 23975 | E114: =Meters!E105+Meters!E106+Meters!E109+1 -> 24073 | F114: =Meters!F105+Meters!F106+Meters!F109+1 -> 24093 | G114: =Meters!G105+Meters!G106+Meters!G109+1 -> 24087 | H114: =Meters!H105+Meters!H106+Meters!H109+1 -> 24101 | I114: =Meters!I105+Meters!I106+Meters!I109+1 -> 24143 | J114: =Meters!J105+Meters!J106+Meters!J109+1 -> 24130 | K114: =Meters!K105+Meters!K106+Meters!K109+1 -> 24168 | L114: =Meters!L105+Meters!L106+Meters!L109+1 -> 24134 | M114: =Meters!M105+Meters!M106+Meters!M109+1 -> 24417 | N114: =Meters!N105+Meters!N106+Meters!N109+1 -> 24319 | O114: =Meters!O105+Meters!O106+Meters!O109+1 -> 24255 | P114: 289895 | R114: =259618+13207+17070 -> 289895 | S114: 0 | T114: =252366+13657+16879 -> 282902 | U114: 6993
B115: Non-Residential Group Norm Use/Customer | D115: =D113/D114 -> 3760.302329 | E115: =E113/E114 -> 3923.166072 | F115: 3640.475386 | G115: 3427.706832 | H115: 3429.031632 | I115: 3555.628801 | J115: 4018.242085 | K115: 3663.320261 | L115: 3433.598642 | M115: 3549.930097 | N115: 3670.916667 | O115: 3900.335932 | P115: 3664.331912 | R115: 3664.33191 | S115: 1.673606221e-06 | T115: =T113/T114 -> 3798.837523 | U115: -134.5056134
B117: ID Jurisdiction % of Annual Usage | D117: =D108/$P108 -> 0.09512451269 | E117: =E108/$P108 -> 0.0857542698 | F117: 0.08786928066 | G117: 0.07742667018 | H117: 0.07382050326 | I117: 0.07265258537 | J117: 0.0824925694 | K117: 0.08869723446 | L117: 0.07419496809 | M117: 0.07768217072 | N117: 0.08548871542 | O117: 0.09879651995 | P117: =SUM(D117:O117) -> 1
A119: Clearwater Paper Purchased Generation | D119: 0 | E119: 0 | F119: 0 | G119: 0 | H119: 0 | I119: 0 | J119: 0 | K119: 0 | L119: 0 | M119: 0 | N119: 0 | O119: 0 | P119: =SUM(D119:O119) -> 0
B120: (For PCA Base Exclusion from rate year sales)
A121: (1) | B121: Billed usage includes Montana Sch 1 and Sch 11 customer usage
A122: Total Electric System Sales | D122: =D48+D108 -> 850275485.2 | E122: =E48+E108 -> 730640384.2 | F122: 756511686.4 | G122: 662480532.1 | H122: 650817587.3 | I122: 644028468.1 | J122: 710913653.6 | K122: 752716122.3 | L122: 629669542.5 | M122: 674675126 | N122: 738528435 | O122: 837383870.9 | P122: =SUM(D122:O122) -> 8638640894 | R122: =R48+R108 -> 8638640894 | S122: =P122-R122 -> -0.3639392853 | T122: =S122/R122 -> -4.212922956e-11
D123: =D122/$P122 -> 0.09842699745 | E123: =E122/$P122 -> 0.08457816376 | F123: 0.08757299854 | G123: 0.07668805084 | H123: 0.0753379606 | I123: 0.0745520593 | J123: 0.08229461814 | K123: 0.08713362803 | L123: 0.07288988514 | M123: 0.07809968424 | N123: 0.08549127624 | O123: 0.09693467772 | P123: =SUM(D123:O123) -> 1
A124: WASHINGTON GAS SYSTEM
D125: =D5 -> January | E125: =E5 -> February | F125: March | G125: April | H125: May | I125: June | J125: July | K125: August | L125: September | M125: October | N125: November | O125: December | P125: Annual Total
A126: Revenue Run Billed Usage
B127: Small Service Schedule 101 | D127: ='Billed Usage'!D110 -> 23907481.41 | E127: ='Billed Usage'!E110 -> 17408468.84 | F127: ='Billed Usage'!F110 -> 18772678.96 | G127: ='Billed Usage'!G110 -> 12814031.3 | H127: ='Billed Usage'!H110 -> 6121244.905 | I127: ='Billed Usage'!I110 -> 2888718.143 | J127: ='Billed Usage'!J110 -> 2443732.207 | K127: ='Billed Usage'!K110 -> 2085808.027 | L127: ='Billed Usage'!L110 -> 2442167.839 | M127: ='Billed Usage'!M110 -> 5295338.944 | N127: ='Billed Usage'!N110 -> 10842675.48 | O127: ='Billed Usage'!O110 -> 18945996.05 | P127: =SUM(D127:O127) -> 123968342.1
B128: Large Service Schedule 111/112 | D128: ='Billed Usage'!D111 -> 8018208.232 | E128: ='Billed Usage'!E111 -> 6561360.732 | F128: ='Billed Usage'!F111 -> 6797194.949 | G128: ='Billed Usage'!G111 -> 5166624.346 | H128: ='Billed Usage'!H111 -> 3145531.191 | I128: ='Billed Usage'!I111 -> 1896315.694 | J128: ='Billed Usage'!J111 -> 1581289.084 | K128: ='Billed Usage'!K111 -> 1451036.288 | L128: ='Billed Usage'!L111 -> 1613677.308 | M128: ='Billed Usage'!M111 -> 2564277.133 | N128: ='Billed Usage'!N111 -> 4331827.736 | O128: ='Billed Usage'!O111 -> 14167266.68 | P128: =SUM(D128:O128) -> 57294609.37
B129: Extra Large Service Schedule 121/122 | D129: ='Billed Usage'!D112 -> 547570.599 | E129: ='Billed Usage'!E112 -> 455180.025 | F129: ='Billed Usage'!F112 -> 474318.037 | G129: ='Billed Usage'!G112 -> 397963.426 | H129: ='Billed Usage'!H112 -> 332257.024 | I129: ='Billed Usage'!I112 -> 303322.937 | J129: ='Billed Usage'!J112 -> 280882.2997 | K129: ='Billed Usage'!K112 -> 293436.327 | L129: ='Billed Usage'!L112 -> 292153.116 | M129: ='Billed Usage'!M112 -> 342720.661 | N129: ='Billed Usage'!N112 -> 412245.141 | O129: ='Billed Usage'!O112 -> -7020425.051 | P129: -2888375.458
B130: Interrupt Service Schedule 131/132 | D130: ='Billed Usage'!D113 -> 139102.279 | E130: ='Billed Usage'!E113 -> 117327.56 | F130: ='Billed Usage'!F113 -> 113117.076 | G130: ='Billed Usage'!G113 -> 93219.128 | H130: ='Billed Usage'!H113 -> 72900.841 | I130: ='Billed Usage'!I113 -> 47469.585 | J130: ='Billed Usage'!J113 -> 41737.258 | K130: ='Billed Usage'!K113 -> 43515.436 | L130: ='Billed Usage'!L113 -> 44833.752 | M130: ='Billed Usage'!M113 -> 68693.989 | N130: ='Billed Usage'!N113 -> 88518.619 | O130: ='Billed Usage'!O113 -> 114831.204 | P130: 985266.727
B131: Transport Service Schedule 146 | D131: ='Billed Usage'!D114 -> 3967685 | E131: ='Billed Usage'!E114 -> 3629622 | F131: ='Billed Usage'!F114 -> 3567188 | G131: ='Billed Usage'!G114 -> 3349134 | H131: ='Billed Usage'!H114 -> 3031743 | I131: ='Billed Usage'!I114 -> 2500055 | J131: ='Billed Usage'!J114 -> 2416869 | K131: ='Billed Usage'!K114 -> 2200204 | L131: ='Billed Usage'!L114 -> 2275935 | M131: ='Billed Usage'!M114 -> 2340543 | N131: ='Billed Usage'!N114 -> 3067907 | O131: ='Billed Usage'!O114 -> 3261051 | P131: 35607936
B132: Special Contract Transport | D132: ='Billed Usage'!D115 -> 5265223 | E132: ='Billed Usage'!E115 -> 4912508 | F132: ='Billed Usage'!F115 -> 4547047 | G132: ='Billed Usage'!G115 -> 4301458 | H132: ='Billed Usage'!H115 -> 4021819 | I132: ='Billed Usage'!I115 -> 3930521 | J132: ='Billed Usage'!J115 -> 3756231 | K132: ='Billed Usage'!K115 -> 4538638 | L132: ='Billed Usage'!L115 -> 4562727 | M132: ='Billed Usage'!M115 -> 4393442 | N132: ='Billed Usage'!N115 -> 5173852 | O132: ='Billed Usage'!O115 -> 5114139 | P132: 54517605
A133: Total Revenue Run Billed Usage | D133: =SUM(D127:D132) -> 41845270.52 | E133: =SUM(E127:E132) -> 33084467.16 | F133: 34271544.02 | G133: 26122430.2 | H133: 16725495.96 | I133: 11566402.36 | J133: 10520740.85 | K133: 10612638.08 | L133: 11231494.01 | M133: 15005015.73 | N133: 23917025.97 | O133: 34582858.88 | P133: 269485383.7
A135: Adjustments to Revenue Runs
B136: Schedule 111/112 Adjustments | D136: 310813 | E136: 271139 | F136: 287680 | G136: 236730 | H136: 223368 | I136: 191219 | J136: 179209 | K136: 175800 | L136: 195692 | M136: 211707 | N136: 246977 | O136: =105598-2635932-4656697-3678231 -> -10865262 | P136: =SUM(D136:O136) -> -8334928
B137: Schedule 121/122 Adjustments | D137: =-310813-26898 -> -337711 | E137: =-271139-17228 -> -288367 | F137: =-287680-20402 -> -308082 | G137: =-236730-16730 -> -253460 | H137: =-223368-13287 -> -236655 | I137: =-191219-9395 -> -200614 | J137: =-179209-7874 -> -187083 | K137: =-175800-7553 -> -183353 | L137: =-195692-9143 -> -204835 | M137: -211707 | N137: -246977 | O137: =-105598+7292629+3678231 -> 10865262 | P137: =SUM(D137:O137) -> 8206418 | Y137: 2016 | Z137: 2017 | AA137: 2018 | AB137: 2019 | AC137: 2020
B138: Schedule 146 Adjustments | D138: =-D147 -> 338063 | E138: 62434 | F138: 218054 | G138: 317393 | H138: 530779 | I138: 126466 | J138: 180045 | K138: -81484 | L138: -33784 | M138: -757710 | N138: -200214 | O138: -274794 | P138: 425248
B139: Special Contract Adjustments | D139: =-D148 -> 109811 | E139: =-E148 -> 460701 | F139: 165653 | G139: 321439 | H139: 236245 | I139: 77519 | J139: 40382 | K139: 37419 | L139: -163678 | M139: -413841 | N139: -342192 | O139: -454249 | P139: 75209 | X139: Total Loads by Rate Sched:
A140: Total Adjustments to Revenue Runs | D140: =SUM(D136:D138) -> 311165 | E140: 45206 | F140: 197652 | G140: 300663 | H140: 517492 | I140: 117071 | J140: 172171 | K140: -89037 | L140: -42927 | M140: -757710 | N140: -200214 | O140: -274794 | P140: 296738 | X140: WA101 | Y140: 119085063.8 | Z140: 120603006.4 | AA140: 121850354.1 | AB140: 122908556.8 | AC140: 124079672.3
X141: WA111 | Y141: 48375014.93 | Z141: 48898711.49 | AA141: 49428915.93 | AB141: 49949195.6 | AC141: 50475791.56
A142: Net Unbilled Usage | X142: WA121 | Y142: 5879933.896 | Z142: 5913944.795 | AA142: 5937035.365 | AB142: 5954334.647 | AC142: 5961536.309
B143: Small Service Schedule 101 | D143: ='Unbilled Usage '!E193 -> -3627217 | E143: ='Unbilled Usage '!F193 -> 792412 | F143: ='Unbilled Usage '!G193 -> -2982167 | G143: ='Unbilled Usage '!H193 -> -3042381 | H143: ='Unbilled Usage '!I193 -> -2830192 | I143: ='Unbilled Usage '!J193 -> -255260 | J143: ='Unbilled Usage '!K193 -> -147302 | K143: ='Unbilled Usage '!L193 -> 130266 | L143: ='Unbilled Usage '!M193 -> 638100 | M143: ='Unbilled Usage '!N193 -> 3105368 | N143: ='Unbilled Usage '!O193 -> 4733169 | O143: ='Unbilled Usage '!P193 -> 1645863 | P143: =SUM(D143:O143) -> -1839341 | X143: WA132 | Y143: 954605.7276 | Z143: 955018.7062 | AA143: 956090.5132 | AB143: 957130.0673 | AC143: 957844.2114
B144: Large Service Schedule 111/112 | D144: ='Unbilled Usage '!E194 -> -1398759 | E144: ='Unbilled Usage '!F194 -> 663173 | F144: ='Unbilled Usage '!G194 -> -1183036 | G144: ='Unbilled Usage '!H194 -> -889852 | H144: ='Unbilled Usage '!I194 -> -931502 | I144: ='Unbilled Usage '!J194 -> 32961 | J144: ='Unbilled Usage '!K194 -> -100104 | K144: ='Unbilled Usage '!L194 -> 142574 | L144: ='Unbilled Usage '!M194 -> 344478 | M144: ='Unbilled Usage '!N194 -> 1123980 | N144: ='Unbilled Usage '!O194 -> 1417730 | O144: ='Unbilled Usage '!P194 -> 3909408 | P144: =SUM(D144:O144) -> 3131051 | X144: WA146 | Y144: 29233751.74 | Z144: 29395863.97 | AA144: 29478092.84 | AB144: 29517286.47 | AC144: 29576385.21
B145: Extra Large Service Schedule 121/122 | D145: ='Unbilled Usage '!E195 -> -119441 | E145: ='Unbilled Usage '!F195 -> 42521 | F145: ='Unbilled Usage '!G195 -> -77373 | G145: ='Unbilled Usage '!H195 -> -45834 | H145: ='Unbilled Usage '!I195 -> -48353 | I145: ='Unbilled Usage '!J195 -> 46913 | J145: ='Unbilled Usage '!K195 -> -2048 | K145: ='Unbilled Usage '!L195 -> 38418 | L145: ='Unbilled Usage '!M195 -> 41015 | M145: ='Unbilled Usage '!N195 -> 86853 | N145: ='Unbilled Usage '!O195 -> 43909 | O145: ='Unbilled Usage '!P195 -> -3837630 | P145: -3831050 | X145: WA148 | Y145: 47404194 | Z145: 47979303 | AA145: 48515582 | AB145: 48999010 | AC145: 49468405
B146: Interrupt Service Schedule 131/132 | D146: ='Unbilled Usage '!E196 -> 0 | E146: ='Unbilled Usage '!F196 -> 0 | F146: ='Unbilled Usage '!G196 -> 0 | G146: ='Unbilled Usage '!H196 -> 0 | H146: ='Unbilled Usage '!I196 -> 0 | I146: ='Unbilled Usage '!J196 -> 0 | J146: ='Unbilled Usage '!K196 -> 0 | K146: ='Unbilled Usage '!L196 -> 0 | L146: ='Unbilled Usage '!M196 -> 0 | M146: ='Unbilled Usage '!N196 -> 0 | N146: ='Unbilled Usage '!O196 -> 0 | O146: ='Unbilled Usage '!P196 -> 0 | P146: 0 | X146: ID101 | Y146: 55949755.57 | Z146: 57044106.28 | AA146: 57770084.87 | AB146: 58464800.43 | AC146: 59192001.47
B147: Transport Service Schedule 146 | D147: ='Unbilled Usage '!E197 -> -338063 | E147: ='Unbilled Usage '!F197 -> -62434 | F147: ='Unbilled Usage '!G197 -> -218054 | G147: ='Unbilled Usage '!H197 -> -317393 | H147: ='Unbilled Usage '!I197 -> -530779 | I147: ='Unbilled Usage '!J197 -> -126466 | J147: ='Unbilled Usage '!K197 -> -180045 | K147: ='Unbilled Usage '!L197 -> 81484 | L147: ='Unbilled Usage '!M197 -> 33784 | M147: ='Unbilled Usage '!N197 -> 757710 | N147: ='Unbilled Usage '!O197 -> 200214 | O147: ='Unbilled Usage '!P197 -> 274794 | P147: -425248 | X147: ID111 | Y147: 23550004.4 | Z147: 23989902.61 | AA147: 24424158.01 | AB147: 24853813.37 | AC147: 25260302.12
B148: Special Contract Transport | D148: ='Unbilled Usage '!E198 -> -109811 | E148: ='Unbilled Usage '!F198 -> -460701 | F148: ='Unbilled Usage '!G198 -> -165653 | G148: ='Unbilled Usage '!H198 -> -321439 | H148: ='Unbilled Usage '!I198 -> -236245 | I148: ='Unbilled Usage '!J198 -> -77519 | J148: ='Unbilled Usage '!K198 -> -40382 | K148: ='Unbilled Usage '!L198 -> -37419 | L148: ='Unbilled Usage '!M198 -> 163678 | M148: ='Unbilled Usage '!N198 -> 413841 | N148: ='Unbilled Usage '!O198 -> 342192 | O148: ='Unbilled Usage '!P198 -> 454249 | P148: -75209 | X148: ID132 | Y148: 349221.4817 | Z148: 333779.8733 | AA148: 318358.5192 | AB148: 302726.8635 | AC148: 286574.9629
A149: Net Unbilled Usage | D149: =SUM(D143:D148) -> -5593291 | E149: =SUM(E143:E148) -> 974971 | F149: -4626283 | G149: -4616899 | H149: -4577071 | I149: -379371 | J149: -469881 | K149: 355323 | L149: 1221055 | M149: 5487752 | N149: 6737214 | O149: 2446684 | P149: -3039797 | X149: ID146 | Y149: 2616320.576 | Z149: 2614389.996 | AA149: 2614123.905 | AB149: 2614096.802 | AC149: 2614096.968
X150: ID147 | Y150: 1421643.42 | Z150: 1470746.436 | AA150: 1520631.622 | AB150: 1562518.946 | AC150: 1604217.29
A151: Weather Adjustment | X151: ID159 | Y151: 38168890 | Z151: 38478446 | AA151: 39132868 | AB151: 39263801 | AC151: 39282424
B152: Small Service Schedule 101 | D152: ='Weather Adjustment'!E23 -> 2469710 | E152: ='Weather Adjustment'!F23 -> -917801 | F152: ='Weather Adjustment'!G23 -> -187839 | G152: ='Weather Adjustment'!H23 -> -13799 | H152: ='Weather Adjustment'!I23 -> 2477504 | I152: ='Weather Adjustment'!J23 -> 456349 | J152: ='Weather Adjustment'!K23 -> 0 | K152: ='Weather Adjustment'!L23 -> 0 | L152: ='Weather Adjustment'!M23 -> 0 | M152: ='Weather Adjustment'!N23 -> 169485 | N152: ='Weather Adjustment'!O23 -> 392134 | O152: ='Weather Adjustment'!P23 -> 2011236 | P152: =SUM(D152:O152) -> 6856979 | X152: OR410 | Y152: 48090767.95 | Z152: 48812133.1 | AA152: 49279948.6 | AB152: 49473728 | AC152: 49710002.21
B153: Large Service Schedule 111/112 | D153: ='Weather Adjustment'!E24 -> 792369 | E153: ='Weather Adjustment'!F24 -> -296989 | F153: ='Weather Adjustment'!G24 -> -61700 | G153: ='Weather Adjustment'!H24 -> -4598 | H153: ='Weather Adjustment'!I24 -> 817214 | I153: ='Weather Adjustment'!J24 -> 151843 | J153: ='Weather Adjustment'!K24 -> 0 | K153: ='Weather Adjustment'!L24 -> 0 | L153: ='Weather Adjustment'!M24 -> 0 | M153: ='Weather Adjustment'!N24 -> 56255 | N153: ='Weather Adjustment'!O24 -> 128342 | O153: ='Weather Adjustment'!P24 -> 656337 | P153: =SUM(D153:O153) -> 2239073 | X153: OR420 | Y153: 26366046.93 | Z153: 26721708.19 | AA153: 26882886.09 | AB153: 27075597.14 | AC153: 27317920.53
B154: Extra Large Service Schedule 121/122 | D154: ='Weather Adjustment'!E25 -> 28932 | E154: ='Weather Adjustment'!F25 -> -10775 | F154: ='Weather Adjustment'!G25 -> -2195 | G154: ='Weather Adjustment'!H25 -> -197 | H154: ='Weather Adjustment'!I25 -> 35346 | I154: ='Weather Adjustment'!J25 -> 6516 | J154: ='Weather Adjustment'!K25 -> 0 | K154: ='Weather Adjustment'!L25 -> 0 | L154: ='Weather Adjustment'!M25 -> 0 | M154: ='Weather Adjustment'!N25 -> 2607 | N154: ='Weather Adjustment'!O25 -> 5529 | O154: ='Weather Adjustment'!P25 -> 2315 | P154: 68078 | X154: OR424 | Y154: 4321265.79 | Z154: 4376946.998 | AA154: 4438888.63 | AB154: 4510580.576 | AC154: 4580180.439
B155: Interrupt Service Schedule 131/132 | D155: 0 | E155: 0 | F155: 0 | G155: 0 | H155: 0 | I155: 0 | J155: 0 | K155: 0 | L155: 0 | M155: 0 | N155: 0 | O155: 0 | P155: 0 | X155: OR440 | Y155: 3858086.805 | Z155: 3840980.64 | AA155: 3838568.203 | AB155: 3844082.322 | AC155: 3843052.166
B156: Transport Service Schedule 146 | D156: 0 | E156: 0 | F156: 0 | G156: 0 | H156: 0 | I156: 0 | J156: 0 | K156: 0 | L156: 0 | M156: 0 | N156: 0 | O156: 0 | P156: 0 | X156: OR444 | Y156: 263520.1389 | Z156: 264111.2075 | AA156: 262942.8766 | AB156: 264983.7281 | AC156: 265801.534
B157: Special Contract Transport | D157: 0 | E157: 0 | F157: 0 | G157: 0 | H157: 0 | I157: 0 | J157: 0 | K157: 0 | L157: 0 | M157: 0 | N157: 0 | O157: 0 | P157: 0 | X157: OR447 | Y157: 7822245 | Z157: 8309765 | AA157: 8729145 | AB157: 9091293 | AC157: 9450159
A158: Total Weather Adjustment | D158: =SUM(D152:D157) -> 3291011 | E158: -1225565 | F158: -251734 | G158: -18594 | H158: 3330064 | I158: 614708 | J158: 0 | K158: 0 | L158: 0 | M158: 228347 | N158: 526005 | O158: 2669888 | P158: 9164130 | Q158: =P158/P133 -> 0.03400603726 | T158: Current Authorized | X158: OR456 | Y158: 37104338.81 | Z158: 38912844.5 | AA158: 40672402.53 | AB158: 42309912.36 | AC158: 43929872.66
R159: 12ME 12.2018 | T159: 12ME 12.2016
A160: Normalized Test Year Usage | R160: UG-19___ | T160: UG-17___
B161: Small Service Schedule 101 | D161: =D127+D143+D152 -> 22749974.41 | E161: =E127+E143+E152 -> 17283079.84 | F161: 15602672.96 | G161: 9757851.295 | H161: 5768556.905 | I161: 3089807.143 | J161: 2296430.207 | K161: 2216074.027 | L161: 3080267.839 | M161: 8570191.944 | N161: 15967978.48 | O161: 22603095.05 | P161: =SUM(D161:O161) -> 128985980.1 | R161: 128985980 | S161: =P161-R161 -> 0.09020999074 | T161: 119446617 | U161: =R161-T161 -> 9539363
B162: Large Service Schedule 111/112 | D162: =D128+D144+D153+D136 -> 7722631.232 | E162: =E128+E144+E153+E136 -> 7198683.732 | F162: 5840138.949 | G162: 4508904.346 | H162: 3254611.191 | I162: 2272338.694 | J162: 1660394.084 | K162: 1769410.288 | L162: 2153847.308 | M162: 3956219.133 | N162: 6124876.736 | O162: =O128+O144+O153+O136 -> 7867749.675 | P162: 54329805.37 | R162: 54329806 | S162: =P162-R162 -> -0.631539993 | T162: 47951720 | U162: 6378086
B163: Extra Large Service Schedule 121/122 | D163: =D129+D145+D154+D137 -> 119350.599 | E163: =E129+E145+E154+E137 -> 198559.025 | F163: 86668.037 | G163: 98472.426 | H163: 82595.024 | I163: 156137.937 | J163: 91751.29973 | K163: 148501.327 | L163: 128333.116 | M163: 220473.661 | N163: 214706.141 | O163: 9521.94899 | P163: 1555070.542 | R163: 1555071 | S163: -0.4582799994 | T163: 4115331 | U163: -2560260 | X163: Total Customers by Rate Sched:
B164: Interrupt Service Schedule 131/132 | D164: =D130+D146+D155 -> 139102.279 | E164: =E130+E146+E155 -> 117327.56 | F164: 113117.076 | G164: 93219.128 | H164: 72900.841 | I164: 47469.585 | J164: 41737.258 | K164: 43515.436 | L164: 44833.752 | M164: 68693.989 | N164: 88518.619 | O164: 114831.204 | P164: 985266.727 | R164: 985267 | S164: -0.2729999999 | T164: 901267 | U164: 84000 | X164: WA101 | Y164: 152614.2432 | Z164: 154375.4865 | AA164: 156196.1366 | AB164: 158052.9362 | AC164: 159947.6786
B165: Transport Service Schedule 146 | D165: =D131+D147+D156+D138 -> 3967685 | E165: 3629622 | F165: 3567188 | G165: 3349134 | H165: 3031743 | I165: 2500055 | J165: 2416869 | K165: 2200204 | L165: 2275935 | M165: 2340543 | N165: 3067907 | O165: 3261051 | P165: 35607936 | R165: 35607936 | S165: 0 | T165: 30719529 | U165: 4888407 | X165: WA111 | Y165: 2650.199525 | Z165: 2695.794642 | AA165: 2741.506858 | AB165: 2787.216875 | AC165: 2833.0665
B166: Special Contract Transport | D166: =D132+D148+D157+D139 -> 5265223 | E166: =E132+E148+E157+E139 -> 4912508 | F166: 4547047 | G166: 4301458 | H166: 4021819 | I166: 3930521 | J166: 3756231 | K166: 4538638 | L166: 4562727 | M166: 4393442 | N166: 5173852 | O166: 5114139 | P166: 54517605 | R166: =43918147+10599458 -> 54517605 | S166: 0 | T166: =39386921+9620298 -> 49007219 | U166: 5510386 | X166: WA121 | Y166: 27.87006319 | Z166: 27.87200333 | AA166: 27.87184624 | AB166: 27.87179873 | AC166: 27.87179458
A167: Total Normalized Test Year Usage | D167: =SUM(D161:D166) -> 39963966.52 | E167: =SUM(E161:E166) -> 33339780.16 | F167: 29756832.02 | G167: 22109039.2 | H167: 16232225.96 | I167: 11996329.36 | J167: 10263412.85 | K167: 10916343.08 | L167: 12245944.01 | M167: 19549563.73 | N167: 30637838.97 | O167: 38970387.88 | P167: 275981663.7 | R167: =SUM(R161:R166) -> 275981665 | S167: =SUM(S161:S166) -> -1.272610002 | T167: =SUM(T161:T166) -> 252141683 | U167: =SUM(U161:U166) -> 23839982 | X167: WA132 | Y167: 2 | Z167: 2 | AA167: 2 | AB167: 2 | AC167: 2
X168: WA146 | Y168: 39.88385661 | Z168: 39.92103326 | AA168: 39.92349347 | AB168: 39.92317946 | AC168: 39.9230859
B169: Residential Usage | D169: =D161 -> 22749974.41 | E169: =E161 -> 17283079.84 | F169: 15602672.96 | G169: 9757851.295 | H169: 5768556.905 | I169: 3089807.143 | J169: 2296430.207 | K169: 2216074.027 | L169: 3080267.839 | M169: 8570191.944 | N169: 15967978.48 | O169: 22603095.05 | P169: =SUM(D169:O169) -> 128985980.1 | R169: =R161 -> 128985980 | T169: =T161 -> 119446617 | U169: =R169-T169 -> 9539363 | X169: WA148 | Y169: 5.267261995 | Z169: 5.269779543 | AA169: 5.269362569 | AB169: 5.269243071 | AC169: 5.269230431
B170: Schedule 101 Customers | D170: =Meters!D112 -> 160611 | E170: =Meters!E112 -> 160378 | F170: =Meters!F112 -> 161228 | G170: =Meters!G112 -> 160935 | H170: =Meters!H112 -> 161371 | I170: =Meters!I112 -> 161247 | J170: =Meters!J112 -> 161588 | K170: =Meters!K112 -> 161900 | L170: =Meters!L112 -> 160395 | M170: =Meters!M112 -> 164606 | N170: =Meters!N112 -> 163386 | O170: =Meters!O112 -> 163850 | P170: =SUM(D170:O170) -> 1941495 | R170: 1941495 | T170: 1847462 | U170: 94033 | X170: ID101 | Y170: 76652.04034 | Z170: 77779.85455 | AA170: 78924.93412 | AB170: 80125.83057 | AC170: 81361.83276
B171: Schedule 101 Norm Use/Customer | D171: =D169/D170 -> 141.6464277 | E171: =E169/E170 -> 107.764655 | F171: 96.77396579 | G171: 60.63225088 | H171: 35.74717208 | I171: 19.16195119 | J171: 14.21163828 | K171: 13.68791863 | L171: 19.20426347 | M171: 52.06488186 | N171: 97.73162006 | O171: 137.949924 | P171: 66.43642146 | R171: 66.43642142 | T171: =T169/T170 -> 64.65443782 | U171: 1.7819836 | X171: ID111 | Y171: 1388.93057 | Z171: 1405.929056 | AA171: 1422.929386 | AB171: 1439.929478 | AC171: 1456.929488
B172: Schedule 132 Usage | D172: =D164 -> 139102.279 | E172: =E164 -> 117327.56 | F172: 113117.076 | G172: 93219.128 | H172: 72900.841 | I172: 47469.585 | J172: 41737.258 | K172: 43515.436 | L172: 44833.752 | M172: 68693.989 | N172: 88518.619 | O172: 114831.204 | P172: =SUM(D172:O172) -> 985266.727 | R172: 985267 | T172: 1781211 | U172: -795944 | X172: ID132 | Y172: 1 | Z172: 1 | AA172: 1 | AB172: 1 | AC172: 1
B173: Schedule 132 Customers | D173: =Meters!D115 -> 2 | E173: =Meters!E115 -> 2 | F173: =Meters!F115 -> 2 | G173: =Meters!G115 -> 2 | H173: =Meters!H115 -> 2 | I173: =Meters!I115 -> 2 | J173: =Meters!J115 -> 2 | K173: =Meters!K115 -> 2 | L173: =Meters!L115 -> 2 | M173: =Meters!M115 -> 2 | N173: =Meters!N115 -> 2 | O173: =Meters!O115 -> 2 | P173: 24 | R173: 24 | T173: 48 | U173: -24 | X173: ID146 | Y173: 6 | Z173: 6 | AA173: 6 | AB173: 6 | AC173: 6
B174: Non-Residential Group Usage | D174: =SUM(D162:D164)-D172 -> 7841981.831 | E174: =SUM(E162:E164)-E172 -> 7397242.757 | F174: =SUM(F162:F164)-F172 -> 5926806.986 | G174: 4607376.772 | H174: 3337206.215 | I174: 2428476.63 | J174: =SUM(J162:J164)-J172 -> 1752145.384 | K174: 1917911.615 | L174: 2282180.424 | M174: 4176692.794 | N174: 6339582.877 | O174: 7877271.624 | P174: =SUM(D174:O174) -> 55884875.91 | R174: =54329806+1555071+985267-R172 -> 55884877 | T174: 52606812 | U174: 3278065 | X174: ID147 | Y174: 1.248339235 | Z174: 1.255946425 | AA174: 1.256460898 | AB174: 1.256426205 | AC174: 1.256411992
B175: Non-Residential Group Customers | D175: =SUM(Meters!D113:D115)-Summary!D173 -> 3023 | E175: =SUM(Meters!E113:E115)-Summary!E173 -> 3037 | F175: =SUM(Meters!F113:F115)-Summary!F173 -> 3097 | G175: =SUM(Meters!G113:G115)-Summary!G173 -> 3086 | H175: =SUM(Meters!H113:H115)-Summary!H173 -> 3066 | I175: =SUM(Meters!I113:I115)-Summary!I173 -> 3089 | J175: =SUM(Meters!J113:J115)-Summary!J173 -> 3078 | K175: =SUM(Meters!K113:K115)-Summary!K173 -> 3070 | L175: =SUM(Meters!L113:L115)-Summary!L173 -> 2996 | M175: =SUM(Meters!M113:M115)-Summary!M173 -> 3147 | N175: =SUM(Meters!N113:N115)-Summary!N173 -> 3078 | O175: =SUM(Meters!O113:O115)-Summary!O173 -> 3110 | P175: =SUM(D175:O175) -> 36877 | R175: =36840+36+24-R173 -> 36876 | T175: =32983+273+24-T173 -> 33232 | U175: 3644 | X175: ID159 | Y175: 1 | Z175: 1 | AA175: 1 | AB175: 1 | AC175: 1
B176: Non-Residential Group Norm Use/Customer | D176: =D174/D175 -> 2594.105799 | E176: =E174/E175 -> 2435.707197 | F176: 1913.725213 | G176: 1492.993121 | H176: 1088.456039 | I176: 786.1691908 | J176: =J174/J175 -> 569.2480129 | K176: 624.7269104 | L176: 761.7424645 | M176: 1327.198219 | N176: 2059.64356 | O176: 2532.884767 | P176: 1515.439865 | R176: 1515.48099 | T176: =T174/T175 -> 1583.016731 | U176: -67.53574052 | X176: OR410 | Y176: 86297.89342 | Z176: 87064.70419 | AA176: 87895.66804 | AB176: 88702.81897 | AC176: 89526.58571
X177: OR420 | Y177: 11333.11185 | Z177: 11416.25704 | AA177: 11498.38842 | AB177: 11580.18803 | AC177: 11661.02736
D178: =D167/$P167 -> 0.1448066005 | E178: =E167/$P167 -> 0.1208043307 | F178: 0.107821772 | G178: 0.08011053668 | H178: 0.05881632041 | I178: 0.04346784927 | J178: 0.0371887491 | K178: 0.03955459551 | L178: 0.04437231028 | M178: 0.07083645871 | N178: 0.1110140382 | O178: 0.1412064387 | P178: =SUM(D178:O178) -> 1 | X178: OR424 | Y178: 80.80227082 | Z178: 82.79543362 | AA178: 83.79481784 | AB178: 85.79485285 | AC178: 86.79486971
A179: IDAHO GAS SYSTEM | X179: OR440 | Y179: 34.63921599 | Z179: 34.66269674 | AA179: 34.66430156 | AB179: 34.6641599 | AC179: 34.66410857
D180: =D5 -> January | E180: =E5 -> February | F180: March | G180: April | H180: May | I180: June | J180: July | K180: August | L180: September | M180: October | N180: November | O180: December | P180: Annual Total | X180: OR444 | Y180: 3.416666667 | Z180: 3.416666667 | AA180: 3.416666667 | AB180: 3.416666667 | AC180: 3.416666667
A181: Revenue Run Billed Usage | X181: OR447 | Y181: 3 | Z181: 3 | AA181: 3 | AB181: 3 | AC181: 3
B182: Small Service Schedule 101 | D182: ='Billed Usage'!D116 -> 10887981.29 | E182: ='Billed Usage'!E116 -> 8516749.48 | F182: ='Billed Usage'!F116 -> 8963246.038 | G182: ='Billed Usage'!G116 -> 6385724.178 | H182: ='Billed Usage'!H116 -> 2989311.052 | I182: ='Billed Usage'!I116 -> 1501710.311 | J182: ='Billed Usage'!J116 -> 1286735.742 | K182: ='Billed Usage'!K116 -> 1008619.027 | L182: ='Billed Usage'!L116 -> 1269665.255 | M182: ='Billed Usage'!M116 -> 2846567.342 | N182: ='Billed Usage'!N116 -> 5490291.02 | O182: ='Billed Usage'!O116 -> 9409204.713 | P182: =SUM(D182:O182) -> 60555805.45 | X182: OR456 | Y182: 35.03920394 | Z182: 35.03862075 | AA182: 35.03847181 | AB182: 35.03846006 | AC182: 35.03846109
B183: Large Service Schedule 111/112 | D183: ='Billed Usage'!D117 -> 3485665.764 | E183: ='Billed Usage'!E117 -> 2857226.809 | F183: ='Billed Usage'!F117 -> 3108879.036 | G183: ='Billed Usage'!G117 -> 2414196.606 | H183: ='Billed Usage'!H117 -> 1557813.618 | I183: ='Billed Usage'!I117 -> 1231208.874 | J183: ='Billed Usage'!J117 -> 1130928.946 | K183: ='Billed Usage'!K117 -> 1030549.337 | L183: ='Billed Usage'!L117 -> 1151759.097 | M183: ='Billed Usage'!M117 -> 1489691.132 | N183: ='Billed Usage'!N117 -> 2167143.536 | O183: ='Billed Usage'!O117 -> 3108427.805 | P183: =SUM(D183:O183) -> 24733490.56
B184: Interrupt Service Schedule 131/132 | D184: ='Billed Usage'!D118 -> 0 | E184: ='Billed Usage'!E118 -> 0 | F184: ='Billed Usage'!F118 -> 0 | G184: ='Billed Usage'!G118 -> 0 | H184: ='Billed Usage'!H118 -> 0 | I184: ='Billed Usage'!I118 -> 0 | J184: ='Billed Usage'!J118 -> 0 | K184: ='Billed Usage'!K118 -> 0 | L184: ='Billed Usage'!L118 -> 0 | M184: ='Billed Usage'!M118 -> 0 | N184: ='Billed Usage'!N118 -> 0 | O184: ='Billed Usage'!O118 -> 0 | P184: 0
B185: Transport Service Schedule 146 | D185: ='Billed Usage'!D119 -> 294520 | E185: ='Billed Usage'!E119 -> 314847 | F185: ='Billed Usage'!F119 -> 314258 | G185: ='Billed Usage'!G119 -> 304591 | H185: ='Billed Usage'!H119 -> 335551 | I185: ='Billed Usage'!I119 -> 300325 | J185: ='Billed Usage'!J119 -> 277570 | K185: ='Billed Usage'!K119 -> 224711 | L185: ='Billed Usage'!L119 -> 256279 | M185: ='Billed Usage'!M119 -> 249077 | N185: ='Billed Usage'!N119 -> 406722 | O185: ='Billed Usage'!O119 -> 296829 | P185: 3575280
B186: Special Contract Transport | D186: ='Billed Usage'!D120 -> 5206155 | E186: ='Billed Usage'!E120 -> 4215204 | F186: ='Billed Usage'!F120 -> 4509955 | G186: ='Billed Usage'!G120 -> 2932760 | H186: ='Billed Usage'!H120 -> 2980341 | I186: ='Billed Usage'!I120 -> 2641807 | J186: ='Billed Usage'!J120 -> 2695368 | K186: ='Billed Usage'!K120 -> 3063886 | L186: ='Billed Usage'!L120 -> 2763116 | M186: ='Billed Usage'!M120 -> 3576797 | N186: ='Billed Usage'!N120 -> 3798970 | O186: ='Billed Usage'!O120 -> 4474448 | P186: 42858807
A187: Total Revenue Run Billed Usage | D187: =SUM(D182:D186) -> 19874322.06 | E187: =SUM(E182:E186) -> 15904027.29 | F187: 16896338.07 | G187: 12037271.78 | H187: 7863016.67 | I187: 5675051.185 | J187: 5390602.689 | K187: 5327765.363 | L187: 5440819.352 | M187: 8162132.474 | N187: 11863126.56 | O187: 17288909.52 | P187: 131723383
A189: Adjustments to Revenue Runs
B190: Schedule 146 Adjustments | D190: =-D198 -> -20327 | E190: =-E198 -> 589 | F190: 9667 | G190: -30960 | H190: 35322 | I190: 22659 | J190: 52859 | K190: -31568 | L190: 7202 | M190: -157606 | N190: 109854 | O190: -2690 | P190: =SUM(D190:O190) -> -4999
B191: Special Contract Adjustments | D191: =-D199 -> -5119 | E191: =-E199 -> 22533 | F191: -80 | G191: -12905 | H191: -1932 | I191: 20687 | J191: -7398 | K191: 5133 | L191: -1291 | M191: -17709 | N191: 3923 | O191: -10339 | P191: =SUM(D191:O191) -> -4497
A192: Total Adjustments to Revenue Runs | D192: =SUM(D190:D191) -> -25446 | E192: 23122 | F192: 9587 | G192: -43865 | H192: 33390 | I192: 43346 | J192: 45461 | K192: -26435 | L192: 5911 | M192: -175315 | N192: 113777 | O192: -13029 | P192: -9496
A194: Net Unbilled Usage
B195: Small Service Schedule 101 | D195: ='Unbilled Usage '!E199 -> -2065208 | E195: ='Unbilled Usage '!F199 -> 706034 | F195: ='Unbilled Usage '!G199 -> -1549850 | G195: ='Unbilled Usage '!H199 -> -1360056 | H195: ='Unbilled Usage '!I199 -> -1429424 | I195: ='Unbilled Usage '!J199 -> -76625 | J195: ='Unbilled Usage '!K199 -> -68421 | K195: ='Unbilled Usage '!L199 -> 17807 | L195: ='Unbilled Usage '!M199 -> 398413 | M195: ='Unbilled Usage '!N199 -> 1718275 | N195: ='Unbilled Usage '!O199 -> 2239030 | O195: ='Unbilled Usage '!P199 -> 702255 | P195: =SUM(D195:O195) -> -767770
B196: Large Service Schedule 111/112 | D196: ='Unbilled Usage '!E200 -> -720690 | E196: ='Unbilled Usage '!F200 -> 282183 | F196: ='Unbilled Usage '!G200 -> -435977 | G196: ='Unbilled Usage '!H200 -> -383265 | H196: ='Unbilled Usage '!I200 -> -400833 | I196: ='Unbilled Usage '!J200 -> 132773 | J196: ='Unbilled Usage '!K200 -> -16719 | K196: ='Unbilled Usage '!L200 -> 87055 | L196: ='Unbilled Usage '!M200 -> 222895 | M196: ='Unbilled Usage '!N200 -> 455065 | N196: ='Unbilled Usage '!O200 -> 513823 | O196: ='Unbilled Usage '!P200 -> -32152 | P196: =SUM(D196:O196) -> -295842
B197: Interrupt Service Schedule 131/132 | D197: ='Unbilled Usage '!E201 -> 0 | E197: ='Unbilled Usage '!F201 -> 0 | F197: ='Unbilled Usage '!G201 -> 0 | G197: ='Unbilled Usage '!H201 -> 0 | H197: ='Unbilled Usage '!I201 -> 0 | I197: ='Unbilled Usage '!J201 -> 0 | J197: ='Unbilled Usage '!K201 -> 0 | K197: ='Unbilled Usage '!L201 -> 0 | L197: ='Unbilled Usage '!M201 -> 0 | M197: ='Unbilled Usage '!N201 -> 0 | N197: ='Unbilled Usage '!O201 -> 0 | O197: ='Unbilled Usage '!P201 -> 0 | P197: 0
B198: Transport Service Schedule 146 | D198: ='Unbilled Usage '!E202 -> 20327 | E198: ='Unbilled Usage '!F202 -> -589 | F198: ='Unbilled Usage '!G202 -> -9667 | G198: ='Unbilled Usage '!H202 -> 30960 | H198: ='Unbilled Usage '!I202 -> -35322 | I198: ='Unbilled Usage '!J202 -> -22659 | J198: ='Unbilled Usage '!K202 -> -52859 | K198: ='Unbilled Usage '!L202 -> 31568 | L198: ='Unbilled Usage '!M202 -> -7202 | M198: ='Unbilled Usage '!N202 -> 157606 | N198: ='Unbilled Usage '!O202 -> -109854 | O198: ='Unbilled Usage '!P202 -> 2690 | P198: 4999
B199: Special Contract Transport | D199: ='Unbilled Usage '!E203 -> 5119 | E199: ='Unbilled Usage '!F203 -> -22533 | F199: ='Unbilled Usage '!G203 -> 80 | G199: ='Unbilled Usage '!H203 -> 12905 | H199: ='Unbilled Usage '!I203 -> 1932 | I199: ='Unbilled Usage '!J203 -> -20687 | J199: ='Unbilled Usage '!K203 -> 7398 | K199: ='Unbilled Usage '!L203 -> -5133 | L199: ='Unbilled Usage '!M203 -> 1291 | M199: ='Unbilled Usage '!N203 -> 17709 | N199: ='Unbilled Usage '!O203 -> -3923 | O199: ='Unbilled Usage '!P203 -> 10339 | P199: 4497
A200: Net Unbilled Usage | D200: =SUM(D195:D199) -> -2760452 | E200: =SUM(E195:E199) -> 965095 | F200: -1995414 | G200: -1699456 | H200: -1863647 | I200: 12802 | J200: -130601 | K200: 131297 | L200: 615397 | M200: 2348655 | N200: 2639076 | O200: 683132 | P200: -1054116
A202: Weather Adjustment
B203: Small Service Schedule 101 | D203: ='Weather Adjustment'!E27 -> 1133807 | E203: ='Weather Adjustment'!F27 -> -422651 | F203: ='Weather Adjustment'!G27 -> -86115 | G203: ='Weather Adjustment'!H27 -> -6436 | H203: ='Weather Adjustment'!I27 -> 1152162 | I203: ='Weather Adjustment'!J27 -> 212695 | J203: ='Weather Adjustment'!K27 -> 0 | K203: ='Weather Adjustment'!L27 -> 0 | L203: ='Weather Adjustment'!M27 -> 0 | M203: ='Weather Adjustment'!N27 -> 78331 | N203: ='Weather Adjustment'!O27 -> 183024 | O203: ='Weather Adjustment'!P27 -> 924476 | P203: =SUM(D203:O203) -> 3169293
B204: Large Service Schedule 111/112 | D204: ='Weather Adjustment'!E28 -> 247168 | E204: ='Weather Adjustment'!F28 -> -93353 | F204: ='Weather Adjustment'!G28 -> -19110 | G204: ='Weather Adjustment'!H28 -> -1215 | H204: ='Weather Adjustment'!I28 -> 219185 | I204: ='Weather Adjustment'!J28 -> 40412 | J204: ='Weather Adjustment'!K28 -> 0 | K204: ='Weather Adjustment'!L28 -> 0 | L204: ='Weather Adjustment'!M28 -> 0 | M204: ='Weather Adjustment'!N28 -> 14791 | N204: ='Weather Adjustment'!O28 -> 34175 | O204: ='Weather Adjustment'!P28 -> 204249 | P204: =SUM(D204:O204) -> 646302
B205: Interrupt Service Schedule 131/132 | D205: 0 | E205: 0 | F205: 0 | G205: 0 | H205: 0 | I205: 0 | J205: 0 | K205: 0 | L205: 0 | M205: 0 | N205: 0 | O205: 0 | P205: 0
B206: Transport Service Schedule 146 | D206: 0 | E206: 0 | F206: 0 | G206: 0 | H206: 0 | I206: 0 | J206: 0 | K206: 0 | L206: 0 | M206: 0 | N206: 0 | O206: 0 | P206: 0
B207: Special Contract Transport | D207: 0 | E207: 0 | F207: 0 | G207: 0 | H207: 0 | I207: 0 | J207: 0 | K207: 0 | L207: 0 | M207: 0 | N207: 0 | O207: 0 | P207: 0
A208: Total Weather Adjustment | D208: =SUM(D203:D207) -> 1380975 | E208: -516004 | F208: -105225 | G208: -7651 | H208: 1371347 | I208: 253107 | J208: 0 | K208: 0 | L208: 0 | M208: 93122 | N208: 217199 | O208: 1128725 | P208: 3815595
A210: Normalized Test Year Usage | R210: AVU-G-19-__ | T210: AVU-G-17-__
B211: Small Service Schedule 101 | D211: =D182+D195+D203 -> 9956580.294 | E211: =E182+E195+E203 -> 8800132.48 | F211: 7327281.038 | G211: 5019232.178 | H211: 2712049.052 | I211: 1637780.311 | J211: 1218314.742 | K211: 1026426.027 | L211: 1668078.255 | M211: 4643173.342 | N211: 7912345.02 | O211: 11035935.71 | P211: =SUM(D211:O211) -> 62957328.45 | R211: 62957328 | S211: =P211-R211 -> 0.4520100132 | T211: 57259878 | U211: =R211-T211 -> 5697450
B212: Large Service Schedule 111/112 | D212: =D183+D196+D204 -> 3012143.764 | E212: =E183+E196+E204 -> 3046056.809 | F212: 2653792.036 | G212: 2029716.606 | H212: 1376165.618 | I212: 1404393.874 | J212: 1114209.946 | K212: 1117604.337 | L212: 1374654.097 | M212: 1959547.132 | N212: 2715141.536 | O212: 3280524.805 | P212: 25083950.56 | R212: 25083951 | S212: =P212-R212 -> -0.4387999997 | T212: 22445627 | U212: =R212-T212 -> 2638324
B213: Interrupt Service Schedule 131/132 | D213: =D184+D197+D205 -> 0 | E213: =E184+E197+E205 -> 0 | F213: 0 | G213: 0 | H213: 0 | I213: 0 | J213: 0 | K213: 0 | L213: 0 | M213: 0 | N213: 0 | O213: 0 | P213: 0 | R213: 0 | S213: 0 | T213: 0 | U213: 0
B214: Transport Service Schedule 146 | D214: =D185+D198+D206+D190 -> 294520 | E214: =E185+E198+E206+E190 -> 314847 | F214: 314258 | G214: 304591 | H214: 335551 | I214: 300325 | J214: 277570 | K214: 224711 | L214: 256279 | M214: 249077 | N214: 406722 | O214: 296829 | P214: 3575280 | R214: 3575280 | S214: 0 | T214: 2891150 | U214: 684130
B215: Special Contract Transport | D215: =D186+D199+D207+D191 -> 5206155 | E215: =E186+E199+E207+E191 -> 4215204 | F215: 4509955 | G215: 2932760 | H215: 2980341 | I215: 2641807 | J215: 2695368 | K215: 3063886 | L215: 2763116 | M215: 3576797 | N215: 3798970 | O215: 4474448 | P215: 42858807 | R215: =1786360+41072447 -> 42858807 | S215: 0 | T215: =1429451+51464320 -> 52893771 | U215: -10034964
A216: Total Normalized Test Year Usage | D216: =SUM(D211:D215) -> 18469399.06 | E216: =SUM(E211:E215) -> 16376240.29 | F216: 14805286.07 | G216: 10286299.78 | H216: 7404106.67 | I216: 5984306.185 | J216: 5305462.689 | K216: 5432627.363 | L216: 6062127.352 | M216: 10428594.47 | N216: 14833178.56 | O216: 19087737.52 | P216: =SUM(P211:P215) -> 134475366 | R216: =SUM(R211:R215) -> 134475366 | S216: =SUM(S211:S215) -> 0.01321001351 | T216: =SUM(T211:T215) -> 135490426 | U216: =SUM(U211:U215) -> -1015060
B218: Residential Usage | D218: =D211 -> 9956580.294 | E218: =E211 -> 8800132.48 | F218: 7327281.038 | G218: 5019232.178 | H218: 2712049.052 | I218: 1637780.311 | J218: 1218314.742 | K218: 1026426.027 | L218: 1668078.255 | M218: 4643173.342 | N218: 7912345.02 | O218: 11035935.71 | P218: =SUM(D218:O218) -> 62957328.45 | R218: =R211 -> 62957328 | S218: =P218-R218 -> 0.4520100132 | T218: =T211 -> 57259878 | U218: =R218-T218 -> 5697450
... 56 more rows

Sheet Billed Usage
G1: Usage Report 12 Month-Ended | K1: Data Source: Financial Reporting
K2: Data Updated Daily
A4: Usage Qty | D4: 201801 | E4: 201802 | F4: 201803 | G4: 201804 | H4: 201805 | I4: 201806 | J4: 201807 | K4: 201808 | L4: 201809 | M4: 201810 | N4: 201811 | O4: 201812 | P4: Total
A5: Service | B5: State Code | C5: Rate Schedule
A6: ED | B6: ID | C6: 0001 | D6: 138407633.1 | E6: 113461056.2 | F6: 115662487.3 | G6: 98264516.16 | H6: 76604968.03 | I6: 71752760.66 | J6: 80381696.05 | K6: 94277012.11 | L6: 75899157.46 | M6: 73435394.17 | N6: 91569279.34 | O6: 125701507.3 | P6: 1155417468
C7: 0011 | D7: 35387547.96 | E7: 31346900.65 | F7: 30996520.19 | G7: 28139412.92 | H7: 25667469.33 | I7: 25699950.74 | J7: 27662363.96 | K7: 30772500.5 | L7: 27397293.95 | M7: 24723468.98 | N7: 26642991.55 | O7: 32973681.62 | P7: 347410102.4
C8: 0012 | D8: 3270281.699 | E8: 2764549.354 | F8: 2810373.201 | G8: 2296568.569 | H8: 1714607.411 | I8: 1545918.797 | J8: 1659212.921 | K8: 1898945.59 | L8: 1760440.95 | M8: 1745476.925 | N8: 2165102.086 | O8: 2939319.022 | P8: 26570796.53
C9: 0021 | D9: 55916857.87 | E9: 52777360.59 | F9: 51750060.04 | G9: 50677197.41 | H9: 48903647.62 | I9: 49104342.36 | J9: 50551567.73 | K9: 54382597.14 | L9: 51313672.02 | M9: 47728842.45 | N9: 48549962.84 | O9: 54177361.8 | P9: 615833469.9
C10: 0022 | D10: 812480 | E10: 662040 | F10: 717080 | G10: 598480 | H10: 522360 | I10: 477520 | J10: 514560 | K10: 560800 | L10: 558760 | M10: 466920 | N10: 548400 | O10: 662400 | P10: 7101800
C11: 0025 | D11: 28245246.8 | E11: 26107649.1 | F11: 22507242.22 | G11: 27375213.06 | H11: 5514471.86 | I11: 27431445.85 | J11: 25765555.6 | K11: 27505011 | L11: 28587593.54 | M11: 26251537.53 | N11: 28333802.39 | O11: 26332786.93 | P11: 299957555.9
C12: 0031 | D12: 3451687.727 | E12: 3364148.191 | F12: 3275828.384 | G12: 3268105.344 | H12: 3965541.908 | I12: 5863307.28 | J12: 7254831.804 | K12: 8554598.199 | L12: 7225786.635 | M12: 4999429.565 | N12: 2936649.11 | O12: 3373607.57 | P12: 57533521.72
C13: 0032 | D13: 223131.49 | E13: 193565.07 | F13: 195463.67 | G13: 166447.62 | H13: 271793.69 | I13: 646127.36 | J13: 1079968.29 | K13: 1079353.83 | L13: 450874.65 | M13: 237062.87 | N13: 164800.45 | O13: 202137.61 | P13: 4910726.6
C14: 0041 | D14: 1778.667 | E14: 1778.667 | F14: 1778.667 | G14: 1786.778 | H14: 1952 | I14: 1840 | J14: 1962.667 | K14: 1784 | L14: 1906.667 | M14: 1890.667 | N14: 1781.223 | O14: 1912 | P14: 22152.003
C15: 0042 | D15: 511138.581 | E15: 494248.862 | F15: 480654.834 | G15: 486809.553 | H15: 493392.518 | I15: 478596.281 | J15: 480727.192 | K15: 482037.292 | L15: 479335.64 | M15: 525822.995 | N15: 468799.614 | O15: 489687.707 | P15: 5871251.069
C16: 0044 | D16: -78852.74899 | E16: 20657.194 | F16: 20702.006 | G16: 21184.254 | H16: 22165.666 | I16: 21294.6 | J16: 20926.134 | K16: 22391.933 | L16: 21977.967 | M16: 32372.367 | N16: 10319.774 | O16: 22814.512 | P16: 157953.658
C17: 0045 | D17: 7183 | E17: 33303.934 | F17: 29555.101 | G17: 28015.259 | H17: 29458.334 | I17: 30522.535 | J17: 28600.835 | K17: 28913.068 | L17: 31489.968 | M17: 44878.036 | N17: 31202.678 | O17: 29240.668 | P17: 352363.416
C18: 0046 | D18: 65422.43 | E18: 186569.629 | F18: 78028.548 | G18: 77553.544 | H18: 82760.233 | I18: 81162.399 | J18: 78898.666 | K18: 82212.799 | L18: 83011.732 | M18: 86120.667 | N18: 69942.699 | O18: 80102.971 | P18: 1051786.317
C19: 0047 | D19: 47565.293 | E19: 46645.847 | F19: 45925.293 | G19: 46611.613 | H19: 46223.781 | I19: 47138.39 | J19: 46063.807 | K19: 45414.722 | L19: 45537.196 | M19: 46505.045 | N19: 44668.499 | O19: 46017.731 | P19: 554317.217
C20: 0048 | D20: 81682.61 | E20: 75492.363 | F20: 79025.56909 | G20: 92966.709 | H20: 90661.186 | I20: 93481.822 | J20: 92448.556 | K20: 91551.896 | L20: 92152.512 | M20: 87781.935 | N20: 87232.63082 | O20: 94063.827 | P20: 1058541.616
C21: 0049 | D21: 239073.4767 | E21: 215510.7383 | F21: 210202.6754 | G21: 206046.654 | H21: 202806.032 | I21: 199064.0024 | J21: 204976.286 | K21: 204376.207 | L21: 204395.819 | M21: 196833.823 | N21: 197218.208 | O21: 208589.591 | P21: 2489093.513
C22: 0058 | D22: 0 | E22: 0 | F22: 0 | G22: 0 | H22: 0 | I22: 0 | J22: 0 | K22: 0 | L22: 0 | M22: 0 | N22: 0 | O22: 0 | P22: 0
C23: 0095 | D23: 0 | E23: 0 | F23: 0 | G23: 0 | H23: 0 | I23: 0 | J23: 0 | K23: 0 | L23: 0 | M23: 0 | N23: 0 | O23: 0 | P23: 0
C24: 0099 | D24: 0 | E24: 0 | F24: 0 | G24: 0 | H24: 0 | I24: 0 | J24: 0 | K24: 0 | L24: 0 | M24: 0 | N24: 0 | O24: 0 | P24: 0
C25: 025B | D25: 0 | E25: 0 | F25: 0 | G25: 0 | H25: 0 | I25: 0 | J25: 0 | K25: 0 | L25: 0 | M25: 0 | N25: 0 | O25: 0 | P25: 0
C26: 025P | D26: 31034360 | E26: 29136680 | F26: 33893450 | G26: 34523990 | H26: 0 | I26: 36069710 | J26: 33600660 | K26: 38255050 | L26: 62513600 | M26: 47084840 | N26: 35905670 | O26: 30311220 | P26: 412329230
C27: Total | D27: 297624218 | E27: 260888156.4 | F27: 262754377.7 | G27: 246270905.4 | H27: 164134279.6 | I27: 219544183.1 | J27: 229425020.5 | K27: 258244550.3 | L27: 256666986.7 | M27: 227695178 | N27: 237727823.1 | O27: 277646450.8 | P27: 2938622130
B28: MT | C28: 0001 | D28: 43250.942 | E28: 48501.798 | F28: 50491 | G28: 39600 | H28: 20077 | I28: 9628 | J28: 8675 | K28: 8923 | L28: 8458 | M28: 16927.167 | N28: 26057.449 | O28: 31388.558 | P28: 311977.914
C29: 0011 | D29: 119118 | E29: 111441 | F29: 105051 | G29: 84002 | H29: 49136 | I29: 30591 | J29: 22014 | K29: 21023 | L29: 17622.205 | M29: 31641.795 | N29: 66220 | O29: 88115 | P29: 745975
C30: Total | D30: 162368.942 | E30: 159942.798 | F30: 155542 | G30: 123602 | H30: 69213 | I30: 40219 | J30: 30689 | K30: 29946 | L30: 26080.205 | M30: 48568.962 | N30: 92277.449 | O30: 119503.558 | P30: 1057952.914
B31: WA | C31: 0001 | D31: 290082617.8 | E31: 227037506.1 | F31: 232576104.7 | G31: 195370733.4 | H31: 159351282.4 | I31: 149010188.6 | J31: 162685830.9 | K31: 204769910.8 | L31: 165623441.1 | M31: 149120500.4 | N31: 180836658.3 | O31: 245231487.1 | P31: 2361696262
C32: 0002 | D32: 698936.276 | E32: 537918.899 | F32: 559959.473 | G32: 456615.868 | H32: 335660.243 | I32: 266055.961 | J32: 279567.73 | K32: 335409.134 | L32: 278108.527 | M32: 292086.625 | N32: 378573.196 | O32: 520127.909 | P32: 4939019.841
C33: 0011 | D33: 57439818.2 | E33: 49814123.36 | F33: 49597716.84 | G33: 45542639.4 | H33: 42858661.33 | I33: 42432407.09 | J33: 44491315.21 | K33: 51053201.44 | L33: 44553774.22 | M33: 41762126.43 | N33: 43172190.27 | O33: 50926222.6 | P33: 563644196.4
C34: 0012 | D34: 7528199.021 | E34: 6143985.862 | F34: 6142389.077 | G34: 5149600.71 | H34: 4089527.741 | I34: 3668289.739 | J34: 3677028.457 | K34: 4157216.859 | L34: 3958714.09 | M34: 3879774.249 | N34: 4555444.733 | O34: 6108206.185 | P34: 59058376.72
C35: 0021 | D35: 122241828 | E35: 110329898.2 | F35: 109199871.4 | G35: 108414515 | H35: 109898845 | I35: 111196835.4 | J35: 112687625.1 | K35: 122191477.4 | L35: 111231103.3 | M35: 108166165.9 | N35: 106647354.9 | O35: 116049949.9 | P35: 1348255469
C36: 0022 | D36: 3695224.88 | E36: 3069712 | F36: 3024058.96 | G36: 2676218.56 | H36: 2374370.24 | I36: 2216276.8 | J36: 2227914.72 | K36: 2567959.92 | L36: 2479779.68 | M36: 2282010 | N36: 2403932.56 | O36: 3066998.32 | P36: 32084456.64
C37: 0025 | D37: 85895739.5 | E37: 82389792.7 | F37: 59452404.5 | G37: 91719050 | H37: 50375927.6 | I37: 94067376.9 | J37: 91430986 | K37: 95462593.19 | L37: 98727948.69 | M37: 89411353.7 | N37: 95120660.88 | O37: 88922599.9 | P37: 1022976434
C38: 0030 | D38: 8400 | E38: 8140 | F38: 10492.6 | G38: 672678.255 | H38: 2875569.158 | I38: 5388708.768 | J38: 6825279.144 | K38: 6313288.567 | L38: 5757755.392 | M38: 2982402.365 | N38: 485646.724 | O38: 5945.203 | P38: 31334306.18
C39: 0031 | D39: 4871955.838 | E39: 4012886.157 | F39: 3933829.229 | G39: 4293787.972 | H39: 6634148.161 | I39: 12227010.18 | J39: 14748107.57 | K39: 19821419.41 | L39: 16784962.87 | M39: 9329693.423 | N39: 5515307.437 | O39: 3736712.663 | P39: 105909820.9
C40: 0032 | D40: 319449.84 | E40: 274299.122 | F40: 282325.971 | G40: 357364.776 | H40: 616418.366 | I40: 900917.601 | J40: 1510565.918 | K40: 1881129.701 | L40: 1256229.725 | M40: 627608.143 | N40: 281631.113 | O40: 255625.077 | P40: 8563565.353
C41: 0041 | D41: 3880 | E41: 3513.467 | F41: 3521.711 | G41: 3822.535 | H41: 3734.434 | I41: 3557 | J41: 3828.766 | K41: 788.79 | L41: 6159.8 | M41: 3687.933 | N41: 3825.172 | O41: 3836.164 | P41: 44155.772
C42: 0042 | D42: 838565.615 | E42: 738160.1037 | F42: 730337.5905 | G42: 749459.8461 | H42: 789057.913 | I42: 756007.3 | J42: 744118.1567 | K42: 803308.566 | L42: 753224.268 | M42: 782225.086 | N42: 748764.297 | O42: 781373.5611 | P42: 9214602.303
C43: 0044 | D43: 16765.2 | E43: 15419.099 | F43: 15340.288 | G43: 15992.301 | H43: 15961.266 | I43: 15880.8 | J43: 15999.666 | K43: 15302.999 | L43: 21135.165 | M43: 17249.065 | N43: 17951.249 | O43: 18740.103 | P43: 201737.201
C44: 0045 | D44: 38423.135 | E44: 35769.569 | F44: 37961.103 | G44: 35920.475 | H44: 37106.401 | I44: 39165.436 | J44: 31779.4 | K44: 32524.399 | L44: 35130.567 | M44: 33323.9 | N44: 34996.755 | O44: 37467.851 | P44: 429568.991
C45: 0046 | D45: 99372.054 | E45: 89516.599 | F45: 70893.06766 | G45: 90965.236 | H45: 95519.964 | I45: 92416.929 | J45: 91028.333 | K45: 93064.664 | L45: 80159.397 | M45: 84168.734 | N45: 96310.506 | O45: 94370.475 | P45: 1077785.959
C46: 0047 | D46: 441811.024 | E46: 408057.9284 | F46: 407399.725 | G46: 390020.0426 | H46: 406203.656 | I46: 417708.836 | J46: 411730.2136 | K46: 415332.44 | L46: 422618.795 | M46: 401873.581 | N46: 404825.763 | O46: 427092.694 | P46: 4954674.699
C47: 0048 | D47: 238692.97 | E47: 214711.842 | F47: 208808.4523 | G47: 217388.3007 | H47: 217937.796 | I47: 219539.967 | J47: 218956.396 | K47: 218547.301 | L47: 217027.03 | M47: 212307.563 | N47: 211072.059 | O47: 224516.939 | P47: 2619506.616
C48: 0058 | D48: 0 | E48: 0 | F48: 0 | G48: 0 | H48: 0 | I48: 0 | J48: 0 | K48: 0 | L48: 0 | M48: 0 | N48: 0 | O48: 0 | P48: 0
C49: 0058A | D49: 0 | E49: 0 | F49: 0 | G49: 0 | H49: 0 | I49: 0 | J49: 0 | K49: 0 | L49: 0 | M49: 0 | N49: 0 | O49: 0 | P49: 0
C50: 0095 | D50: 0 | E50: 0 | F50: 0 | G50: 0 | H50: 0 | I50: 0 | J50: 0 | K50: 0 | L50: 0 | M50: 0 | N50: 0 | O50: 0 | P50: 0
C51: 0099 | D51: 0 | E51: 0 | F51: 0 | G51: 0 | H51: 0 | I51: 0 | J51: 0 | K51: 0 | L51: 0 | M51: 0 | N51: 0 | O51: 0 | P51: 0
C52: 025B | D52: 0 | E52: 0 | F52: 0 | G52: 0 | H52: 0 | I52: 0 | J52: 0 | K52: 0 | L52: 0 | M52: 0 | N52: 0 | O52: 0 | P52: 0
C53: Total | D53: 574459679.3 | E53: 485123411 | F53: 466253414.7 | G53: 456156772.8 | H53: 380975931.7 | I53: 422918343.3 | J53: 442081661.7 | K53: 510132475.5 | L53: 452187272.6 | M53: 409388557.2 | N53: 440915145.9 | O53: 516411272.7 | P53: 5557003938
B54: Total | D54: 872246266.2 | E54: 746171510.2 | F54: 729163334.4 | G54: 702551280.2 | H54: 545179424.3 | I54: 642502745.4 | J54: 671537371.2 | K54: 768406971.8 | L54: 708880339.5 | M54: 637132304.2 | N54: 678735246.4 | O54: 794177227.1 | P54: 8496684021
A55: GD | B55: ID | C55: 0101 | D55: 10887981.29 | E55: 8516749.48 | F55: 8963246.038 | G55: 6385724.178 | H55: 2989311.052 | I55: 1501710.311 | J55: 1286735.742 | K55: 1008619.027 | L55: 1269665.255 | M55: 2846567.342 | N55: 5490291.02 | O55: 9409204.713 | P55: 60555805.45
C56: 0111 | D56: 3482055.762 | E56: 2853792.209 | F56: 3105227.302 | G56: 2379763.233 | H56: 1527343.894 | I56: 1153998.145 | J56: 1061821.678 | K56: 978496.1199 | L56: 1040099.208 | M56: 1412798.417 | N56: 2124910.194 | O56: 3106627.937 | P56: 24226934.1
C57: 0112 | D57: 3610.002 | E57: 3434.6 | F57: 3651.734 | G57: 34433.373 | H57: 30469.724 | I57: 77210.729 | J57: 69107.268 | K57: 52053.217 | L57: 111659.889 | M57: 76892.715 | N57: 42233.342 | O57: 1799.868 | P57: 506556.461
C58: 0146 | D58: 294520 | E58: 314847 | F58: 314258 | G58: 304591 | H58: 335551 | I58: 300325 | J58: 277570 | K58: 224711 | L58: 256279 | M58: 249077 | N58: 406722 | O58: 296829 | P58: 3575280
C59: 0147 | D59: 159175 | E59: 164294 | F59: 141761 | G59: 141841 | H59: 154746 | I59: 156745 | J59: 135991 | K59: 143389 | L59: 138256 | M59: 139547 | N59: 157282 | O59: 153333 | P59: 1786360
C60: 0158 | D60: 0 | E60: 0 | F60: 0 | G60: 0 | H60: 0 | I60: 0 | J60: 0 | K60: 0 | L60: 0 | M60: 0 | N60: 0 | O60: 0 | P60: 0
C61: 0159 | D61: 5046980 | E61: 4050910 | F61: 4368194 | G61: 2790919 | H61: 2825595 | I61: 2485062 | J61: 2559377 | K61: 2920497 | L61: 2624860 | M61: 3437250 | N61: 3641688 | O61: 4321115 | P61: 41072447
C62: 0199 | D62: 0 | E62: 0 | F62: 0 | G62: 0 | H62: 0 | I62: 0 | J62: 0 | K62: 0 | L62: 0 | M62: 0 | N62: 0 | O62: 0 | P62: 0
C63: Total | D63: 19874322.06 | E63: 15904027.29 | F63: 16896338.07 | G63: 12037271.78 | H63: 7863016.67 | I63: 5675051.185 | J63: 5390602.689 | K63: 5327765.363 | L63: 5440819.352 | M63: 8162132.474 | N63: 11863126.56 | O63: 17288909.52 | P63: 131723383
B64: OR | C64: 0410 | D64: 8420896.714 | E64: 6771931.006 | F64: 7374678.341 | G64: 5048939.399 | H64: 2974644.153 | I64: 1527475.194 | J64: 1163342.952 | K64: 986546.5728 | L64: 1145265.986 | M64: 1864481.729 | N64: 4248351.184 | O64: 7410703.817 | P64: 48937257.05
C65: 0420 | D65: 4526068.715 | E65: 3605601.875 | F65: 3895457.215 | G65: 2788041.915 | H65: 1698162.915 | I65: 1027033.901 | J65: 854381.9679 | K65: 773518.5695 | L65: 869381.2001 | M65: 1136453.159 | N65: 2250269.127 | O65: 3868412.386 | P65: 27292782.94
C66: 0424 | D66: 479564.5206 | E66: 417140.9028 | F66: 421529.137 | G66: 391014.195 | H66: 331407.88 | I66: 262764.376 | J66: 238675.433 | K66: 228114.06 | L66: 236027.944 | M66: 257203.606 | N66: 340460.4883 | O66: 450554.774 | P66: 4054457.317
C67: 0440 | D67: 468342.171 | E67: 444510.013 | F67: 414485.006 | G67: 395762.153 | H67: 386369.765 | I67: 325570.703 | J67: 297368.011 | K67: 347013.557 | L67: 453612.314 | M67: 320742.171 | N67: 343698.4375 | O67: 476072.723 | P67: 4673547.025
C68: 0444 | D68: 74.497 | E68: 1.212 | F68: 0 | G68: 0 | H68: 109.02 | I68: 11294.37 | J68: 17233.749 | K68: 15567.943 | L68: 96944.556 | M68: 15530.953 | N68: 8125.154 | O68: 9390.509 | P68: 174271.963
C69: 0447B | D69: 211289 | E69: 851 | F69: 7315 | G69: 4206 | H69: 7143 | I69: 0 | J69: 2905 | K69: 4101 | L69: 2106 | M69: 2563 | N69: 4066 | O69: 2228 | P69: 248773
C70: 0447R | D70: 304283 | E70: 329608 | F70: 299488 | G70: 327105 | H70: 299480 | I70: 281883 | J70: 275307 | K70: 255384 | L70: 281803 | M70: 254464 | N70: 253298 | O70: 197430 | P70: 3359533
C71: 0456 | D71: 3674565 | E71: 3835979 | F71: 3541543 | G71: 3952813 | H71: 3587940 | I71: 3374854 | J71: 3264308 | K71: 2850833 | L71: 3010776 | M71: 2956263 | N71: 3316325 | O71: 3315057 | P71: 40681256
C72: 0460 | D72: 0 | E72: 0 | F72: 0 | G72: 0 | H72: 0 | I72: 0 | J72: 0 | K72: 0 | L72: 0 | M72: 0 | N72: 0 | O72: 0 | P72: 0
C73: 0499 | D73: 0 | E73: 0 | F73: 0 | G73: 0 | H73: 0 | I73: 0 | J73: 0 | K73: 0 | L73: 0 | M73: 0 | N73: 0 | O73: 0 | P73: 0
C74: 447B | D74: 0 | E74: 0 | F74: 0 | G74: 0 | H74: 0 | I74: 0 | J74: 0 | K74: 0 | L74: 0 | M74: 0 | N74: 0 | O74: 0 | P74: 0
C75: 0447M | E75: 231136 | F75: 211346 | G75: 238443 | H75: 226352 | I75: 217429 | J75: 204793 | K75: 202981 | L75: 211070 | M75: 195158 | N75: 204750 | O75: 157289 | P75: 2300747
C76: Total | D76: 18085083.62 | E76: 15636759.01 | F76: 16165841.7 | G76: 13146324.66 | H76: 9511608.733 | I76: 7028304.543 | J76: 6318315.113 | K76: 5664059.702 | L76: 6306987 | M76: 7002859.618 | N76: 10969343.39 | O76: 15887138.21 | P76: 131722625.3
B77: WA | C77: 0101 | D77: 23880075.93 | E77: 17388420.81 | F77: 18750439.56 | G77: 12798699.4 | H77: 6113675.146 | I77: 2885593.403 | J77: 2441175.124 | K77: 2083856.552 | L77: 2439745.767 | M77: 5289114.087 | N77: 10830584.17 | O77: 18925820.35 | P77: 123827200.3
C78: 0102 | D78: 27405.474 | E78: 20048.032 | F78: 22239.391 | G78: 15331.89303 | H78: 7569.75944 | I78: 3124.73997 | J78: 2557.083 | K78: 1951.47419 | L78: 2422.07189 | M78: 6224.857 | N78: 12091.3036 | O78: 20175.69571 | P78: 141141.7748
C79: 0111 | D79: 8000511.648 | E79: 6543418.91 | F79: 6783840.944 | G79: 5155334.466 | H79: 3139638.423 | I79: 1890738.333 | J79: 1576585.003 | K79: 1446383.726 | L79: 1606620.426 | M79: 2554353.753 | N79: 4314672.648 | O79: 14150238.71 | P79: 57162336.99
C80: 0112 | D80: 17696.584 | E80: 17941.822 | F80: 13354.005 | G80: 11289.88 | H80: 5892.768 | I80: 5577.36 | J80: 4704.081 | K80: 4652.562 | L80: 7056.882 | M80: 9923.38 | N80: 17155.088 | O80: 17027.964 | P80: 132272.376
C81: 0121 | D81: 482275.987 | E81: 406354.237 | F81: 422670.682 | G81: 351525.346 | H81: 292745.365 | I81: 274869.379 | J81: 256893.0217 | K81: 270466.209 | L81: 267299.682 | M81: 316924.913 | N81: 380776.489 | O81: -7073546.24 | P81: -3350744.929
C82: 0122 | D82: 65294.612 | E82: 48825.788 | F82: 51647.355 | G82: 46438.08 | H82: 39511.659 | I82: 28453.558 | J82: 23989.278 | K82: 22970.118 | L82: 24853.434 | M82: 25795.748 | N82: 31468.652 | O82: 53121.189 | P82: 462369.471
C83: 0132 | D83: 139102.279 | E83: 117327.56 | F83: 113117.076 | G83: 93219.128 | H83: 72900.841 | I83: 47469.585 | J83: 41737.258 | K83: 43515.436 | L83: 44833.752 | M83: 68693.989 | N83: 88518.619 | O83: 114831.204 | P83: 985266.727
C84: 0146 | D84: 3967685 | E84: 3629622 | F84: 3567188 | G84: 3349134 | H84: 3031743 | I84: 2500055 | J84: 2416869 | K84: 2200204 | L84: 2275935 | M84: 2340543 | N84: 3067907 | O84: 3261051 | P84: 35607936
C85: 0147 | D85: 282077 | E85: 39173 | F85: 134413 | G85: 54477 | H85: 96277 | I85: 240428 | J85: 144453 | K85: 967242 | L85: 1028750 | M85: 695787 | N85: 1062005 | O85: 660451 | P85: 5405533
C86: 0148 | D86: 4983146 | E86: 4873335 | F86: 4412634 | G86: 4246981 | H86: 3925542 | I86: 3690093 | J86: 3611778 | K86: 3571396 | L86: 3533977 | M86: 3697655 | N86: 4111847 | O86: 4453688 | P86: 49112072
C87: 0158 | D87: 0 | E87: 0 | F87: 0 | G87: 0 | H87: 0 | I87: 0 | J87: 0 | K87: 0 | L87: 0 | M87: 0 | N87: 0 | O87: 0 | P87: 0
C88: 0158A | D88: 0 | E88: 0 | F88: 0 | G88: 0 | H88: 0 | I88: 0 | J88: 0 | K88: 0 | L88: 0 | M88: 0 | N88: 0 | O88: 0 | P88: 0
C89: 0199 | D89: 0 | E89: 0 | F89: 0 | G89: 0 | H89: 0 | I89: 0 | J89: 0 | K89: 0 | L89: 0 | M89: 0 | N89: 0 | O89: 0 | P89: 0
C90: Total | D90: 41845270.52 | E90: 33084467.16 | F90: 34271544.02 | G90: 26122430.2 | H90: 16725495.96 | I90: 11566402.36 | J90: 10520740.85 | K90: 10612638.08 | L90: 11231494.01 | M90: 15005015.73 | N90: 23917025.97 | O90: 34582858.88 | P90: 269485383.7
B91: Total | D91: 79804676.19 | E91: 64625253.46 | F91: 67333723.79 | G91: 51306026.64 | H91: 34100121.36 | I91: 24269758.09 | J91: 22229658.65 | K91: 21604463.14 | L91: 22979300.37 | M91: 30170007.82 | N91: 46749495.92 | O91: 67758906.6 | P91: 532931392
A92: Total | D92: 952050942.4 | E92: 810796763.6 | F92: 796497058.2 | G92: 753857306.9 | H92: 579279545.7 | I92: 666772503.5 | J92: 693767029.8 | K92: 790011434.9 | L92: 731859639.8 | M92: 667302312 | N92: 725484742.3 | O92: 861936133.7 | P92: 9029615413
A93: Page 2 of 4 | K93: Run Date: Jan 8, 2019
B95: Billed Usage
B96: WA Sch 1/2 | D96: =D31+D32 -> 290781554.1 | E96: =E31+E32 -> 227575425 | F96: 233136064.2 | G96: 195827349.3 | H96: 159686942.7 | I96: 149276244.6 | J96: 162965398.6 | K96: 205105319.9 | L96: 165901549.6 | M96: 149412587.1 | N96: 181215231.5 | O96: 245751615 | P96: =SUM(D96:O96) -> 2366635282
B97: WA Sch 11/12 | D97: =D33+D34 -> 64968017.22 | E97: =E33+E34 -> 55958109.22 | F97: 55740105.92 | G97: 50692240.11 | H97: 46948189.07 | I97: 46100696.83 | J97: 48168343.66 | K97: 55210418.3 | L97: 48512488.31 | M97: 45641900.68 | N97: 47727635.01 | O97: 57034428.78 | P97: =SUM(D97:O97) -> 622702573.1
B98: WA Sch 21/22 | D98: =D35+D36 -> 125937052.8 | E98: =E35+E36 -> 113399610.2 | F98: 112223930.4 | G98: 111090733.6 | H98: 112273215.2 | I98: 113413112.2 | J98: 114915539.8 | K98: 124759437.3 | L98: 113710882.9 | M98: 110448175.9 | N98: 109051287.4 | O98: 119116948.3 | P98: 1380339926
B99: WA Sch 25 | D99: =D37+D52 -> 85895739.5 | E99: =E37+E52 -> 82389792.7 | F99: 59452404.5 | G99: 91719050 | H99: 50375927.6 | I99: 94067376.9 | J99: 91430986 | K99: 95462593.19 | L99: 98727948.69 | M99: 89411353.7 | N99: 95120660.88 | O99: 88922599.9 | P99: 1022976434
B100: WA Sch 30/31/32 | D100: =D38+D39+D40 -> 5199805.678 | E100: =E38+E39+E40 -> 4295325.279 | F100: 4226647.8 | G100: 5323831.003 | H100: 10126135.69 | I100: 18516636.55 | J100: 23083952.64 | K100: 28015837.67 | L100: 23798947.99 | M100: 12939703.93 | N100: 6282585.274 | O100: 3998282.943 | P100: 145807692.4
B101: WA St & Area Lights | D101: =SUM(D41:D47) -> 1677509.998 | E101: =SUM(E41:E47) -> 1505148.608 | F101: 1474261.937 | G101: 1503568.736 | H101: 1565521.43 | I101: 1544276.268 | J101: 1517440.931 | K101: 1578869.159 | L101: 1535455.022 | M101: 1534835.862 | N101: 1517745.801 | O101: 1587397.787 | P101: 18542031.54
B102: ID Sch 1 | D102: =D6+D28 -> 138450884.1 | E102: =E6+E28 -> 113509558 | F102: 115712978.3 | G102: 98304116.16 | H102: 76625045.03 | I102: 71762388.66 | J102: 80390371.05 | K102: 94285935.11 | L102: 75907615.46 | M102: 73452321.34 | N102: 91595336.79 | O102: 125732895.8 | P102: 1155729446
B103: ID Sch 11/12 | D103: =D7+D8+D29 -> 38776947.66 | E103: =E7+E8+E29 -> 34222891.01 | F103: 33911944.39 | G103: 30519983.49 | H103: 27431212.74 | I103: 27276460.54 | J103: 29343590.88 | K103: 32692469.09 | L103: 29175357.11 | M103: 26500587.7 | N103: 28874313.64 | O103: 36001115.65 | P103: 374726873.9
B104: ID Sch 21/22 | D104: =D9+D10 -> 56729337.87 | E104: =E9+E10 -> 53439400.59 | F104: 52467140.04 | G104: 51275677.41 | H104: 49426007.62 | I104: 49581862.36 | J104: 51066127.73 | K104: 54943397.14 | L104: 51872432.02 | M104: 48195762.45 | N104: 49098362.84 | O104: 54839761.8 | P104: 622935269.9
B105: ID Sch 25 | D105: =D11+D25 -> 28245246.8 | E105: =E11+E25 -> 26107649.1 | F105: 22507242.22 | G105: 27375213.06 | H105: 5514471.86 | I105: 27431445.85 | J105: 25765555.6 | K105: 27505011 | L105: 28587593.54 | M105: 26251537.53 | N105: 28333802.39 | O105: 26332786.93 | P105: 299957555.9
B106: ID Sch 25P | D106: =D26 -> 31034360 | E106: =E26 -> 29136680 | F106: 33893450 | G106: 34523990 | H106: 0 | I106: 36069710 | J106: 33600660 | K106: 38255050 | L106: 62513600 | M106: 47084840 | N106: 35905670 | O106: 30311220 | P106: 412329230
B107: ID Sch 31/32 | D107: =D12+D13 -> 3674819.217 | E107: =E12+E13 -> 3557713.261 | F107: 3471292.054 | G107: 3434552.964 | H107: 4237335.598 | I107: 6509434.64 | J107: 8334800.094 | K107: 9633952.029 | L107: 7676661.285 | M107: 5236492.435 | N107: 3101449.56 | O107: 3575745.18 | P107: 62444248.32
B108: ID St & Area Lights | D108: =SUM(D14:D21) -> 874991.3087 | E108: =SUM(E14:E21) -> 1074207.234 | F108: 945872.6935 | G108: 960974.364 | H108: 969419.75 | I108: 953100.0294 | J108: 954604.143 | K108: 958681.917 | L108: 959807.501 | M108: 1022205.535 | N108: 911165.3258 | O108: 972429.007 | P108: 11557458.81
B110: WA Sch 101/102 | D110: =D77+D78 -> 23907481.41 | E110: =E77+E78 -> 17408468.84 | F110: 18772678.96 | G110: 12814031.3 | H110: 6121244.905 | I110: 2888718.143 | J110: 2443732.207 | K110: 2085808.027 | L110: 2442167.839 | M110: 5295338.944 | N110: 10842675.48 | O110: 18945996.05 | P110: =SUM(D110:O110) -> 123968342.1
B111: WA Sch 111/112 | D111: =D79+D80 -> 8018208.232 | E111: =E79+E80 -> 6561360.732 | F111: 6797194.949 | G111: 5166624.346 | H111: 3145531.191 | I111: 1896315.694 | J111: 1581289.084 | K111: 1451036.288 | L111: 1613677.308 | M111: 2564277.133 | N111: 4331827.736 | O111: 14167266.68 | P111: =SUM(D111:O111) -> 57294609.37
B112: WA Sch 121/122 | D112: =D81+D82 -> 547570.599 | E112: =E81+E82 -> 455180.025 | F112: 474318.037 | G112: 397963.426 | H112: 332257.024 | I112: 303322.937 | J112: 280882.2997 | K112: 293436.327 | L112: 292153.116 | M112: 342720.661 | N112: 412245.141 | O112: -7020425.051 | P112: -2888375.458
B113: WA Sch 131/132 | D113: =D83 -> 139102.279 | E113: =E83 -> 117327.56 | F113: 113117.076 | G113: 93219.128 | H113: 72900.841 | I113: 47469.585 | J113: 41737.258 | K113: 43515.436 | L113: 44833.752 | M113: 68693.989 | N113: 88518.619 | O113: 114831.204 | P113: 985266.727
B114: WA Sch 146 | D114: =D84 -> 3967685 | E114: =E84 -> 3629622 | F114: 3567188 | G114: 3349134 | H114: 3031743 | I114: 2500055 | J114: 2416869 | K114: 2200204 | L114: 2275935 | M114: 2340543 | N114: 3067907 | O114: 3261051 | P114: 35607936
B115: WA Special Contracts | D115: =D85+D86 -> 5265223 | E115: =E85+E86 -> 4912508 | F115: 4547047 | G115: 4301458 | H115: 4021819 | I115: 3930521 | J115: 3756231 | K115: 4538638 | L115: 4562727 | M115: 4393442 | N115: 5173852 | O115: 5114139 | P115: 54517605
B116: ID Sch 101 | D116: =D55 -> 10887981.29 | E116: =E55 -> 8516749.48 | F116: 8963246.038 | G116: 6385724.178 | H116: 2989311.052 | I116: 1501710.311 | J116: 1286735.742 | K116: 1008619.027 | L116: 1269665.255 | M116: 2846567.342 | N116: 5490291.02 | O116: 9409204.713 | P116: 60555805.45
B117: ID Sch 111/112 | D117: =D56+D57 -> 3485665.764 | E117: =E56+E57 -> 2857226.809 | F117: 3108879.036 | G117: 2414196.606 | H117: 1557813.618 | I117: 1231208.874 | J117: 1130928.946 | K117: 1030549.337 | L117: 1151759.097 | M117: 1489691.132 | N117: 2167143.536 | O117: 3108427.805 | P117: 24733490.56
B118: ID Sch 131/132 | D118: =0 -> 0 | E118: =0 -> 0 | F118: =0 -> 0 | G118: =0 -> 0 | H118: =0 -> 0 | I118: =0 -> 0 | J118: =0 -> 0 | K118: =0 -> 0 | L118: =0 -> 0 | M118: =0 -> 0 | N118: =0 -> 0 | O118: =0 -> 0 | P118: 0
B119: ID Sch 146 | D119: =D58 -> 294520 | E119: =E58 -> 314847 | F119: 314258 | G119: 304591 | H119: 335551 | I119: 300325 | J119: 277570 | K119: 224711 | L119: 256279 | M119: 249077 | N119: 406722 | O119: 296829 | P119: 3575280
B120: ID Special Contracts | D120: =D59+D61 -> 5206155 | E120: =E59+E61 -> 4215204 | F120: 4509955 | G120: 2932760 | H120: 2980341 | I120: 2641807 | J120: 2695368 | K120: 3063886 | L120: 2763116 | M120: 3576797 | N120: 3798970 | O120: 4474448 | P120: 42858807
B121: OR Sch 410 | D121: =D64 -> 8420896.714 | E121: =E64 -> 6771931.006 | F121: 7374678.341 | G121: 5048939.399 | H121: 2974644.153 | I121: 1527475.194 | J121: 1163342.952 | K121: 986546.5728 | L121: 1145265.986 | M121: 1864481.729 | N121: 4248351.184 | O121: 7410703.817 | P121: 48937257.05
B122: OR Sch 420 | D122: =D65 -> 4526068.715 | E122: 3605601.875 | F122: 3895457.215 | G122: 2788041.915 | H122: 1698162.915 | I122: 1027033.901 | J122: 854381.9679 | K122: 773518.5695 | L122: 869381.2001 | M122: 1136453.159 | N122: 2250269.127 | O122: 3868412.386 | P122: 27292782.94
B123: OR Sch 424 | D123: 479564.5206 | E123: 417140.9028 | F123: 421529.137 | G123: 391014.195 | H123: 331407.88 | I123: 262764.376 | J123: 238675.433 | K123: 228114.06 | L123: 236027.944 | M123: 257203.606 | N123: 340460.4883 | O123: 450554.774 | P123: 4054457.317
B124: OR Sch 440 | D124: 468342.171 | E124: 444510.013 | F124: 414485.006 | G124: 395762.153 | H124: 386369.765 | I124: 325570.703 | J124: 297368.011 | K124: 347013.557 | L124: 453612.314 | M124: 320742.171 | N124: 343698.4375 | O124: 476072.723 | P124: 4673547.025
B125: OR Sch 444 | D125: 74.497 | E125: 1.212 | F125: 0 | G125: 0 | H125: 109.02 | I125: 11294.37 | J125: 17233.749 | K125: 15567.943 | L125: 96944.556 | M125: 15530.953 | N125: 8125.154 | O125: 9390.509 | P125: 174271.963
B126: OR Sch 456 | D126: =D71 -> 3674565 | E126: =E71 -> 3835979 | F126: 3541543 | G126: 3952813 | H126: 3587940 | I126: 3374854 | J126: 3264308 | K126: 2850833 | L126: 3010776 | M126: 2956263 | N126: 3316325 | O126: 3315057 | P126: 40681256
B127: OR Special Contracts | D127: =D69+D70+D75 -> 515572 | E127: =E69+E70+E75 -> 561595 | F127: 518149 | G127: 569754 | H127: 532975 | I127: 499312 | J127: 483005 | K127: 462466 | L127: 494979 | M127: 452185 | N127: 462114 | O127: 356947 | P127: 5909053

Sheet Unbilled Usage
H1: Unbilled Usage 12 Month-Ended | L1: Data Source: Financial Reporting
L2: Data Updated Daily
A4: Usage Qty | E4: 201801 | F4: 201802 | G4: 201803 | H4: 201804 | I4: 201805 | J4: 201806 | K4: 201807 | L4: 201808 | M4: 201809 | N4: 201810 | O4: 201811 | P4: 201812 | Q4: Total
A5: Service | B5: State Code | C5: Rate Sch | D5: Journal Source
A6: ED | B6: ID | C6: 0001 | D6: REVUNBL-E | E6: 62854399 | F6: 0 | G6: 0 | H6: 0 | I6: 0 | J6: 0 | K6: 0 | L6: 0 | M6: 0 | N6: 0 | O6: 0 | P6: 0 | Q6: 62854399
D7: REVUNBL-ER | E7: -74576888 | F7: -62854399 | G7: 0 | H7: 0 | I7: 0 | J7: 0 | K7: 0 | L7: 0 | M7: 0 | N7: 0 | O7: 0 | P7: 0 | Q7: -137431287
D8: Total | E8: -11722489 | F8: -62854399 | G8: 0 | H8: 0 | I8: 0 | J8: 0 | K8: 0 | L8: 0 | M8: 0 | N8: 0 | O8: 0 | P8: 0 | Q8: -74576888
C9: 0011 | D9: REVUNBL-E | E9: 15812015 | F9: 0 | G9: 0 | H9: 0 | I9: 0 | J9: 0 | K9: 0 | L9: 0 | M9: 0 | N9: 0 | O9: 0 | P9: 0 | Q9: 15812015
D10: REVUNBL-ER | E10: -19532972 | F10: -15812015 | G10: 0 | H10: 0 | I10: 0 | J10: 0 | K10: 0 | L10: 0 | M10: 0 | N10: 0 | O10: 0 | P10: 0 | Q10: -35344987
D11: Total | E11: -3720957 | F11: -15812015 | G11: 0 | H11: 0 | I11: 0 | J11: 0 | K11: 0 | L11: 0 | M11: 0 | N11: 0 | O11: 0 | P11: 0 | Q11: -19532972
C12: 0012 | D12: REVUNBL-ER | E12: -1718902 | F12: 0 | G12: 0 | H12: 0 | I12: 0 | J12: 0 | K12: 0 | L12: 0 | M12: 0 | N12: 0 | O12: 0 | P12: 0 | Q12: -1718902
D13: Total | E13: -1718902 | F13: 0 | G13: 0 | H13: 0 | I13: 0 | J13: 0 | K13: 0 | L13: 0 | M13: 0 | N13: 0 | O13: 0 | P13: 0 | Q13: -1718902
C14: 0021 | D14: REVUNBL-ER | E14: -33127921 | F14: 0 | G14: 0 | H14: 0 | I14: 0 | J14: 0 | K14: 0 | L14: 0 | M14: 0 | N14: 0 | O14: 0 | P14: 0 | Q14: -33127921
D15: Total | E15: -33127921 | F15: 0 | G15: 0 | H15: 0 | I15: 0 | J15: 0 | K15: 0 | L15: 0 | M15: 0 | N15: 0 | O15: 0 | P15: 0 | Q15: -33127921
C16: 0022 | D16: REVUNBL-ER | E16: -429725 | F16: 0 | G16: 0 | H16: 0 | I16: 0 | J16: 0 | K16: 0 | L16: 0 | M16: 0 | N16: 0 | O16: 0 | P16: 0 | Q16: -429725
D17: Total | E17: -429725 | F17: 0 | G17: 0 | H17: 0 | I17: 0 | J17: 0 | K17: 0 | L17: 0 | M17: 0 | N17: 0 | O17: 0 | P17: 0 | Q17: -429725
C18: 0031 | D18: REVUNBL-ER | E18: -1836099 | F18: 0 | G18: 0 | H18: 0 | I18: 0 | J18: 0 | K18: 0 | L18: 0 | M18: 0 | N18: 0 | O18: 0 | P18: 0 | Q18: -1836099
D19: Total | E19: -1836099 | F19: 0 | G19: 0 | H19: 0 | I19: 0 | J19: 0 | K19: 0 | L19: 0 | M19: 0 | N19: 0 | O19: 0 | P19: 0 | Q19: -1836099
C20: 0032 | D20: REVUNBL-ER | E20: -117198 | F20: 0 | G20: 0 | H20: 0 | I20: 0 | J20: 0 | K20: 0 | L20: 0 | M20: 0 | N20: 0 | O20: 0 | P20: 0 | Q20: -117198
D21: Total | E21: -117198 | F21: 0 | G21: 0 | H21: 0 | I21: 0 | J21: 0 | K21: 0 | L21: 0 | M21: 0 | N21: 0 | O21: 0 | P21: 0 | Q21: -117198
C22: 011 | D22: REVUNBL-E | E22: 196830 | F22: 16554846 | G22: 15635784 | H22: 13863705 | I22: 13615146 | J22: 13528822 | K22: 17112814 | L22: 14694541 | M22: 11795392 | N22: 13591262 | O22: 16810174 | P22: 17036748 | Q22: 164436064
D23: REVUNBL-ER | F23: -196830 | G23: -16554846 | H23: -15635784 | I23: -13863705 | J23: -13615146 | K23: -13528822 | L23: -17112814 | M23: -14694541 | N23: -11795392 | O23: -13591262 | P23: -16810174 | Q23: -147399316
D24: Total | E24: 196830 | F24: 16358016 | G24: -919062 | H24: -1772079 | I24: -248559 | J24: -86324 | K24: 3583992 | L24: -2418273 | M24: -2899149 | N24: 1795870 | O24: 3218912 | P24: 226574 | Q24: 17036748
C25: 012 | D25: REVUNBL-E | E25: 1476225 | F25: 1472965 | G25: 1418631 | H25: 1128441 | I25: 911584 | J25: 815381 | K25: 1028313 | L25: 908403 | M25: 759283 | N25: 961745 | O25: 1370078 | P25: 1523402 | Q25: 13774451
D26: REVUNBL-ER | F26: -1476225 | G26: -1472965 | H26: -1418631 | I26: -1128441 | J26: -911584 | K26: -815381 | L26: -1028313 | M26: -908403 | N26: -759283 | O26: -961745 | P26: -1370078 | Q26: -12251049
D27: Total | E27: 1476225 | F27: -3260 | G27: -54334 | H27: -290190 | I27: -216857 | J27: -96203 | K27: 212932 | L27: -119910 | M27: -149120 | N27: 202462 | O27: 408333 | P27: 153324 | Q27: 1523402
C28: 021 | D28: REVUNBL-E | E28: 25325468 | F28: 27922293 | G28: 26152158 | H28: 24986910 | I28: 25957193 | J28: 25863714 | K28: 31289571 | L28: 25982473 | M28: 22101073 | N28: 26256707 | O28: 30662130 | P28: 28006319 | Q28: 320506009
D29: REVUNBL-ER | F29: -25325468 | G29: -27922293 | H29: -26152158 | I29: -24986910 | J29: -25957193 | K29: -25863714 | L29: -31289571 | M29: -25982473 | N29: -22101073 | O29: -26256707 | P29: -30662130 | Q29: -292499690
D30: Total | E30: 25325468 | F30: 2596825 | G30: -1770135 | H30: -1165248 | I30: 970283 | J30: -93479 | K30: 5425857 | L30: -5307098 | M30: -3881400 | N30: 4155634 | O30: 4405423 | P30: -2655811 | Q30: 28006319
C31: 022 | D31: REVUNBL-E | E31: 360855 | F31: 352231 | G31: 370078 | H31: 295544 | I31: 277717 | J31: 251864 | K31: 318903 | L31: 268271 | M31: 240995 | N31: 257270 | O31: 347028 | P31: 343311 | Q31: 3684067
D32: REVUNBL-ER | F32: -360855 | G32: -352231 | H32: -370078 | I32: -295544 | J32: -277717 | K32: -251864 | L32: -318903 | M32: -268271 | N32: -240995 | O32: -257270 | P32: -347028 | Q32: -3340756
D33: Total | E33: 360855 | F33: -8624 | G33: 17847 | H33: -74534 | I33: -17827 | J33: -25853 | K33: 67039 | L33: -50632 | M33: -27276 | N33: 16275 | O33: 89758 | P33: -3717 | Q33: 343311
C34: 031 | D34: REVUNBL-E | E34: 1476225 | F34: 1601049 | G34: 1541991 | H34: 1504588 | I34: 1839551 | J34: 2676133 | K34: 3922275 | L34: 3552414 | M34: 2813159 | N34: 2569156 | O34: 1720065 | P34: 1608695 | Q34: 26825301
D35: REVUNBL-ER | F35: -1476225 | G35: -1601049 | H35: -1541991 | I35: -1504588 | J35: -1839551 | K35: -2676133 | L35: -3922275 | M35: -3552414 | N35: -2813159 | O35: -2569156 | P35: -1720065 | Q35: -25216606
D36: Total | E36: 1476225 | F36: 124824 | G36: -59058 | H36: -37403 | I36: 334963 | J36: 836582 | K36: 1246142 | L36: -369861 | M36: -739255 | N36: -244003 | O36: -849091 | P36: -111370 | Q36: 1608695
C37: 032 | D37: REVUNBL-E | E37: 98415 | F37: 96063 | G37: 92519 | H37: 80603 | I37: 82382 | J37: 113619 | K37: 190367 | L37: 177784 | M37: 111226 | N37: 98200 | O37: 97241 | P37: 99150 | Q37: 1337569
D38: REVUNBL-ER | F38: -98415 | G38: -96063 | H38: -92519 | I38: -80603 | J38: -82382 | K38: -113619 | L38: -190367 | M38: -177784 | N38: -111226 | O38: -98200 | P38: -97241 | Q38: -1238419
D39: Total | E39: 98415 | F39: -2352 | G39: -3544 | H39: -11916 | I39: 1779 | J39: 31237 | K39: 76748 | L39: -12583 | M39: -66558 | N39: -13026 | O39: -959 | P39: 1909 | Q39: 99150
C40: 001 | D40: REVUNBL-E | F40: 60135397 | G40: 58564798 | H40: 48549835 | I40: 40725481 | J40: 37845065 | K40: 49817130 | L40: 45099352 | M40: 32734186 | N40: 40460787 | O40: 57938646 | P40: 65141271 | Q40: 537011948
D41: REVUNBL-ER | G41: -60135397 | H41: -58564798 | I41: -48549835 | J41: -40725481 | K41: -37845065 | L41: -49817130 | M41: -45099352 | N41: -32734186 | O41: -40460787 | P41: -57938646 | Q41: -471870677
D42: Total | F42: 60135397 | G42: -1570599 | H42: -10014963 | I42: -7824354 | J42: -2880416 | K42: 11972065 | L42: -4717778 | M42: -12365166 | N42: 7726601 | O42: 17477859 | P42: 7202625 | Q42: 65141271
C43: 025 | D43: REVUNBL-E | H43: 5514472 | I43: 65455690 | J43: 23353787 | K43: 27387310 | L43: 31378615 | M43: 26434177 | N43: 28254820 | O43: 26284114 | P43: 27065983 | Q43: 261128968
D44: REVUNBL-ER | I44: -5514472 | J44: -65455690 | K44: -23353787 | L44: -27387310 | M44: -31378615 | N44: -26434177 | O44: -28254820 | P44: -26284114 | Q44: -234062985
D45: Total | H45: 5514472 | I45: 59941218 | J45: -42101903 | K45: 4033523 | L45: 3991305 | M45: -4944438 | N45: 1820643 | O45: -1970706 | P45: 781869 | Q45: 27065983
C46: 025P | D46: REVUNBL-E | J46: 35849850 | K46: 37927498 | L46: 62513600 | M46: 46333333 | N46: 36250894 | O46: 30311220 | P46: 30311220 | Q46: 279497615
D47: REVUNBL-ER | K47: -35849850 | L47: -37927498 | M47: -62513600 | N47: -46333333 | O47: -36250894 | P47: -30311220 | Q47: -249186395
D48: Total | J48: 35849850 | K48: 2077648 | L48: 24586102 | M48: -16180267 | N48: -10082439 | O48: -5939674 | P48: 0 | Q48: 30311220
C49: Total | E49: -23739273 | F49: 534412 | G49: -4358885 | H49: -7851861 | I49: 52940646 | J49: -8566509 | K49: 28695946 | L49: 15581272 | M49: -41252629 | N49: 5378017 | O49: 16839855 | P49: 5595403 | Q49: 39796394
B50: WA | C50: 0001 | D50: REVUNBL-ER | E50: -148528721 | F50: 0 | G50: -120366856 | H50: -117838911 | I50: 0 | J50: 0 | K50: 0 | L50: 0 | M50: 5524283 | N50: 0 | O50: 0 | P50: 0 | Q50: -381210205
D51: REVUNBL-E | F51: 120366856 | G51: 117838911 | H51: 0 | I51: 0 | J51: 0 | K51: 0 | L51: -5524283 | M51: 0 | N51: 0 | O51: 0 | P51: 0 | Q51: 232681484
D52: Total | E52: -148528721 | F52: 120366856 | G52: -2527945 | H52: -117838911 | I52: 0 | J52: 0 | K52: 0 | L52: -5524283 | M52: 5524283 | N52: 0 | O52: 0 | P52: 0 | Q52: -148528721
C53: 0002 | D53: REVUNBL-ER | E53: -351593 | F53: 0 | G53: 0 | H53: 0 | I53: 0 | J53: 0 | K53: 0 | L53: 0 | M53: 0 | N53: 0 | O53: 0 | P53: 0 | Q53: -351593
D54: Total | E54: -351593 | F54: 0 | G54: 0 | H54: 0 | I54: 0 | J54: 0 | K54: 0 | L54: 0 | M54: 0 | N54: 0 | O54: 0 | P54: 0 | Q54: -351593
C55: 001 | D55: REVUNBL-E | E55: 131744919 | F55: 0 | G55: 0 | H55: 96562318 | I55: 84716237 | J55: 78586377 | K55: 100822517 | L55: 103479910 | M55: 71433400 | N55: 82163972 | O55: 114430432 | P55: 127093842 | Q55: 991033924
D56: REVUNBL-ER | F56: -131744919 | G56: 0 | H56: 0 | I56: -96562318 | J56: -84716237 | K56: -78586377 | L56: -100822517 | M56: -103479910 | N56: -71433400 | O56: -82163972 | P56: -114430432 | Q56: -863940082
D57: Total | E57: 131744919 | F57: -131744919 | G57: 0 | H57: 96562318 | I57: -11846081 | J57: -6129860 | K57: 22236140 | L57: 2657393 | M57: -32046510 | N57: 10730572 | O57: 32266460 | P57: 12663410 | Q57: 127093842
C58: 0011 | D58: REVUNBL-ER | E58: -30705832 | F58: 0 | G58: 0 | H58: 0 | I58: 0 | J58: 0 | K58: 0 | L58: 0 | M58: 0 | N58: 0 | O58: 0 | P58: 0 | Q58: -30705832
D59: Total | E59: -30705832 | F59: 0 | G59: 0 | H59: 0 | I59: 0 | J59: 0 | K59: 0 | L59: 0 | M59: 0 | N59: 0 | O59: 0 | P59: 0 | Q59: -30705832
C60: 0012 | D60: REVUNBL-ER | E60: -3711265 | F60: 0 | G60: 0 | H60: 0 | I60: 0 | J60: 0 | K60: 0 | L60: -2278873 | M60: 0 | N60: 0 | O60: 0 | P60: 0 | Q60: -5990138
D61: REVUNBL-E | K61: 2278873 | L61: 0 | M61: 0 | N61: 0 | O61: 0 | P61: 0 | Q61: 2278873
D62: Total | E62: -3711265 | F62: 0 | G62: 0 | H62: 0 | I62: 0 | J62: 0 | K62: 2278873 | L62: -2278873 | M62: 0 | N62: 0 | O62: 0 | P62: 0 | Q62: -3711265
C63: 002 | D63: REVUNBL-E | E63: 328050 | F63: 288189 | G63: 277558 | H63: 214941 | I63: 178456 | J63: 140329 | K63: 173265 | L63: 160450 | M63: 119949 | N63: 160938 | O63: 239561 | P63: 269574 | Q63: 2551260
D64: REVUNBL-ER | F64: -328050 | G64: -288189 | H64: -277558 | I64: -214941 | J64: -178456 | K64: -140329 | L64: -173265 | M64: -160450 | N64: -119949 | O64: -160938 | P64: -239561 | Q64: -2281686
D65: Total | E65: 328050 | F65: -39861 | G65: -10631 | H65: -62617 | I65: -36485 | J65: -38127 | K65: 32936 | L65: -12815 | M65: -40501 | N65: 40989 | O65: 78623 | P65: 30013 | Q65: 269574
C66: 0021 | D66: REVUNBL-ER | E66: -72193864 | F66: 0 | G66: 0 | H66: -3854976 | I66: 0 | J66: 0 | K66: 0 | L66: 0 | M66: 0 | N66: 0 | O66: 0 | P66: 0 | Q66: -76048840
D67: REVUNBL-E | G67: 3854976 | H67: 0 | I67: 0 | J67: 0 | K67: 0 | L67: 0 | M67: 0 | N67: 0 | O67: 0 | P67: 0 | Q67: 3854976
D68: Total | E68: -72193864 | F68: 0 | G68: 3854976 | H68: -3854976 | I68: 0 | J68: 0 | K68: 0 | L68: 0 | M68: 0 | N68: 0 | O68: 0 | P68: 0 | Q68: -72193864
C69: 0022 | D69: REVUNBL-ER | E69: -1992363 | F69: 0 | G69: 0 | H69: 0 | I69: 0 | J69: 0 | K69: 0 | L69: 0 | M69: 0 | N69: 0 | O69: 0 | P69: 0 | Q69: -1992363
D70: Total | E70: -1992363 | F70: 0 | G70: 0 | H70: 0 | I70: 0 | J70: 0 | K70: 0 | L70: 0 | M70: 0 | N70: 0 | O70: 0 | P70: 0 | Q70: -1992363
C71: 0025 | D71: REVUNBL-E | E71: 11830759 | F71: 0 | G71: 0 | H71: 5446758 | I71: 0 | J71: 0 | K71: 0 | L71: 0 | M71: 0 | N71: 0 | O71: 0 | P71: 0 | Q71: 17277517
D72: REVUNBL-ER | E72: -2136242 | F72: -11830759 | G72: 0 | H72: 0 | I72: -5446758 | J72: 0 | K72: 0 | L72: 0 | M72: 0 | N72: 0 | O72: 0 | P72: 0 | Q72: -19413759
D73: Total | E73: 9694517 | F73: -11830759 | G73: 0 | H73: 5446758 | I73: -5446758 | J73: 0 | K73: 0 | L73: 0 | M73: 0 | N73: 0 | O73: 0 | P73: 0 | Q73: -2136242
C74: 0031 | D74: REVUNBL-ER | E74: -1679835 | F74: 0 | G74: 0 | H74: 0 | I74: 0 | J74: 0 | K74: 0 | L74: 0 | M74: 0 | N74: 0 | O74: 0 | P74: 0 | Q74: -1679835
D75: Total | E75: -1679835 | F75: 0 | G75: 0 | H75: 0 | I75: 0 | J75: 0 | K75: 0 | L75: 0 | M75: 0 | N75: 0 | O75: 0 | P75: 0 | Q75: -1679835
C76: 0032 | D76: REVUNBL-ER | E76: -156264 | F76: 0 | G76: 0 | H76: 0 | I76: 0 | J76: 0 | K76: 0 | L76: 0 | M76: 0 | N76: 0 | O76: 0 | P76: 0 | Q76: -156264
D77: Total | E77: -156264 | F77: 0 | G77: 0 | H77: 0 | I77: 0 | J77: 0 | K77: 0 | L77: 0 | M77: 0 | N77: 0 | O77: 0 | P77: 0 | Q77: -156264
C78: 011 | D78: REVUNBL-E | E78: 25948763 | F78: 26321244 | G78: 24980245 | H78: 22407616 | I78: 22691377 | J78: 22318280 | K78: 27487278 | L78: 24350340 | M78: 19139293 | N78: 22887083 | O78: 27208344 | P78: 26276394 | Q78: 292016257
D79: REVUNBL-ER | F79: -25948763 | G79: -26321244 | H79: -24980245 | I79: -22407616 | J79: -22691377 | K79: -22318280 | L79: -27487278 | M79: -24350340 | N79: -19139293 | O79: -22887083 | P79: -27208344 | Q79: -265739863
D80: Total | E80: 25948763 | F80: 372481 | G80: -1340999 | H80: -2572629 | I80: 283761 | J80: -373097 | K80: 5168998 | L80: -3136938 | M80: -5211047 | N80: 3747790 | O80: 4321261 | P80: -931950 | Q80: 26276394
C81: 012 | D81: REVUNBL-E | E81: 3411721 | F81: 3266140 | G81: 3114821 | H81: 2552426 | I81: 2174229 | J81: 1934806 | K81: 0 | L81: 1988697 | M81: 1707404 | N81: 2137728 | O81: 2882688 | P81: 3165785 | Q81: 28336445
D82: REVUNBL-ER | F82: -3411721 | G82: -3266140 | H82: -3114821 | I82: -2552426 | J82: -2174229 | K82: -1934806 | L82: 0 | M82: -1988697 | N82: -1707404 | O82: -2137728 | P82: -2882688 | Q82: -25170660
D83: Total | E83: 3411721 | F83: -145581 | G83: -151319 | H83: -562395 | I83: -378197 | J83: -239423 | K83: -1934806 | L83: 1988697 | M83: -281293 | N83: 430324 | O83: 744960 | P83: 283097 | Q83: 3165785
C84: 021 | D84: REVUNBL-E | E84: 55178026 | F84: 58150096 | G84: 51101564 | H84: 53278541 | I84: 58100808 | J84: 58325794 | K84: 69470717 | L84: 58149012 | M84: 47703446 | N84: 59213692 | O84: 67185053 | P84: 59753857 | Q84: 695610606
D85: REVUNBL-ER | F85: -55178026 | G85: -58150096 | H85: -51101564 | I85: -53278541 | J85: -58100808 | K85: -58325794 | L85: -69470717 | M85: -58149012 | N85: -47703446 | O85: -59213692 | P85: -67185053 | Q85: -635856749
D86: Total | E86: 55178026 | F86: 2972070 | G86: -7048532 | H86: 2176977 | I86: 4822267 | J86: 224986 | K86: 11144923 | L86: -11321705 | M86: -10445566 | N86: 11510246 | O86: 7971361 | P86: -7431196 | Q86: 59753857
C87: 022 | D87: REVUNBL-E | E87: 1673055 | F87: 1633070 | G87: 1541990 | H87: 1316515 | I87: 1262352 | J87: 1168955 | K87: 1380771 | L87: 1228440 | M87: 1069536 | N87: 1257371 | O87: 1521210 | P87: 1589576 | Q87: 16642841
D88: REVUNBL-ER | F88: -1673055 | G88: -1633070 | H88: -1541990 | I88: -1316515 | J88: -1262352 | K88: -1168955 | L88: -1380771 | M88: -1228440 | N88: -1069536 | O88: -1257371 | P88: -1521210 | Q88: -15053265
D89: Total | E89: 1673055 | F89: -39985 | G89: -91080 | H89: -225475 | I89: -54163 | J89: -93397 | K89: 211816 | L89: -152331 | M89: -158904 | N89: 187835 | O89: 263839 | P89: 68366 | Q89: 1589576
C90: 031 | D90: REVUNBL-E | E90: 2033911 | F90: 1921259 | G90: 1788709 | H90: 1826999 | I90: 2683359 | J90: 4808391 | K90: 6510007 | L90: 7219225 | M90: 5938288 | N90: 4288578 | O90: 3070656 | P90: 1728595 | Q90: 43817977
D91: REVUNBL-ER | F91: -2033911 | G91: -1921259 | H91: -1788709 | I91: -1826999 | J91: -2683359 | K91: -4808391 | L91: -6510007 | M91: -7219225 | N91: -5938288 | O91: -4288578 | P91: -3070656 | Q91: -42089382
D92: Total | E92: 2033911 | F92: -112652 | G92: -132550 | H92: 38290 | I92: 856360 | J92: 2125032 | K92: 1701616 | L92: 709218 | M92: -1280937 | N92: -1649710 | O92: -1217922 | P92: -1342061 | Q92: 1728595
C93: 032 | D93: REVUNBL-E | E93: 131220 | F93: 128084 | G93: 123359 | H93: 107471 | I93: 181337 | J93: 274178 | K93: 605650 | L93: 623328 | M93: 373828 | N93: 231486 | O93: 139136 | P93: 122329 | Q93: 3041406
D94: REVUNBL-ER | F94: -131220 | G94: -128084 | H94: -123359 | I94: -107471 | J94: -181337 | K94: -274178 | L94: -605650 | M94: -623328 | N94: -373828 | O94: -231486 | P94: -139136 | Q94: -2919077
D95: Total | E95: 131220 | F95: -3136 | G95: -4725 | H95: -15888 | I95: 73866 | J95: 92841 | K95: 331472 | L95: 17678 | M95: -249500 | N95: -142342 | O95: -92350 | P95: -16807 | Q95: 122329
C96: 025 | D96: REVUNBL-E | F96: 16075679 | G96: 45932134 | H96: 44453460 | I96: 92404792 | J96: 94046228 | K96: 95141639 | L96: 98894442 | M96: 89933574 | N96: 95301943 | O96: 87801605 | P96: 92515285 | Q96: 852500781
D97: REVUNBL-ER | G97: -16075679 | H97: -45932134 | I97: -44453460 | J97: -92404792 | K97: -94046228 | L97: -95141639 | M97: -98894442 | N97: -89933574 | O97: -95301943 | P97: -87801605 | Q97: -759985496
D98: Total | F98: 16075679 | G98: 29856455 | H98: -1478674 | I98: 47951332 | J98: 1641436 | K98: 1095411 | L98: 3752803 | M98: -8960868 | N98: 5368369 | O98: -7500338 | P98: 4713680 | Q98: 92515285
C99: Total | E99: -29175555 | F99: -4129807 | G99: 22403650 | H99: -22387222 | I99: 36225902 | J99: -2789609 | K99: 42267379 | L99: -13301156 | M99: -53150843 | N99: 30224073 | O99: 36835894 | P99: 8036552 | Q99: 51059258
B100: Total | E100: -52914828 | F100: -3595395 | G100: 18044765 | H100: -30239083 | I100: 89166548 | J100: -11356118 | K100: 70963325 | L100: 2280116 | M100: -94403472 | N100: 35602090 | O100: 53675749 | P100: 13631955 | Q100: 90855652
A101: GD | B101: ID | C101: 101 | D101: REVUNBL-G | E101: 4408154 | F101: 5114188 | G101: 3564338 | H101: 2204282 | I101: 774858 | J101: 698233 | K101: 629812 | L101: 647619 | M101: 1046032 | N101: 2764307 | O101: 5003337 | P101: 5705592 | Q101: 32560752
D102: REVUNBL-GR | E102: -6473362 | F102: -4408154 | G102: -5114188 | H102: -3564338 | I102: -2204282 | J102: -774858 | K102: -698233 | L102: -629812 | M102: -647619 | N102: -1046032 | O102: -2764307 | P102: -5003337 | Q102: -33328522
D103: Total | E103: -2065208 | F103: 706034 | G103: -1549850 | H103: -1360056 | I103: -1429424 | J103: -76625 | K103: -68421 | L103: 17807 | M103: 398413 | N103: 1718275 | O103: 2239030 | P103: 702255 | Q103: -767770
C104: 111 | D104: REVUNBL-G | E104: 1296717 | F104: 1578900 | G104: 1142923 | H104: 759658 | I104: 358825 | J104: 491598 | K104: 474879 | L104: 561934 | M104: 784829 | N104: 1239894 | O104: 1753717 | P104: 1721565 | Q104: 12165439
D105: REVUNBL-GR | E105: -2017407 | F105: -1296717 | G105: -1578900 | H105: -1142923 | I105: -759658 | J105: -358825 | K105: -491598 | L105: -474879 | M105: -561934 | N105: -784829 | O105: -1239894 | P105: -1753717 | Q105: -12461281
D106: Total | E106: -720690 | F106: 282183 | G106: -435977 | H106: -383265 | I106: -400833 | J106: 132773 | K106: -16719 | L106: 87055 | M106: 222895 | N106: 455065 | O106: 513823 | P106: -32152 | Q106: -295842
C107: 146 | D107: REVUNBL-G | E107: 314847 | F107: 314258 | G107: 304591 | H107: 335551 | I107: 300229 | J107: 277570 | K107: 224711 | L107: 256279 | M107: 249077 | N107: 406683 | O107: 296829 | P107: 299519 | Q107: 3580144
D108: REVUNBL-GR | E108: -294520 | F108: -314847 | G108: -314258 | H108: -304591 | I108: -335551 | J108: -300229 | K108: -277570 | L108: -224711 | M108: -256279 | N108: -249077 | O108: -406683 | P108: -296829 | Q108: -3575145
D109: Total | E109: 20327 | F109: -589 | G109: -9667 | H109: 30960 | I109: -35322 | J109: -22659 | K109: -52859 | L109: 31568 | M109: -7202 | N109: 157606 | O109: -109854 | P109: 2690 | Q109: 4999
C110: 147 | D110: REVUNBL-G | E110: 164294 | F110: 141761 | G110: 141841 | H110: 154746 | I110: 156678 | J110: 135991 | K110: 143389 | L110: 138256 | M110: 139547 | N110: 157256 | O110: 153333 | P110: 163672 | Q110: 1790764
D111: REVUNBL-GR | E111: -159175 | F111: -164294 | G111: -141761 | H111: -141841 | I111: -154746 | J111: -156678 | K111: -135991 | L111: -143389 | M111: -138256 | N111: -139547 | O111: -157256 | P111: -153333 | Q111: -1786267
D112: Total | E112: 5119 | F112: -22533 | G112: 80 | H112: 12905 | I112: 1932 | J112: -20687 | K112: 7398 | L112: -5133 | M112: 1291 | N112: 17709 | O112: -3923 | P112: 10339 | Q112: 4497
C113: Total | E113: -2760452 | F113: 965095 | G113: -1995414 | H113: -1699456 | I113: -1863647 | J113: 12802 | K113: -130601 | L113: 131297 | M113: 615397 | N113: 2348655 | O113: 2639076 | P113: 683132 | Q113: -1054116
B114: OR | C114: 410 | D114: REVUNBL-G | E114: 3950644 | F114: 4228363 | G114: 3128538 | H114: 1959680 | I114: 898822 | J114: 675851 | K114: 575828 | L114: 728269 | M114: 753189 | N114: 1893821 | O114: 2970376 | P114: 4453370 | Q114: 26216751
D115: REVUNBL-GR | E115: -5295935 | F115: -3950644 | G115: -4228363 | H115: -3128538 | I115: -1959680 | J115: -898822 | K115: -675851 | L115: -575828 | M115: -728269 | N115: -753189 | O115: -1893821 | P115: -2970376 | Q115: -27059316
D116: Total | E116: -1345291 | F116: 277719 | G116: -1099825 | H116: -1168858 | I116: -1060858 | J116: -222971 | K116: -100023 | L116: 152441 | M116: 24920 | N116: 1140632 | O116: 1076555 | P116: 1482994 | Q116: -842565
C117: 420 | D117: REVUNBL-G | E117: 2113457 | F117: 2241509 | G117: 1645376 | H117: 1076249 | I117: 509862 | J117: 451017 | K117: 419587 | L117: 567243 | M117: 567451 | N117: 1146717 | O117: 1565923 | P117: 2315789 | Q117: 14620180
D118: REVUNBL-GR | E118: -2731158 | F118: -2113457 | G118: -2241509 | H118: -1645376 | I118: -1076249 | J118: -509862 | K118: -451017 | L118: -419587 | M118: -567243 | N118: -567451 | O118: -1146717 | P118: -1565923 | Q118: -15035549
D119: Total | E119: -617701 | F119: 128052 | G119: -596133 | H119: -569127 | I119: -566387 | J119: -58845 | K119: -31430 | L119: 147656 | M119: 208 | N119: 579266 | O119: 419206 | P119: 749866 | Q119: -415369
C120: 424 | D120: REVUNBL-G | E120: 214736 | F120: 249281 | G120: 171610 | H120: 144095 | I120: 95133 | J120: 108861 | K120: 109921 | L120: 155124 | M120: 142351 | N120: 242211 | O120: 223247 | P120: 257477 | Q120: 2114047
D121: REVUNBL-GR | E121: -292000 | F121: -214736 | G121: -249281 | H121: -171610 | I121: -144095 | J121: -95133 | K121: -108861 | L121: -109921 | M121: -155124 | N121: -142351 | O121: -242211 | P121: -223247 | Q121: -2148570
D122: Total | E122: -77264 | F122: 34545 | G122: -77671 | H122: -27515 | I122: -48962 | J122: 13728 | K122: 1060 | L122: 45203 | M122: -12773 | N122: 99860 | O122: -18964 | P122: 34230 | Q122: -34523
C123: 440 | D123: REVUNBL-G | E123: 249682 | F123: 227068 | G123: 208871 | H123: 153610 | I123: 116851 | J123: 144053 | K123: 147190 | L123: 256166 | M123: 298320 | N123: 325789 | O123: 240308 | P123: 286090 | Q123: 2653998
D124: REVUNBL-GR | E124: -194622 | F124: -249682 | G124: -227068 | H124: -208871 | I124: -153610 | J124: -116851 | K124: -144053 | L124: -147190 | M124: -256166 | N124: -298320 | O124: -325789 | P124: -240308 | Q124: -2562530
D125: Total | E125: 55060 | F125: -22614 | G125: -18197 | H125: -55261 | I125: -36759 | J125: 27202 | K125: 3137 | L125: 108976 | M125: 42154 | N125: 27469 | O125: -85481 | P125: 45782 | Q125: 91468
C126: 447 | D126: REVUNBL-G | E126: 848457 | F126: 835405 | G126: 947733 | H126: 830795 | I126: 0 | J126: 0 | K126: 0 | L126: 0 | M126: 0 | N126: 0 | O126: 0 | P126: 0 | Q126: 3462390
D127: REVUNBL-GR | E127: -795609 | F127: -848457 | G127: -835405 | H127: -947733 | I127: -830795 | J127: 0 | K127: 0 | L127: 0 | M127: 0 | N127: 0 | O127: 0 | P127: 0 | Q127: -4257999
D128: Total | E128: 52848 | F128: -13052 | G128: 112328 | H128: -116938 | I128: -830795 | J128: 0 | K128: 0 | L128: 0 | M128: 0 | N128: 0 | O128: 0 | P128: 0 | Q128: -795609
C129: 456 | D129: REVUNBL-G | E129: 3549117 | F129: 3224287 | G129: 3574834 | H129: 3282977 | I129: 3077255 | J129: 2988761 | K129: 2631605 | L129: 2792853 | M129: 2716924 | N129: 3064836 | O129: 2996776 | P129: 2792641 | Q129: 36692866
D130: REVUNBL-GR | E130: -3394528 | F130: -3549117 | G130: -3224287 | H130: -3574834 | I130: -3282977 | J130: -3077255 | K130: -2988761 | L130: -2631605 | M130: -2792853 | N130: -2716924 | O130: -3064836 | P130: -2996776 | Q130: -37294753
D131: Total | E131: 154589 | F131: -324830 | G131: 350547 | H131: -291857 | I131: -205722 | J131: -88494 | K131: -357156 | L131: 161248 | M131: -75929 | N131: 347912 | O131: -68060 | P131: -204135 | Q131: -601887
C132: 447M | D132: REVUNBL-G | I132: 217429 | J132: 204793 | K132: 202981 | L132: 211070 | M132: 195158 | N132: 204750 | O132: 157289 | P132: 131188 | Q132: 1524658
D133: REVUNBL-GR | J133: -217429 | K133: -204793 | L133: -202981 | M133: -211070 | N133: -195158 | O133: -204750 | P133: -157289 | Q133: -1393470
D134: Total | I134: 217429 | J134: -12636 | K134: -1812 | L134: 8089 | M134: -15912 | N134: 9592 | O134: -47461 | P134: -26101 | Q134: 131188
C135: 447R | D135: REVUNBL-G | I135: 405860 | J135: 412817 | K135: 366588 | L135: 382409 | M135: 375872 | N135: 347569 | O135: 368699 | P135: 301810 | Q135: 2961624
D136: REVUNBL-GR | J136: -405860 | K136: -412817 | L136: -366588 | M136: -382409 | N136: -375872 | O136: -347569 | P136: -368699 | Q136: -2659814
D137: Total | I137: 405860 | J137: 6957 | K137: -46229 | L137: 15821 | M137: -6537 | N137: -28303 | O137: 21130 | P137: -66889 | Q137: 301810
C138: 447W | D138: REVUNBL-G | I138: 173578 | J138: 0 | K138: 108024 | L138: 117317 | M138: 117931 | N138: 153980 | O138: 147012 | P138: 145524 | Q138: 963366
D139: REVUNBL-GR | J139: -173578 | K139: 0 | L139: -108024 | M139: -117317 | N139: -117931 | O139: -153980 | P139: -147012 | Q139: -817842
D140: Total | I140: 173578 | J140: -173578 | K140: 108024 | L140: 9293 | M140: 614 | N140: 36049 | O140: -6968 | P140: -1488 | Q140: 145524
C141: 447B | D141: REVUNBL-G | J141: 2905 | K141: 4101 | L141: 2106 | M141: 2563 | N141: 4066 | O141: 2228 | P141: 4736 | Q141: 22705
D142: REVUNBL-GR | K142: -2905 | L142: -4101 | M142: -2106 | N142: -2563 | O142: -4066 | P142: -2228 | Q142: -17969
D143: Total | J143: 2905 | K143: 1196 | L143: -1995 | M143: 457 | N143: 1503 | O143: -1838 | P143: 2508 | Q143: 4736
C144: 447C | D144: REVUNBL-G | J144: 138037 | K144: 0 | L144: 0 | M144: 0 | N144: 0 | O144: 0 | P144: 0 | Q144: 138037
D145: REVUNBL-GR | K145: -138037 | L145: 0 | M145: 0 | N145: 0 | O145: 0 | P145: 0 | Q145: -138037
D146: Total | J146: 138037 | K146: -138037 | L146: 0 | M146: 0 | N146: 0 | O146: 0 | P146: 0 | Q146: 0
C147: Total | E147: -1777759 | F147: 79820 | G147: -1328951 | H147: -2229556 | I147: -1952616 | J147: -367695 | K147: -561270 | L147: 646732 | M147: -42798 | N147: 2213980 | O147: 1288119 | P147: 2016767 | Q147: -2015227
B148: WA | C148: 101 | D148: REVUNBL-G | E148: 9629638 | F148: 10422050 | G148: 7439883 | H148: 4397502 | I148: 1567310 | J148: 1312050 | K148: 1164748 | L148: 1295014 | M148: 1933114 | N148: 5038482 | O148: 9771651 | P148: 11417514 | Q148: 65388956
D149: REVUNBL-GR | E149: -13256855 | F149: -9629638 | G149: -10422050 | H149: -7439883 | I149: -4397502 | J149: -1567310 | K149: -1312050 | L149: -1164748 | M149: -1295014 | N149: -1933114 | O149: -5038482 | P149: -9771651 | Q149: -67228297
D150: Total | E150: -3627217 | F150: 792412 | G150: -2982167 | H150: -3042381 | I150: -2830192 | J150: -255260 | K150: -147302 | L150: 130266 | M150: 638100 | N150: 3105368 | O150: 4733169 | P150: 1645863 | Q150: -1839341
C151: 111 | D151: REVUNBL-G | E151: 3107754 | F151: 3767306 | G151: 2589731 | H151: 1701302 | I151: 772170 | J151: 804108 | K151: 704295 | L151: 846222 | M151: 1188000 | N151: 2308113 | O151: 3719804 | P151: 7634427 | Q151: 29143232
D152: REVUNBL-GR | E152: -4499374 | F152: -3107754 | G152: -3767306 | H152: -2589731 | I152: -1701302 | J152: -772170 | K152: -804108 | L152: -704295 | M152: -846222 | N152: -1188000 | O152: -2308113 | P152: -3719804 | Q152: -26008179
D153: Total | E153: -1391620 | F153: 659552 | G153: -1177575 | H153: -888429 | I153: -929132 | J153: 31938 | K153: -99813 | L153: 141927 | M153: 341778 | N153: 1120113 | O153: 1411691 | P153: 3914623 | Q153: 3135053
C154: 112 | D154: REVUNBL-G | E154: 7144 | F154: 10765 | G154: 5304 | H154: 3881 | I154: 1511 | J154: 2534 | K154: 2243 | L154: 2890 | M154: 5590 | N154: 9457 | O154: 15496 | P154: 10281 | Q154: 77096
D155: REVUNBL-GR | E155: -14283 | F155: -7144 | G155: -10765 | H155: -5304 | I155: -3881 | J155: -1511 | K155: -2534 | L155: -2243 | M155: -2890 | N155: -5590 | O155: -9457 | P155: -15496 | Q155: -81098
D156: Total | E156: -7139 | F156: 3621 | G156: -5461 | H156: -1423 | I156: -2370 | J156: 1023 | K156: -291 | L156: 647 | M156: 2700 | N156: 3867 | O156: 6039 | P156: -5215 | Q156: -4002
C157: 121 | D157: REVUNBL-G | E157: 199450 | F157: 241971 | G157: 164598 | H157: 118764 | I157: 60281 | J157: 104394 | K157: 103836 | L157: 139424 | M157: 175022 | N157: 256977 | O157: 297046 | P157: -3544231 | Q157: -1682468
D158: REVUNBL-GR | E158: -318891 | F158: -199450 | G158: -241971 | H158: -164598 | I158: -118764 | J158: -60281 | K158: -104394 | L158: -103836 | M158: -139424 | N158: -175022 | O158: -256977 | P158: -297046 | Q158: -2180654
D159: Total | E159: -119441 | F159: 42521 | G159: -77373 | H159: -45834 | I159: -58483 | J159: 44113 | K159: -558 | L159: 35588 | M159: 35598 | N159: 81955 | O159: 40069 | P159: -3841277 | Q159: -3863122
C160: 146 | D160: REVUNBL-G | E160: 3629622 | F160: 3567188 | G160: 3349134 | H160: 3031741 | I160: 2500962 | J160: 2374496 | K160: 2194451 | L160: 2275935 | M160: 2309719 | N160: 3067429 | O160: 3267643 | P160: 3542437 | Q160: 35110757
D161: REVUNBL-GR | E161: -3967685 | F161: -3629622 | G161: -3567188 | H161: -3349134 | I161: -3031741 | J161: -2500962 | K161: -2374496 | L161: -2194451 | M161: -2275935 | N161: -2309719 | O161: -3067429 | P161: -3267643 | Q161: -35536005
D162: Total | E162: -338063 | F162: -62434 | G162: -218054 | H162: -317393 | I162: -530779 | J162: -126466 | K162: -180045 | L162: 81484 | M162: 33784 | N162: 757710 | O162: 200214 | P162: 274794 | Q162: -425248
C163: 148 | D163: REVUNBL-G | E163: 4873335 | F163: 4412634 | G163: 4246981 | H163: 0 | I163: 3689297 | J163: 3611778 | K163: 3571396 | L163: 3533977 | M163: 3697655 | N163: 4111496 | O163: 4453688 | P163: 4907937 | Q163: 45110174
D164: REVUNBL-GR | E164: -4983146 | F164: -4873335 | G164: -4412634 | H164: -4246981 | I164: 0 | J164: -3689297 | K164: -3611778 | L164: -3571396 | M164: -3533977 | N164: -3697655 | O164: -4111496 | P164: -4453688 | Q164: -45185383
D165: Total | E165: -109811 | F165: -460701 | G165: -165653 | H165: -4246981 | I165: 3689297 | J165: -77519 | K165: -40382 | L165: -37419 | M165: 163678 | N165: 413841 | O165: 342192 | P165: 454249 | Q165: -75209
C166: 147 | D166: REVUNBL-G | H166: 3925542 | I166: 0 | J166: 0 | K166: 0 | L166: 0 | M166: 0 | N166: 0 | O166: 0 | P166: 0 | Q166: 3925542
D167: REVUNBL-GR | I167: -3925542 | J167: 0 | K167: 0 | L167: 0 | M167: 0 | N167: 0 | O167: 0 | P167: 0 | Q167: -3925542
D168: Total | H168: 3925542 | I168: -3925542 | J168: 0 | K168: 0 | L168: 0 | M168: 0 | N168: 0 | O168: 0 | P168: 0 | Q168: 0
C169: 122 | D169: REVUNBL-G | I169: 10130 | J169: 12930 | K169: 11440 | L169: 14270 | M169: 19687 | N169: 24585 | O169: 28425 | P169: 32072 | Q169: 153539
D170: REVUNBL-GR | J170: -10130 | K170: -12930 | L170: -11440 | M170: -14270 | N170: -19687 | O170: -24585 | P170: -28425 | Q170: -121467
D171: Total | I171: 10130 | J171: 2800 | K171: -1490 | L171: 2830 | M171: 5417 | N171: 4898 | O171: 3840 | P171: 3647 | Q171: 32072
C172: Total | E172: -5593291 | F172: 974971 | G172: -4626283 | H172: -4616899 | I172: -4577071 | J172: -379371 | K172: -469881 | L172: 355323 | M172: 1221055 | N172: 5487752 | O172: 6737214 | P172: 2446684 | Q172: -3039797
B173: Total | E173: -10131502 | F173: 2019886 | G173: -7950648 | H173: -8545911 | I173: -8393334 | J173: -734264 | K173: -1161752 | L173: 1133352 | M173: 1793654 | N173: 10050387 | O173: 10664409 | P173: 5146583 | Q173: -6109140
A174: Total | E174: -63046330 | F174: -1575509 | G174: 10094117 | H174: -38784994 | I174: 80773214 | J174: -12090382 | K174: 69801573 | L174: 3413468 | M174: -92609818 | N174: 45652477 | O174: 64340158 | P174: 18778538 | Q174: 84746512
A175: Page 2 of 4 | L175: Run Date: Jan 9, 2019
B178: Unbilled Usage
B179: WA Sch 1/2 | E179: =E52+E54+E57+E65 -> -16807345 | F179: =F52+F54+F57+F65 -> -11417924 | G179: -2538576 | H179: -21339210 | I179: -11882566 | J179: -6167987 | K179: 22269076 | L179: -2879705 | M179: -26562728 | N179: 10771561 | O179: 32345083 | P179: 12693423 | Q179: =SUM(E179:P179) -> -21516898
B180: WA Sch 11/12 | E180: =E59+E62+E80+E83 -> -5056613 | F180: =F59+F62+F80+F83 -> 226900 | G180: -1492318 | H180: -3135024 | I180: -94436 | J180: -612520 | K180: 5513065 | L180: -3427114 | M180: -5492340 | N180: 4178114 | O180: 5066221 | P180: -648853 | Q180: =SUM(E180:P180) -> -4974918
B181: WA Sch 21/22 | E181: =E68+E70+E86+E89 -> -17335146 | F181: =F68+F70+F86+F89 -> 2932085 | G181: -3284636 | H181: -1903474 | I181: 4768104 | J181: 131589 | K181: 11356739 | L181: -11474036 | M181: -10604470 | N181: 11698081 | O181: 8235200 | P181: -7362830 | Q181: -12842794
B182: WA Sch 25 | E182: =E73+E98 -> 9694517 | F182: =F73+F98 -> 4244920 | G182: 29856455 | H182: 3968084 | I182: 42504574 | J182: 1641436 | K182: 1095411 | L182: 3752803 | M182: -8960868 | N182: 5368369 | O182: -7500338 | P182: 4713680 | Q182: 90379043
B183: WA Sch 30/31/32 | E183: =E75+E77+E92+E95 -> 329032 | F183: =F75+F77+F92+F95 -> -115788 | G183: -137275 | H183: 22402 | I183: 930226 | J183: 2217873 | K183: 2033088 | L183: 726896 | M183: -1530437 | N183: -1792052 | O183: -1310272 | P183: -1358868 | Q183: 14825
B184: WA St & Area Lights | E184: =0 -> 0 | F184: =0 -> 0 | G184: =0 -> 0 | H184: =0 -> 0 | I184: =0 -> 0 | J184: =0 -> 0 | K184: =0 -> 0 | L184: =0 -> 0 | M184: =0 -> 0 | N184: =0 -> 0 | O184: =0 -> 0 | P184: =0 -> 0 | Q184: 0
B185: ID Sch 1 | E185: =E8+E42 -> -11722489 | F185: =F8+F42 -> -2719002 | G185: -1570599 | H185: -10014963 | I185: -7824354 | J185: -2880416 | K185: 11972065 | L185: -4717778 | M185: -12365166 | N185: 7726601 | O185: 17477859 | P185: 7202625 | Q185: -9435617
B186: ID Sch 11/12 | E186: =E11+E13+E24+E27 -> -3766804 | F186: =F11+F13+F24+F27 -> 542741 | G186: -973396 | H186: -2062269 | I186: -465416 | J186: -182527 | K186: 3796924 | L186: -2538183 | M186: -3048269 | N186: 1998332 | O186: 3627245 | P186: 379898 | Q186: -2691724
B187: ID Sch 21/22 | E187: =E15+E17+E30+E33 -> -7871323 | F187: =F15+F17+F30+F33 -> 2588201 | G187: -1752288 | H187: -1239782 | I187: 952456 | J187: -119332 | K187: 5492896 | L187: -5357730 | M187: -3908676 | N187: 4171909 | O187: 4495181 | P187: -2659528 | Q187: -5208016
B188: ID Sch 25 | E188: =E45 -> 0 | F188: =F45 -> 0 | G188: 0 | H188: 5514472 | I188: 59941218 | J188: -42101903 | K188: 4033523 | L188: 3991305 | M188: -4944438 | N188: 1820643 | O188: -1970706 | P188: 781869 | Q188: 27065983
B189: ID Sch 25P | E189: =E48 -> 0 | F189: =F48 -> 0 | G189: 0 | H189: 0 | I189: 0 | J189: 35849850 | K189: 2077648 | L189: 24586102 | M189: -16180267 | N189: -10082439 | O189: -5939674 | P189: 0 | Q189: 30311220
B190: ID Sch 31/32 | E190: =E19+E21+E36+E39 -> -378657 | F190: =F19+F21+F36+F39 -> 122472 | G190: -62602 | H190: -49319 | I190: 336742 | J190: 867819 | K190: 1322890 | L190: -382444 | M190: -805813 | N190: -257029 | O190: -850050 | P190: -109461 | Q190: -245452
B191: ID St & Area Lights | E191: 0 | F191: 0 | G191: 0 | H191: 0 | I191: 0 | J191: 0 | K191: 0 | L191: 0 | M191: 0 | N191: 0 | O191: 0 | P191: 0 | Q191: 0
B193: WA Sch 101/102 | E193: =E150 -> -3627217 | F193: =F150 -> 792412 | G193: -2982167 | H193: -3042381 | I193: -2830192 | J193: -255260 | K193: -147302 | L193: 130266 | M193: 638100 | N193: 3105368 | O193: 4733169 | P193: 1645863 | Q193: =SUM(E193:P193) -> -1839341
B194: WA Sch 111/112 | E194: =E153+E156 -> -1398759 | F194: =F153+F156 -> 663173 | G194: -1183036 | H194: -889852 | I194: -931502 | J194: 32961 | K194: -100104 | L194: 142574 | M194: 344478 | N194: 1123980 | O194: 1417730 | P194: 3909408 | Q194: =SUM(E194:P194) -> 3131051
B195: WA Sch 121/122 | E195: =E159+E171 -> -119441 | F195: =F159+F171 -> 42521 | G195: -77373 | H195: -45834 | I195: -48353 | J195: 46913 | K195: -2048 | L195: 38418 | M195: 41015 | N195: 86853 | O195: 43909 | P195: -3837630 | Q195: -3831050
B196: WA Sch 131/132 | E196: =0 -> 0 | F196: =0 -> 0 | G196: =0 -> 0 | H196: =0 -> 0 | I196: =0 -> 0 | J196: =0 -> 0 | K196: =0 -> 0 | L196: =0 -> 0 | M196: =0 -> 0 | N196: =0 -> 0 | O196: =0 -> 0 | P196: =0 -> 0 | Q196: 0
B197: WA Sch 146 | E197: =E162 -> -338063 | F197: =F162 -> -62434 | G197: -218054 | H197: -317393 | I197: -530779 | J197: -126466 | K197: -180045 | L197: 81484 | M197: 33784 | N197: 757710 | O197: 200214 | P197: 274794 | Q197: -425248
B198: WA Special Contracts | E198: =E165+E168 -> -109811 | F198: =F165+F168 -> -460701 | G198: -165653 | H198: -321439 | I198: -236245 | J198: -77519 | K198: -40382 | L198: -37419 | M198: 163678 | N198: 413841 | O198: 342192 | P198: 454249 | Q198: -75209
B199: ID Sch 101 | E199: =E103 -> -2065208 | F199: =F103 -> 706034 | G199: -1549850 | H199: -1360056 | I199: -1429424 | J199: -76625 | K199: -68421 | L199: 17807 | M199: 398413 | N199: 1718275 | O199: 2239030 | P199: 702255 | Q199: -767770
B200: ID Sch 111/112 | E200: =E106 -> -720690 | F200: =F106 -> 282183 | G200: -435977 | H200: -383265 | I200: -400833 | J200: 132773 | K200: -16719 | L200: 87055 | M200: 222895 | N200: 455065 | O200: 513823 | P200: -32152 | Q200: -295842
B201: ID Sch 131/132 | E201: =0 -> 0 | F201: =0 -> 0 | G201: =0 -> 0 | H201: =0 -> 0 | I201: =0 -> 0 | J201: =0 -> 0 | K201: =0 -> 0 | L201: =0 -> 0 | M201: =0 -> 0 | N201: =0 -> 0 | O201: =0 -> 0 | P201: =0 -> 0 | Q201: 0
B202: ID Sch 146 | E202: =E109 -> 20327 | F202: =F109 -> -589 | G202: -9667 | H202: 30960 | I202: -35322 | J202: -22659 | K202: -52859 | L202: 31568 | M202: -7202 | N202: 157606 | O202: -109854 | P202: 2690 | Q202: 4999
B203: ID Special Contracts | E203: =E112 -> 5119 | F203: =F112 -> -22533 | G203: 80 | H203: 12905 | I203: 1932 | J203: -20687 | K203: 7398 | L203: -5133 | M203: 1291 | N203: 17709 | O203: -3923 | P203: 10339 | Q203: 4497
B204: OR Sch 410 | E204: =E116 -> -1345291 | F204: =F116 -> 277719 | G204: -1099825 | H204: -1168858 | I204: -1060858 | J204: -222971 | K204: -100023 | L204: 152441 | M204: 24920 | N204: 1140632 | O204: 1076555 | P204: 1482994 | Q204: -842565
... 7 more rows

Sheet Meters
G1: Meters Report 12 Month-Ended | K1: Data Source: Financial Reporting
K2: Data Updated Daily
A4: Meter Qty | D4: 201801 | E4: 201802 | F4: 201803 | G4: 201804 | H4: 201805 | I4: 201806 | J4: 201807 | K4: 201808 | L4: 201809 | M4: 201810 | N4: 201811 | O4: 201812 | P4: Total
A5: Service | B5: State Code | C5: Rate Schedule
A6: ED | B6: ID | C6: 0001 | D6: 107438 | E6: 107386 | F6: 107490 | G6: 107453 | H6: 107486 | I6: 107433 | J6: 107732 | K6: 108005 | L6: 108271 | M6: 108602 | N6: 108888 | O6: 108980 | P6: 1295164
C7: 0011 | D7: 16054 | E7: 16150 | F7: 16169 | G7: 16156 | H7: 16151 | I7: 16206 | J7: 16194 | K7: 16186 | L7: 16165 | M7: 16338 | N7: 16267 | O7: 16244 | P7: 194280
C8: 0012 | D8: 5385 | E8: 5376 | F8: 5386 | G8: 5386 | H8: 5397 | I8: 5384 | J8: 5398 | K8: 5436 | L8: 5442 | M8: 5500 | N8: 5525 | O8: 5505 | P8: 65120
C9: 0021 | D9: 1091 | E9: 1088 | F9: 1089 | G9: 1085 | H9: 1092 | I9: 1087 | J9: 1081 | K9: 1085 | L9: 1072 | M9: 1084 | N9: 1068 | O9: 1059 | P9: 12981
C10: 0022 | D10: 16 | E10: 18 | F10: 18 | G10: 18 | H10: 18 | I10: 18 | J10: 18 | K10: 17 | L10: 19 | M10: 17 | N10: 19 | O10: 18 | P10: 214
C11: 0025 | D11: 12 | E11: 12 | F11: 10 | G11: 12 | H11: 2 | I11: 12 | J11: 12 | K11: 12 | L11: 12 | M11: 12 | N11: 12 | O11: 12 | P11: 132
C12: 0031 | D12: 753 | E12: 765 | F12: 755 | G12: 766 | H12: 764 | I12: 766 | J12: 764 | K12: 764 | L12: 762 | M12: 792 | N12: 759 | O12: 752 | P12: 9162
C13: 0032 | D13: 656 | E13: 656 | F13: 657 | G13: 657 | H13: 660 | I13: 663 | J13: 656 | K13: 661 | L13: 655 | M13: 667 | N13: 662 | O13: 658 | P13: 7908
C14: 0041 | D14: 2 | E14: 2 | F14: 2 | G14: 2 | H14: 2 | I14: 2 | J14: 2 | K14: 2 | L14: 2 | M14: 2 | N14: 2 | O14: 2 | P14: 24
C15: 0042 | D15: 132 | E15: 134 | F15: 134 | G15: 134 | H15: 135 | I15: 137 | J15: 137 | K15: 137 | L15: 137 | M15: 144 | N15: 135 | O15: 138 | P15: 1634
C16: 0044 | D16: -23 | E16: 13 | F16: 13 | G16: 13 | H16: 13 | I16: 13 | J16: 13 | K16: 13 | L16: 15 | M16: 14 | N16: 11 | O16: 14 | P16: 122
C17: 0045 | D17: 3 | E17: 5 | F17: 5 | G17: 5 | H17: 5 | I17: 5 | J17: 5 | K17: 5 | L17: 5 | M17: 7 | N17: 5 | O17: 5 | P17: 60
C18: 0046 | D18: 8 | E18: 50 | F18: 13 | G18: 13 | H18: 13 | I18: 13 | J18: 13 | K18: 13 | L18: 14 | M18: 14 | N18: 14 | O18: 13 | P18: 191
C19: 0047 | D19: 0 | E19: 0 | F19: 0 | G19: 0 | H19: 0 | I19: 0 | J19: 0 | K19: 0 | L19: 0 | M19: 0 | N19: 0 | O19: 0 | P19: 0
C20: 0048 | D20: 0 | E20: 0 | F20: 0 | G20: 0 | H20: 0 | I20: 0 | J20: 0 | K20: 0 | L20: 0 | M20: 0 | N20: 0 | O20: 0 | P20: 0
C21: 0049 | D21: 0 | E21: 0 | F21: 0 | G21: 0 | H21: 0 | I21: 0 | J21: 0 | K21: 0 | L21: 0 | M21: 0 | N21: 0 | O21: 0 | P21: 0
C22: 0058 | D22: 0 | E22: 0 | F22: 0 | G22: 0 | H22: 0 | I22: 0 | J22: 0 | K22: 0 | L22: 0 | M22: 0 | N22: 0 | O22: 0 | P22: 0
C23: 0095 | D23: 0 | E23: 0 | F23: 0 | G23: 0 | H23: 0 | I23: 0 | J23: 0 | K23: 0 | L23: 0 | M23: 0 | N23: 0 | O23: 0 | P23: 0
C24: 0099 | D24: 0 | E24: 0 | F24: 0 | G24: 0 | H24: 0 | I24: 0 | J24: 0 | K24: 0 | L24: 0 | M24: 0 | N24: 0 | O24: 0 | P24: 0
C25: 025B | D25: 0 | E25: 0 | F25: 0 | G25: 0 | H25: 0 | I25: 0 | J25: 0 | K25: 0 | L25: 0 | M25: 0 | N25: 0 | O25: 0 | P25: 0
C26: 025P | D26: 1 | E26: 1 | F26: 1 | G26: 1 | H26: 0 | I26: 1 | J26: 1 | K26: 1 | L26: 1 | M26: 1 | N26: 1 | O26: 1 | P26: 11
C27: Total | D27: 131528 | E27: 131656 | F27: 131742 | G27: 131701 | H27: 131738 | I27: 131740 | J27: 132026 | K27: 132337 | L27: 132572 | M27: 133194 | N27: 133368 | O27: 133401 | P27: 1587003
B28: MT | C28: 0001 | D28: 12 | E28: 12 | F28: 12 | G28: 12 | H28: 12 | I28: 12 | J28: 12 | K28: 12 | L28: 12 | M28: 11 | N28: 12 | O28: 11 | P28: 142
C29: 0011 | D29: 19 | E29: 19 | F29: 18 | G29: 18 | H29: 18 | I29: 18 | J29: 18 | K29: 18 | L29: 18 | M29: 18 | N29: 18 | O29: 18 | P29: 218
C30: Total | D30: 31 | E30: 31 | F30: 30 | G30: 30 | H30: 30 | I30: 30 | J30: 30 | K30: 30 | L30: 30 | M30: 29 | N30: 30 | O30: 29 | P30: 360
B31: WA | C31: 0001 | D31: 214784 | E31: 213790 | F31: 215639 | G31: 214565 | H31: 214700 | I31: 214425 | J31: 215008 | K31: 215250 | L31: 213728 | M31: 217990 | N31: 216566 | O31: 216760 | P31: 2583205
C32: 0002 | D32: 414 | E32: 408 | F32: 406 | G32: 406 | H32: 399 | I32: 404 | J32: 400 | K32: 398 | L32: 394 | M32: 398 | N32: 377 | O32: 366 | P32: 4770
C33: 0011 | D33: 22901 | E33: 22712 | F33: 22750 | G33: 22562 | H33: 22741 | I33: 22732 | J33: 22723 | K33: 22870 | L33: 22047 | M33: 23411 | N33: 22734 | O33: 22730 | P33: 272913
C34: 0012 | D34: 9566 | E34: 9369 | F34: 9436 | G34: 9385 | H34: 9435 | I34: 9406 | J34: 9565 | K34: 9482 | L34: 9398 | M34: 9672 | N34: 9573 | O34: 9600 | P34: 113887
C35: 0021 | D35: 1866 | E35: 1856 | F35: 1867 | G35: 1842 | H35: 1856 | I35: 1853 | J35: 1845 | K35: 1857 | L35: 1810 | M35: 1891 | N35: 1819 | O35: 1857 | P35: 22219
C36: 0022 | D36: 48 | E36: 47 | F36: 47 | G36: 47 | H36: 49 | I36: 48 | J36: 47 | K36: 47 | L36: 49 | M36: 49 | N36: 46 | O36: 44 | P36: 568
C37: 0025 | D37: 21 | E37: 22 | F37: 22 | G37: 23 | H37: 4 | I37: 23 | J37: 23 | K37: 23 | L37: 23 | M37: 23 | N37: 23 | O37: 23 | P37: 253
C38: 0030 | D38: 49 | E38: 49 | F38: 48 | G38: 48 | H38: 50 | I38: 49 | J38: 50 | K38: 50 | L38: 49 | M38: 52 | N38: 51 | O38: 46 | P38: 591
C39: 0031 | D39: 1245 | E39: 1200 | F39: 1195 | G39: 1192 | H39: 1203 | I39: 1202 | J39: 1200 | K39: 1214 | L39: 1181 | M39: 1228 | N39: 1189 | O39: 1180 | P39: 14429
C40: 0032 | D40: 1193 | E40: 1212 | F40: 1209 | G40: 1179 | H40: 1210 | I40: 1196 | J40: 1214 | K40: 1209 | L40: 1184 | M40: 1225 | N40: 1201 | O40: 1194 | P40: 14426
C41: 0041 | D41: 3 | E41: 6 | F41: 6 | G41: 6 | H41: 6 | I41: 6 | J41: 6 | K41: -5 | L41: 7 | M41: 5 | N41: 5 | O41: 5 | P41: 56
C42: 0042 | D42: 354 | E42: 342 | F42: 349 | G42: 350 | H42: 349 | I42: 349 | J42: 352 | K42: 354 | L42: 347 | M42: 354 | N42: 350 | O42: 357 | P42: 4207
C43: 0044 | D43: 12 | E43: 12 | F43: 12 | G43: 12 | H43: 12 | I43: 12 | J43: 12 | K43: 10 | L43: 14 | M43: 12 | N43: 12 | O43: 12 | P43: 144
C44: 0045 | D44: 9 | E44: 9 | F44: 9 | G44: 9 | H44: 9 | I44: 9 | J44: 9 | K44: 9 | L44: 7 | M44: 9 | N44: 9 | O44: 9 | P44: 106
C45: 0046 | D45: 49 | E45: 49 | F45: 49 | G45: 49 | H45: 49 | I45: 49 | J45: 49 | K45: 48 | L45: 46 | M45: 49 | N45: 49 | O45: 49 | P45: 584
C46: 0047 | D46: 0 | E46: 0 | F46: 0 | G46: 0 | H46: 0 | I46: 0 | J46: 0 | K46: 0 | L46: 0 | M46: 0 | N46: 0 | O46: 0 | P46: 0
C47: 0048 | D47: 0 | E47: 0 | F47: 0 | G47: 0 | H47: 0 | I47: 0 | J47: 0 | K47: 0 | L47: 0 | M47: 0 | N47: 0 | O47: 0 | P47: 0
C48: 0058 | D48: 0 | E48: 0 | F48: 0 | G48: 0 | H48: 0 | I48: 0 | J48: 0 | K48: 0 | L48: 0 | M48: 0 | N48: 0 | O48: 0 | P48: 0
C49: 0058A | D49: 0 | E49: 0 | F49: 0 | G49: 0 | H49: 0 | I49: 0 | J49: 0 | K49: 0 | L49: 0 | M49: 0 | N49: 0 | O49: 0 | P49: 0
C50: 0095 | D50: 0 | E50: 0 | F50: 0 | G50: 0 | H50: 0 | I50: 0 | J50: 0 | K50: 0 | L50: 0 | M50: 0 | N50: 0 | O50: 0 | P50: 0
C51: 0099 | D51: 0 | E51: 0 | F51: 0 | G51: 0 | H51: 0 | I51: 0 | J51: 0 | K51: 0 | L51: 0 | M51: 0 | N51: 0 | O51: 0 | P51: 0
C52: 025B | D52: 0 | E52: 0 | F52: 0 | G52: 0 | H52: 0 | I52: 0 | J52: 0 | K52: 0 | L52: 0 | M52: 0 | N52: 0 | O52: 0 | P52: 0
C53: Total | D53: 252514 | E53: 251083 | F53: 253044 | G53: 251675 | H53: 252072 | I53: 251763 | J53: 252503 | K53: 252816 | L53: 250284 | M53: 256368 | N53: 254004 | O53: 254232 | P53: 3032358
B54: Total | D54: 384073 | E54: 382770 | F54: 384816 | G54: 383406 | H54: 383840 | I54: 383533 | J54: 384559 | K54: 385183 | L54: 382886 | M54: 389591 | N54: 387402 | O54: 387662 | P54: 4619721
A55: GD | B55: ID | C55: 0101 | D55: 81663 | E55: 81746 | F55: 81795 | G55: 81891 | H55: 81907 | I55: 82005 | J55: 82164 | K55: 82408 | L55: 82361 | M55: 83068 | N55: 83227 | O55: 83374 | P55: 987609
C56: 0111 | D56: 1452 | E56: 1473 | F56: 1480 | G56: 1489 | H56: 1501 | I56: 1501 | J56: 1498 | K56: 1487 | L56: 1494 | M56: 1511 | N56: 1497 | O56: 1501 | P56: 17884
C57: 0112 | D57: 2 | E57: 2 | F57: 2 | G57: 2 | H57: 2 | I57: 2 | J57: 2 | K57: 2 | L57: 2 | M57: 2 | N57: 2 | O57: 2 | P57: 24
C58: 0146 | D58: 6 | E58: 6 | F58: 6 | G58: 6 | H58: 6 | I58: 6 | J58: 6 | K58: 6 | L58: 6 | M58: 6 | N58: 6 | O58: 6 | P58: 72
C59: 0147 | D59: 1 | E59: 1 | F59: 1 | G59: 1 | H59: 1 | I59: 1 | J59: 1 | K59: 1 | L59: 1 | M59: 1 | N59: 1 | O59: 1 | P59: 12
C60: 0158 | D60: 0 | E60: 0 | F60: 0 | G60: 0 | H60: 0 | I60: 0 | J60: 0 | K60: 0 | L60: 0 | M60: 0 | N60: 0 | O60: 0 | P60: 0
C61: 0159 | D61: 1 | E61: 1 | F61: 1 | G61: 1 | H61: 1 | I61: 1 | J61: 1 | K61: 1 | L61: 1 | M61: 1 | N61: 1 | O61: 1 | P61: 12
C62: 0199 | D62: 0 | E62: 0 | F62: 0 | G62: 0 | H62: 0 | I62: 0 | J62: 0 | K62: 0 | L62: 0 | M62: 0 | N62: 0 | O62: 0 | P62: 0
C63: Total | D63: 83125 | E63: 83229 | F63: 83285 | G63: 83390 | H63: 83418 | I63: 83516 | J63: 83672 | K63: 83905 | L63: 83865 | M63: 84589 | N63: 84734 | O63: 84885 | P63: 1005613
B64: OR | C64: 0410 | D64: 90112 | E64: 90142 | F64: 90337 | G64: 90197 | H64: 90101 | I64: 89830 | J64: 89683 | K64: 89582 | L64: 89455 | M64: 90312 | N64: 90598 | O64: 91079 | P64: 1081428
C65: 0420 | D65: 11824 | E65: 11757 | F65: 11787 | G65: 11780 | H65: 11735 | I65: 11722 | J65: 11674 | K65: 11664 | L65: 11525 | M65: 11788 | N65: 11752 | O65: 11818 | P65: 140826
C66: 0424 | D66: 83 | E66: 84 | F66: 81 | G66: 87 | H66: 84 | I66: 84 | J66: 82 | K66: 84 | L66: 84 | M66: 85 | N66: 86 | O66: 86 | P66: 1010
C67: 0440 | D67: 37 | E67: 35 | F67: 37 | G67: 36 | H67: 38 | I67: 36 | J67: 37 | K67: 37 | L67: 38 | M67: 37 | N67: 36 | O67: 39 | P67: 443
C68: 0444 | D68: 1 | E68: 1 | F68: 0 | G68: 0 | H68: 1 | I68: 4 | J68: 3 | K68: 4 | L68: 7 | M68: 4 | N68: 2 | O68: 2 | P68: 29
C69: 0447B | D69: 2 | E69: 1 | F69: 1 | G69: 1 | H69: 1 | I69: 0 | J69: 1 | K69: 1 | L69: 1 | M69: 1 | N69: 1 | O69: 1 | P69: 12
C70: 0447R | D70: 1 | E70: 1 | F70: 1 | G70: 1 | H70: 1 | I70: 1 | J70: 1 | K70: 1 | L70: 1 | M70: 1 | N70: 1 | O70: 1 | P70: 12
C71: 0456 | D71: 38 | E71: 38 | F71: 38 | G71: 38 | H71: 38 | I71: 38 | J71: 38 | K71: 38 | L71: 38 | M71: 38 | N71: 38 | O71: 34 | P71: 452
C72: 0460 | D72: 0 | E72: 0 | F72: 0 | G72: 0 | H72: 0 | I72: 0 | J72: 0 | K72: 0 | L72: 0 | M72: 0 | N72: 0 | O72: 0 | P72: 0
C73: 0499 | D73: 0 | E73: 0 | F73: 0 | G73: 0 | H73: 0 | I73: 0 | J73: 0 | K73: 0 | L73: 0 | M73: 0 | N73: 0 | O73: 0 | P73: 0
C74: 447B | D74: 0 | E74: 0 | F74: 0 | G74: 0 | H74: 0 | I74: 0 | J74: 0 | K74: 0 | L74: 0 | M74: 0 | N74: 0 | O74: 0 | P74: 0
C75: 0447M | E75: 1 | F75: 1 | G75: 1 | H75: 1 | I75: 1 | J75: 1 | K75: 1 | L75: 1 | M75: 1 | N75: 1 | O75: 1 | P75: 11
C76: Total | D76: 102098 | E76: 102060 | F76: 102283 | G76: 102141 | H76: 102000 | I76: 101716 | J76: 101520 | K76: 101412 | L76: 101150 | M76: 102267 | N76: 102515 | O76: 103061 | P76: 1224223
B77: WA | C77: 0101 | D77: 160426 | E77: 160194 | F77: 161042 | G77: 160754 | H77: 161195 | I77: 161073 | J77: 161417 | K77: 161730 | L77: 160225 | M77: 164438 | N77: 163219 | O77: 163683 | P77: 1939396
C78: 0102 | D78: 185 | E78: 184 | F78: 186 | G78: 181 | H78: 176 | I78: 174 | J78: 171 | K78: 170 | L78: 170 | M78: 168 | N78: 167 | O78: 167 | P78: 2099
C79: 0111 | D79: 2999 | E79: 3013 | F79: 3073 | G79: 3062 | H79: 3042 | I79: 3065 | J79: 3054 | K79: 3045 | L79: 2975 | M79: 3121 | N79: 3054 | O79: 3716 | P79: 37219
C80: 0112 | D80: 1 | E80: 1 | F80: 1 | G80: 1 | H80: 1 | I80: 1 | J80: 1 | K80: 1 | L80: 1 | M80: 1 | N80: 1 | O80: 1 | P80: 12
C81: 0121 | D81: 22 | E81: 22 | F81: 22 | G81: 22 | H81: 22 | I81: 22 | J81: 22 | K81: 23 | L81: 19 | M81: 24 | N81: 22 | O81: -608 | P81: -366
C82: 0122 | D82: 1 | E82: 1 | F82: 1 | G82: 1 | H82: 1 | I82: 1 | J82: 1 | K82: 1 | L82: 1 | M82: 1 | N82: 1 | O82: 1 | P82: 12
C83: 0132 | D83: 2 | E83: 2 | F83: 2 | G83: 2 | H83: 2 | I83: 2 | J83: 2 | K83: 2 | L83: 2 | M83: 2 | N83: 2 | O83: 2 | P83: 24
C84: 0146 | D84: 41 | E84: 41 | F84: 41 | G84: 41 | H84: 41 | I84: 41 | J84: 41 | K84: 41 | L84: 41 | M84: 38 | N84: 40 | O84: 39 | P84: 486
C85: 0147 | D85: 3 | E85: 2 | F85: 3 | G85: 3 | H85: 3 | I85: 2 | J85: 3 | K85: 3 | L85: 3 | M85: 3 | N85: 3 | O85: 3 | P85: 34
C86: 0148 | D86: 5 | E86: 5 | F86: 5 | G86: 5 | H86: 5 | I86: 5 | J86: 5 | K86: 5 | L86: 5 | M86: 5 | N86: 5 | O86: 5 | P86: 60
C87: 0158 | D87: 0 | E87: 0 | F87: 0 | G87: 0 | H87: 0 | I87: 0 | J87: 0 | K87: 0 | L87: 0 | M87: 0 | N87: 0 | O87: 0 | P87: 0
C88: 0158A | D88: 0 | E88: 0 | F88: 0 | G88: 0 | H88: 0 | I88: 0 | J88: 0 | K88: 0 | L88: 0 | M88: 0 | N88: 0 | O88: 0 | P88: 0
C89: 0199 | D89: 0 | E89: 0 | F89: 0 | G89: 0 | H89: 0 | I89: 0 | J89: 0 | K89: 0 | L89: 0 | M89: 0 | N89: 0 | O89: 0 | P89: 0
C90: Total | D90: 163685 | E90: 163465 | F90: 164376 | G90: 164072 | H90: 164488 | I90: 164386 | J90: 164717 | K90: 165021 | L90: 163442 | M90: 167801 | N90: 166514 | O90: 167009 | P90: 1978976
B91: Total | D91: 348908 | E91: 348754 | F91: 349944 | G91: 349603 | H91: 349906 | I91: 349618 | J91: 349909 | K91: 350338 | L91: 348457 | M91: 354657 | N91: 353763 | O91: 354955 | P91: 4208812
A92: Total | D92: 732981 | E92: 731524 | F92: 734760 | G92: 733009 | H92: 733746 | I92: 733151 | J92: 734468 | K92: 735521 | L92: 731343 | M92: 744248 | N92: 741165 | O92: 742617 | P92: 8828533
A93: Page 3 of 4 | K93: Run Date: Jan 8, 2019
B97: Billed Customers
B98: WA Sch 1/2 | D98: =D31+D32 -> 215198 | E98: =E31+E32 -> 214198 | F98: 216045 | G98: 214971 | H98: 215099 | I98: 214829 | J98: 215408 | K98: 215648 | L98: 214122 | M98: 218388 | N98: 216943 | O98: 217126 | P98: =SUM(D98:O98) -> 2587975
B99: WA Sch 11/12 | D99: =D33+D34 -> 32467 | E99: =E33+E34 -> 32081 | F99: 32186 | G99: 31947 | H99: 32176 | I99: 32138 | J99: 32288 | K99: 32352 | L99: 31445 | M99: 33083 | N99: 32307 | O99: 32330 | P99: =SUM(D99:O99) -> 386800
B100: WA Sch 21/22 | D100: =D35+D36 -> 1914 | E100: =E35+E36 -> 1903 | F100: 1914 | G100: 1889 | H100: 1905 | I100: 1901 | J100: 1892 | K100: 1904 | L100: 1859 | M100: 1940 | N100: 1865 | O100: 1901 | P100: 22787
B101: WA Sch 25 | D101: =D37+D52 -> 21 | E101: =E37+E52 -> 22 | F101: 22 | G101: 23 | H101: 4 | I101: 23 | J101: 23 | K101: 23 | L101: 23 | M101: 23 | N101: 23 | O101: 23 | P101: 253
B102: WA Sch 30/31/32 | D102: =D38+D39+D40 -> 2487 | E102: =E38+E39+E40 -> 2461 | F102: 2452 | G102: 2419 | H102: 2463 | I102: 2447 | J102: 2464 | K102: 2473 | L102: 2414 | M102: 2505 | N102: 2441 | O102: 2420 | P102: 29446
B103: WA St & Area Lights | D103: =SUM(D41:D47) -> 427 | E103: =SUM(E41:E47) -> 418 | F103: 425 | G103: 426 | H103: 425 | I103: 425 | J103: 428 | K103: 416 | L103: 421 | M103: 429 | N103: 425 | O103: 432 | P103: 5097
B104: ID Sch 1 | D104: =D6+D28 -> 107450 | E104: =E6+E28 -> 107398 | F104: 107502 | G104: 107465 | H104: 107498 | I104: 107445 | J104: 107744 | K104: 108017 | L104: 108283 | M104: 108613 | N104: 108900 | O104: 108991 | P104: =SUM(D104:O104) -> 1295306
B105: ID Sch 11/12 | D105: =D7+D8+D29 -> 21458 | E105: =E7+E8+E29 -> 21545 | F105: 21573 | G105: 21560 | H105: 21566 | I105: 21608 | J105: 21610 | K105: 21640 | L105: 21625 | M105: 21856 | N105: 21810 | O105: 21767 | P105: =SUM(D105:O105) -> 259618
B106: ID Sch 21/22 | D106: =D9+D10 -> 1107 | E106: =E9+E10 -> 1106 | F106: 1107 | G106: 1103 | H106: 1110 | I106: 1105 | J106: 1099 | K106: 1102 | L106: 1091 | M106: 1101 | N106: 1087 | O106: 1077 | P106: 13195
B107: ID Sch 25 | D107: =D11+D25 -> 12 | E107: =E11+E25 -> 12 | F107: 10 | G107: 12 | H107: 2 | I107: 12 | J107: 12 | K107: 12 | L107: 12 | M107: 12 | N107: 12 | O107: 12 | P107: 132
B108: ID Sch 25P | D108: =D26 -> 1 | E108: =E26 -> 1 | F108: 1 | G108: 1 | H108: 0 | I108: 1 | J108: 1 | K108: 1 | L108: 1 | M108: 1 | N108: 1 | O108: 1 | P108: 11
B109: ID Sch 31/32 | D109: =D12+D13 -> 1409 | E109: =E12+E13 -> 1421 | F109: 1412 | G109: 1423 | H109: 1424 | I109: 1429 | J109: 1420 | K109: 1425 | L109: 1417 | M109: 1459 | N109: 1421 | O109: 1410 | P109: 17070
B110: ID St & Area Lights | D110: =SUM(D14:D21) -> 122 | E110: =SUM(E14:E21) -> 204 | F110: 167 | G110: 167 | H110: 168 | I110: 170 | J110: 170 | K110: 170 | L110: 173 | M110: 181 | N110: 167 | O110: 172 | P110: 2031
B112: WA Sch 101/102 | D112: =D77+D78 -> 160611 | E112: =E77+E78 -> 160378 | F112: 161228 | G112: 160935 | H112: 161371 | I112: 161247 | J112: 161588 | K112: 161900 | L112: 160395 | M112: 164606 | N112: 163386 | O112: 163850 | P112: =SUM(D112:O112) -> 1941495
B113: WA Sch 111/112 | D113: =D79+D80 -> 3000 | E113: =E79+E80 -> 3014 | F113: 3074 | G113: 3063 | H113: 3043 | I113: 3066 | J113: 3055 | K113: 3046 | L113: 2976 | M113: 3122 | N113: 3055 | O113: 3717 | P113: =SUM(D113:O113) -> 37231
B114: WA Sch 121/122 | D114: =D81+D82 -> 23 | E114: =E81+E82 -> 23 | F114: 23 | G114: 23 | H114: 23 | I114: 23 | J114: 23 | K114: 24 | L114: 20 | M114: 25 | N114: 23 | O114: -607 | P114: -354
B115: WA Sch 131/132 | D115: =D83 -> 2 | E115: =E83 -> 2 | F115: 2 | G115: 2 | H115: 2 | I115: 2 | J115: 2 | K115: 2 | L115: 2 | M115: 2 | N115: 2 | O115: 2 | P115: 24
B116: WA Sch 146 | D116: =D84 -> 41 | E116: =E84 -> 41 | F116: 41 | G116: 41 | H116: 41 | I116: 41 | J116: 41 | K116: 41 | L116: 41 | M116: 38 | N116: 40 | O116: 39 | P116: 486
B117: WA Special Contracts | D117: =D85+D86 -> 8 | E117: =E85+E86 -> 7 | F117: 8 | G117: 8 | H117: 8 | I117: 7 | J117: 8 | K117: 8 | L117: 8 | M117: 8 | N117: 8 | O117: 8 | P117: 94
B118: ID Sch 101 | D118: =D55 -> 81663 | E118: =E55 -> 81746 | F118: 81795 | G118: 81891 | H118: 81907 | I118: 82005 | J118: 82164 | K118: 82408 | L118: 82361 | M118: 83068 | N118: 83227 | O118: 83374 | P118: 987609
B119: ID Sch 111/112 | D119: =D56+D57 -> 1454 | E119: =E56+E57 -> 1475 | F119: 1482 | G119: 1491 | H119: 1503 | I119: 1503 | J119: 1500 | K119: 1489 | L119: 1496 | M119: 1513 | N119: 1499 | O119: 1503 | P119: 17908
B120: ID Sch 131/132 | D120: =0 -> 0 | E120: =0 -> 0 | F120: =0 -> 0 | G120: =0 -> 0 | H120: =0 -> 0 | I120: =0 -> 0 | J120: =0 -> 0 | K120: =0 -> 0 | L120: =0 -> 0 | M120: =0 -> 0 | N120: =0 -> 0 | O120: =0 -> 0 | P120: 0
B121: ID Sch 146 | D121: =D58 -> 6 | E121: =E58 -> 6 | F121: 6 | G121: 6 | H121: 6 | I121: 6 | J121: 6 | K121: 6 | L121: 6 | M121: 6 | N121: 6 | O121: 6 | P121: 72
B122: ID Special Contracts | D122: =D59+D61 -> 2 | E122: =E59+E61 -> 2 | F122: 2 | G122: 2 | H122: 2 | I122: 2 | J122: 2 | K122: 2 | L122: 2 | M122: 2 | N122: 2 | O122: 2 | P122: 24
B123: OR Sch 410 | D123: =D64 -> 90112 | E123: =E64 -> 90142 | F123: 90337 | G123: 90197 | H123: 90101 | I123: 89830 | J123: 89683 | K123: 89582 | L123: 89455 | M123: 90312 | N123: 90598 | O123: 91079 | P123: 1081428
B124: OR Sch 420 | D124: =D65 -> 11824 | E124: 11757 | F124: 11787 | G124: 11780 | H124: 11735 | I124: 11722 | J124: 11674 | K124: 11664 | L124: 11525 | M124: 11788 | N124: 11752 | O124: 11818 | P124: 140826
B125: OR Sch 424 | D125: 83 | E125: 84 | F125: 81 | G125: 87 | H125: 84 | I125: 84 | J125: 82 | K125: 84 | L125: 84 | M125: 85 | N125: 86 | O125: 86 | P125: 1010
B126: OR Sch 440 | D126: 37 | E126: 35 | F126: 37 | G126: 36 | H126: 38 | I126: 36 | J126: 37 | K126: 37 | L126: 38 | M126: 37 | N126: 36 | O126: 39 | P126: 443
B127: OR Sch 444 | D127: 1 | E127: 1 | F127: 0 | G127: 0 | H127: 1 | I127: 4 | J127: 3 | K127: 4 | L127: 7 | M127: 4 | N127: 2 | O127: 2 | P127: 29
B128: OR Sch 456 | D128: =D71 -> 38 | E128: =E71 -> 38 | F128: 38 | G128: 38 | H128: 38 | I128: 38 | J128: 38 | K128: 38 | L128: 38 | M128: 38 | N128: 38 | O128: 34 | P128: 452
B129: OR Special Contracts | D129: =D69+D70+D74+D75 -> 3 | E129: =E69+E70+E74+E75 -> 3 | F129: 3 | G129: 3 | H129: 3 | I129: 2 | J129: 3 | K129: 3 | L129: 3 | M129: 3 | N129: 3 | O129: 3 | P129: 35

Sheet WA Sch 25
A1: Washington Schedule 25 Billing Determinants | Q1: 1st | R1: =Q2 -> 500000 | S1: =R2 -> 6000000
P2: 12-mo Ended | Q2: 500000 | R2: 6000000 | S2: 99999999
A3: KWHs | C3: Acct No. | D3: 2018-01-01 | E3: 2018-02-01 | F3: 2018-03-01 | G3: 2018-04-01 | H3: 2018-05-01 | I3: 2018-06-01 | J3: 2018-07-01 | K3: 2018-08-01 | L3: 2018-09-01 | M3: 2018-10-01 | N3: 2018-11-01 | O3: 2018-12-01 | P3: Total | Q3: kwhs/mo | R3: kwhs/mo | S3: kwhs/mo
A4: 1 | D4: 5417357.4 | E4: 5209482.6 | F4: 5598083.4 | G4: 5938930.2 | H4: 6179069.4 | I4: 5771215.8 | J4: 6205584 | K4: 6286131.6 | L4: 5214997.2 | M4: 6027205.8 | N4: 4774253.4 | O4: 6083616 | P4: =SUM(D4:O4) -> 68705926.8 | Q4: =Q$2*12-SUMPRODUCT(--($D4:$O4<=Q$2),Q$2-$D4:$O4) -> 6000000 | R4: =R$2*12-SUM($Q4:Q4)-SUMPRODUCT(--($D4:$O4<=R$2),R$2-$D4:$O4) -> 61924320 | S4: =S$2*12-SUM($Q4:R4)-SUMPRODUCT(--($D4:$O4<=S$2),S$2-$D4:$O4) -> 781606.8
A5: 22 | D5: 606597 | E5: 661977.2 | F5: 727160 | G5: 697581 | H5: 691017.6 | I5: 762333.6 | J5: 723049.6 | K5: 817499.2 | L5: 511733.6 | M5: 638428 | N5: 649174.4 | O5: 720994.4 | P5: 8207545.6 | Q5: =Q$2*12-SUMPRODUCT(--($D5:$O5<=Q$2),Q$2-$D5:$O5) -> 6000000 | R5: =R$2*12-SUM($Q5:Q5)-SUMPRODUCT(--($D5:$O5<=R$2),R$2-$D5:$O5) -> 2207545.6 | S5: =S$2*12-SUM($Q5:R5)-SUMPRODUCT(--($D5:$O5<=S$2),S$2-$D5:$O5) -> 0
A6: 23 | D6: 979473.6 | E6: 895377 | F6: 951957.3 | G6: 876397.2 | H6: 896023.8 | I6: 891303 | J6: 781783.8 | K6: 831364.8 | L6: 779045.4 | M6: 873927.6 | N6: 836098.2 | O6: 812217 | P6: 10404968.7 | Q6: 6000000 | R6: =R$2*12-SUM($Q6:Q6)-SUMPRODUCT(--($D6:$O6<=R$2),R$2-$D6:$O6) -> 4404968.7 | S6: =S$2*12-SUM($Q6:R6)-SUMPRODUCT(--($D6:$O6<=S$2),S$2-$D6:$O6) -> 0
A7: 2 | D7: 3098709.6 | E7: 2900940 | F7: 3192966 | G7: 3000358.2 | H7: 2990820 | I7: 2914699.2 | J7: 2818183.2 | K7: 2977010.4 | L7: 2712145.8 | M7: 2877663.6 | N7: 2753625 | O7: 1593639.598 | P7: 33830760.6 | Q7: =Q$2*12-SUMPRODUCT(--($D7:$O7<=Q$2),Q$2-$D7:$O7) -> 6000000 | R7: =R$2*12-SUM($Q7:Q7)-SUMPRODUCT(--($D7:$O7<=R$2),R$2-$D7:$O7) -> 27830760.6 | S7: =S$2*12-SUM($Q7:R7)-SUMPRODUCT(--($D7:$O7<=S$2),S$2-$D7:$O7) -> 0
A8: 3 | D8: 1451406.6 | E8: 1330051.8 | F8: 1413395.2 | G8: 1259812.4 | H8: 1296068.2 | I8: 1267047.6 | J8: 1254391.6 | K8: 1297139.2 | L8: 1191800.4 | M8: 1372032.2 | N8: 1325175.6 | O8: 1396154.9 | P8: 15854475.7 | Q8: 6000000 | R8: =R$2*12-SUM($Q8:Q8)-SUMPRODUCT(--($D8:$O8<=R$2),R$2-$D8:$O8) -> 9854475.7 | S8: =S$2*12-SUM($Q8:R8)-SUMPRODUCT(--($D8:$O8<=S$2),S$2-$D8:$O8) -> 0
A9: 4 | D9: 1294328.7 | E9: 1157305.8 | F9: 1248464.7 | G9: 1205773.8 | H9: 1278664.8 | I9: 1238120.1 | J9: 1324371.3 | K9: 1312516.8 | L9: 1250367.3 | M9: 1238766.9 | N9: 1209572.7 | O9: 1305220.344 | P9: 15063473.24 | Q9: 6000000 | R9: =R$2*12-SUM($Q9:Q9)-SUMPRODUCT(--($D9:$O9<=R$2),R$2-$D9:$O9) -> 9063473.244 | S9: =S$2*12-SUM($Q9:R9)-SUMPRODUCT(--($D9:$O9<=S$2),S$2-$D9:$O9) -> 0
A10: 5 | D10: 1680174.3 | E10: 1550971.8 | F10: 1669355.1 | G10: 1622050.5 | H10: 1966864.2 | I10: 1912079.4 | J10: 2179709.7 | K10: 2106808.2 | L10: 1816311 | M10: 1649123.7 | N10: 1620303.3 | O10: 1705474.05 | P10: 21479225.25 | Q10: 6000000 | R10: =R$2*12-SUM($Q10:Q10)-SUMPRODUCT(--($D10:$O10<=R$2),R$2-$D10:$O10) -> 15479225.25 | S10: =S$2*12-SUM($Q10:R10)-SUMPRODUCT(--($D10:$O10<=S$2),S$2-$D10:$O10) -> 0
A11: 6 | D11: 2251093.6 | E11: 2295039.6 | F11: 2148288.8 | G11: 2103292.8 | H11: 1859382 | I11: 1633699.2 | J11: 1985695.6 | K11: 2040340.4 | L11: 2035250 | M11: 2111894.4 | N11: 2195715.2 | O11: 2199177.4 | P11: 24858869 | Q11: 6000000 | R11: =R$2*12-SUM($Q11:Q11)-SUMPRODUCT(--($D11:$O11<=R$2),R$2-$D11:$O11) -> 18858869 | S11: =S$2*12-SUM($Q11:R11)-SUMPRODUCT(--($D11:$O11<=S$2),S$2-$D11:$O11) -> 0
A12: 7 | D12: 1342430.6 | E12: 1273123.6 | F12: 1374676.8 | G12: 1291710 | H12: 1411495.4 | I12: 1389838.8 | J12: 1540082.6 | K12: 1508025.4 | L12: 1332346.4 | M12: 1340910.2 | N12: 1106404.6 | O12: 1156736.7 | P12: 16067781.1 | Q12: 6000000 | R12: =R$2*12-SUM($Q12:Q12)-SUMPRODUCT(--($D12:$O12<=R$2),R$2-$D12:$O12) -> 10067781.1 | S12: =S$2*12-SUM($Q12:R12)-SUMPRODUCT(--($D12:$O12<=S$2),S$2-$D12:$O12) -> 0
A13: 8 | D13: 1108779 | E13: 1009331.4 | F13: 1067136 | G13: 1043343 | H13: 1082596.2 | I13: 1052801.4 | J13: 1056594 | K13: 1131643.8 | L13: 962224.2 | M13: 1076833.8 | N13: 959767.2 | O13: 904652.7 | P13: 12455702.7 | Q13: 6000000 | R13: =R$2*12-SUM($Q13:Q13)-SUMPRODUCT(--($D13:$O13<=R$2),R$2-$D13:$O13) -> 6455702.7 | S13: =S$2*12-SUM($Q13:R13)-SUMPRODUCT(--($D13:$O13<=S$2),S$2-$D13:$O13) -> 0
A14: 9 | D14: 42113570 | E14: 38726690 | F14: 42012008 | G14: 40858220 | H14: 39613368 | I14: 39658628 | J14: 40571988 | K14: 41162272 | L14: 38387778 | M14: 41469272 | N14: 39553724 | O14: 41299864 | P14: 485427382 | Q14: 6000000 | R14: =R$2*12-SUM($Q14:Q14)-SUMPRODUCT(--($D14:$O14<=R$2),R$2-$D14:$O14) -> 66000000 | S14: =S$2*12-SUM($Q14:R14)-SUMPRODUCT(--($D14:$O14<=S$2),S$2-$D14:$O14) -> 413427382
A15: 10 | D15: 5475880.2 | E15: 3225600 | F15: 5302936.8 | G15: 5139876 | H15: 5546520 | I15: 4880064 | J15: 4436115.6 | K15: 5475225 | L15: 4745651.4 | M15: 5373593.4 | N15: 4515264.6 | O15: 4882489.5 | P15: 58999216.5 | Q15: 6000000 | R15: =R$2*12-SUM($Q15:Q15)-SUMPRODUCT(--($D15:$O15<=R$2),R$2-$D15:$O15) -> 52999216.5 | S15: =S$2*12-SUM($Q15:R15)-SUMPRODUCT(--($D15:$O15<=S$2),S$2-$D15:$O15) -> 0
A16: 11 | D16: 2675148 | E16: 4832542.4 | F16: 5366177.6 | G16: 5075285.6 | H16: 5759633.6 | I16: 4983580 | J16: 4542300 | K16: 5232987.2 | L16: 5027002.401 | M16: 5821580.8 | N16: 5324020.8 | O16: 5382109.6 | P16: 60022368 | Q16: 6000000 | R16: =R$2*12-SUM($Q16:Q16)-SUMPRODUCT(--($D16:$O16<=R$2),R$2-$D16:$O16) -> 54022368 | S16: =S$2*12-SUM($Q16:R16)-SUMPRODUCT(--($D16:$O16<=S$2),S$2-$D16:$O16) -> 0
A17: 12 | D17: 3200689.8 | E17: 2917420.8 | F17: 3190861.8 | G17: 3189855.9 | H17: 4044789 | I17: 3911493.6 | J17: 4551246 | K17: 4441298.4 | L17: 3624860.4 | M17: 3239193.3 | N17: 3056115.3 | O17: 3093191.85 | P17: 42461016.15 | Q17: 6000000 | R17: =R$2*12-SUM($Q17:Q17)-SUMPRODUCT(--($D17:$O17<=R$2),R$2-$D17:$O17) -> 36461016.15 | S17: =S$2*12-SUM($Q17:R17)-SUMPRODUCT(--($D17:$O17<=S$2),S$2-$D17:$O17) -> 0
A18: 13 | D18: 911570.1 | E18: 817296.9 | F18: 882348.6 | G18: 881155.8 | H18: 1073816.1 | I18: 1046600.1 | J18: 1202604.9 | K18: 1199814 | L18: 978219.9 | M18: 934644.9 | N18: 858442.2 | O18: 887575.5 | P18: 11674089 | Q18: 6000000 | R18: =R$2*12-SUM($Q18:Q18)-SUMPRODUCT(--($D18:$O18<=R$2),R$2-$D18:$O18) -> 5674089 | S18: =S$2*12-SUM($Q18:R18)-SUMPRODUCT(--($D18:$O18<=S$2),S$2-$D18:$O18) -> 0
A19: 14 | D19: 889757.4 | E19: 844967.4 | F19: 962325 | G19: 864949.2 | H19: 926184 | I19: 881078.4 | J19: 904692 | K19: 991965 | L19: 957684.6 | M19: 1042830.6 | N19: 790020.6 | O19: 875425.8 | P19: 10931880 | Q19: 6000000 | R19: =R$2*12-SUM($Q19:Q19)-SUMPRODUCT(--($D19:$O19<=R$2),R$2-$D19:$O19) -> 4931880 | S19: =S$2*12-SUM($Q19:R19)-SUMPRODUCT(--($D19:$O19<=S$2),S$2-$D19:$O19) -> 0
A20: 15 | D20: 1270193.4 | E20: 1112622 | F20: 1160409.6 | G20: 1219999.2 | H20: 1452465 | I20: 1443086.4 | J20: 1530123 | K20: 1495053 | L20: 1277089.8 | M20: 1209801.6 | N20: 1110093.6 | O20: 1091279.701 | P20: 15372216.3 | Q20: 6000000 | R20: =R$2*12-SUM($Q20:Q20)-SUMPRODUCT(--($D20:$O20<=R$2),R$2-$D20:$O20) -> 9372216.301 | S20: =S$2*12-SUM($Q20:R20)-SUMPRODUCT(--($D20:$O20<=S$2),S$2-$D20:$O20) -> 0
A21: 16 | D21: 2358092.8 | E21: 2190658.4 | F21: 2360405.6 | G21: 2160110.4 | H21: 1789183.2 | I21: 2045484 | J21: 1923790.4 | K21: 1989926.4 | L21: 1954489.6 | M21: 2159164 | N21: 2107380.8 | O21: 2255610 | P21: 25294295.6 | Q21: 6000000 | R21: =R$2*12-SUM($Q21:Q21)-SUMPRODUCT(--($D21:$O21<=R$2),R$2-$D21:$O21) -> 19294295.6 | S21: =S$2*12-SUM($Q21:R21)-SUMPRODUCT(--($D21:$O21<=S$2),S$2-$D21:$O21) -> 0
A22: 17 | D22: 2503933.6 | E22: 2509035.2 | F22: 2568546.4 | G22: 2359705.6 | H22: 2259538.4 | I22: 2136456 | J22: 2168320 | K22: 2295686.4 | L22: 2237127.2 | M22: 2436683.2 | N22: 2370692.8 | O22: 2555655.2 | P22: 28401380 | Q22: 6000000 | R22: =R$2*12-SUM($Q22:Q22)-SUMPRODUCT(--($D22:$O22<=R$2),R$2-$D22:$O22) -> 22401380 | S22: =S$2*12-SUM($Q22:R22)-SUMPRODUCT(--($D22:$O22<=S$2),S$2-$D22:$O22) -> 0
A23: 18 | D23: 4357473 | E23: 3896860 | F23: 3695622 | G23: 3595240 | H23: 4259323 | I23: 4201313 | J23: 5094661.29 | K23: 5131098.29 | L23: 4086204.3 | M23: 3815254.08 | N23: 3722507 | O23: 3968524.87 | P23: 49824080.83 | Q23: 6000000 | R23: =R$2*12-SUM($Q23:Q23)-SUMPRODUCT(--($D23:$O23<=R$2),R$2-$D23:$O23) -> 43824080.83 | S23: =S$2*12-SUM($Q23:R23)-SUMPRODUCT(--($D23:$O23<=S$2),S$2-$D23:$O23) -> 0
A24: 19 | D24: 3294921 | E24: 2997090.6 | F24: 3210345.6 | G24: 3063408.6 | H24: 2906194.2 | I24: 2811337.2 | J24: 2954351.4 | K24: 2975448 | L24: 2907105.6 | M24: 3094039.2 | N24: 3162175.8 | O24: 3309637.8 | P24: 36686055 | Q24: 6000000 | R24: =R$2*12-SUM($Q24:Q24)-SUMPRODUCT(--($D24:$O24<=R$2),R$2-$D24:$O24) -> 30686055 | S24: =S$2*12-SUM($Q24:R24)-SUMPRODUCT(--($D24:$O24<=S$2),S$2-$D24:$O24) -> 0
A25: 20 | D25: 2586936 | E25: 2474712 | F25: 2788048 | G25: 2708744 | H25: 2555544 | I25: 2409704 | J25: 2499608 | K25: 2613272 | L25: 2564312 | M25: 2750072 | N25: 2713584 | O25: 2854344.424 | P25: 31518880.42 | Q25: 6000000 | R25: =R$2*12-SUM($Q25:Q25)-SUMPRODUCT(--($D25:$O25<=R$2),R$2-$D25:$O25) -> 25518880.42 | S25: =S$2*12-SUM($Q25:R25)-SUMPRODUCT(--($D25:$O25<=S$2),S$2-$D25:$O25) -> 0
A26: 21 | D26: 2369852.8 | E26: 2230491.2 | F26: 2259040 | G26: 2340637.6 | H26: 2228816.8 | I26: 2189023.2 | J26: 3213347.2 | K26: 3415423.2 | L26: 2857607.2 | M26: 2567745.6 | N26: 2208488.8 | O26: 2141949.6 | P26: 30022423.2 | Q26: 6000000 | R26: =R$2*12-SUM($Q26:Q26)-SUMPRODUCT(--($D26:$O26<=R$2),R$2-$D26:$O26) -> 24022423.2 | S26: =S$2*12-SUM($Q26:R26)-SUMPRODUCT(--($D26:$O26<=S$2),S$2-$D26:$O26) -> 0
A27: Schedule 25 Total | D27: =SUM(D4:D26) -> 93238368.5 | E27: 87059587.7 | F27: 95150558.3 | G27: 92496437 | H27: 94067376.9 | I27: 91430986 | J27: 95462593.19 | K27: 98727948.69 | L27: 89411353.7 | M27: 95120660.88 | N27: 88922599.9 | O27: 92475540.94 | P27: =IF(ROUND(SUM(P4:P26),0)<>ROUND(SUM(D27:O27),0),#VALUE!,SUM(P4:P26)) -> 1113564012 | Q27: =SUM(Q4:Q26) -> 138000000 | R27: =SUM(R4:R26) -> 561355022.9 | S27: =SUM(S4:S26) -> 414208988.8
S28: =SUM(Q27:S27) -> 1113564012
A29: Revenue Run Total | D29: ='Billed Usage'!D99 -> 85895739.5 | E29: ='Billed Usage'!E99 -> 82389792.7 | F29: ='Billed Usage'!F99 -> 59452404.5 | G29: ='Billed Usage'!G99 -> 91719050 | H29: ='Billed Usage'!H99 -> 50375927.6 | I29: ='Billed Usage'!I99 -> 94067376.9 | J29: ='Billed Usage'!J99 -> 91430986 | K29: ='Billed Usage'!K99 -> 95462593.19 | L29: ='Billed Usage'!L99 -> 98727948.69 | M29: ='Billed Usage'!M99 -> 89411353.7 | N29: ='Billed Usage'!N99 -> 95120660.88 | O29: ='Billed Usage'!O99 -> 88922599.9 | P29: =SUM(D29:O29) -> 1022976434
A30: Booked Unbilled Reversal | D30: ='Unbilled Usage '!E72+'Unbilled Usage '!E97 -> -2136242 | E30: ='Unbilled Usage '!F72+'Unbilled Usage '!F97 -> -11830759 | F30: ='Unbilled Usage '!G72+'Unbilled Usage '!G97 -> -16075679 | G30: ='Unbilled Usage '!H72+'Unbilled Usage '!H97 -> -45932134 | H30: ='Unbilled Usage '!I72+'Unbilled Usage '!I97 -> -49900218 | I30: ='Unbilled Usage '!J72+'Unbilled Usage '!J97 -> -92404792 | J30: ='Unbilled Usage '!K72+'Unbilled Usage '!K97 -> -94046228 | K30: ='Unbilled Usage '!L72+'Unbilled Usage '!L97 -> -95141639 | L30: ='Unbilled Usage '!M72+'Unbilled Usage '!M97 -> -98894442 | M30: ='Unbilled Usage '!N72+'Unbilled Usage '!N97 -> -89933574 | N30: ='Unbilled Usage '!O72+'Unbilled Usage '!O97 -> -95301943 | O30: ='Unbilled Usage '!P72+'Unbilled Usage '!P97 -> -87801605 | P30: =SUM(D30:O30) -> -779399255
A31: Gross Booked Unbilled | D31: ='Unbilled Usage '!E71+'Unbilled Usage '!E96 -> 11830759 | E31: ='Unbilled Usage '!F71+'Unbilled Usage '!F96 -> 16075679 | F31: ='Unbilled Usage '!G71+'Unbilled Usage '!G96 -> 45932134 | G31: ='Unbilled Usage '!H71+'Unbilled Usage '!H96 -> 49900218 | H31: ='Unbilled Usage '!I71+'Unbilled Usage '!I96 -> 92404792 | I31: ='Unbilled Usage '!J71+'Unbilled Usage '!J96 -> 94046228 | J31: ='Unbilled Usage '!K71+'Unbilled Usage '!K96 -> 95141639 | K31: ='Unbilled Usage '!L71+'Unbilled Usage '!L96 -> 98894442 | L31: ='Unbilled Usage '!M71+'Unbilled Usage '!M96 -> 89933574 | M31: ='Unbilled Usage '!N71+'Unbilled Usage '!N96 -> 95301943 | N31: ='Unbilled Usage '!O71+'Unbilled Usage '!O96 -> 87801605 | O31: ='Unbilled Usage '!P71+'Unbilled Usage '!P96 -> 92515285 | P31: =SUM(D31:O31) -> 869778298
A32: Gross Unbilled True-up | D32: 0 | E32: 424875 | F32: 6266574 | G32: 3075877 | H32: 4262752 | I32: -15075 | J32: 2921121 | K32: 2433674 | L32: 2077947 | M32: 2418885 | N32: 3721162 | O32: 2560423 | P32: 30148215
A33: Unbilled Reversal True-up | D33: -2351888 | E33: =-D32 -> 0 | F33: =-E32 -> -424875 | G33: -6266574 | H33: -3075877 | I33: -4262752 | J33: 15075 | K33: -2921121 | L33: -2433674 | M33: -2077947 | N33: -2418885 | O33: -3721162 | P33: -29939680
A34: Adj Revenue Runs, Sch 25 | D34: =SUM(D29:D33) -> 93238368.5 | E34: 87059587.7 | F34: 95150558.5 | G34: 92496437 | H34: 94067376.6 | I34: 91430985.9 | J34: 95462593 | K34: 98727949.19 | L34: 89411353.69 | M34: 95120660.7 | N34: 88922599.88 | O34: 92475540.9 | P34: =IF(ROUND(SUM(P29:P33),0)<>ROUND(SUM(D34:O34),0),#VALUE!,SUM(P29:P33)) -> 1113564012
D35: =D34-D27 -> 0 | E35: 0 | F35: 0.2000000328 | G35: 0 | H35: -0.299999997 | I35: -0.09999999404 | J35: -0.1900000274 | K35: 0.4999999702 | L35: -0.01099999249 | M35: -0.1789999902 | N35: -0.01999998093 | O35: -0.03699998558 | P35: -0.1369998455
A38: KVA | D38: =D$3 -> 2018-01-01 | E38: =E$3 -> 2018-02-01 | F38: 2018-03-01 | G38: 2018-04-01 | H38: 2018-05-01 | I38: 2018-06-01 | J38: 2018-07-01 | K38: 2018-08-01 | L38: 2018-09-01 | M38: 2018-10-01 | N38: 2018-11-01 | O38: 2018-12-01 | P38: Total | Q38: Peak | R38: Month
A39: 1 | D39: 9397.434 | E39: 10808.555 | F39: 10876.92 | G39: 12189.222 | H39: 10398.216 | I39: 11271.489 | J39: 10980.262 | K39: 11527.986 | L39: 10716.938 | M39: 11924.82 | N39: 10440.25 | O39: 10616.862 | P39: =SUM(D39:O39) -> 131148.954 | Q39: =MAX(D39:O39) -> 12189.222 | R39: =INDEX($D$38:$O$38,MATCH(Q39,$D39:$O39,0)) -> 2018-04-01
A40: 22 | D40: 2039 | E40: 2084 | F40: 2418.837 | G40: 2431.664 | H40: 2296.901 | I40: 2265.198 | J40: 2143.418 | K40: 2308.64 | L40: 2129.444 | M40: 2274.51 | N40: 2130.739 | O40: 2258.765 | P40: =SUM(D40:O40) -> 26781.116 | Q40: =MAX(D40:O40) -> 2431.664 | R40: =INDEX($D$38:$O$38,MATCH(Q40,$D40:$O40,0)) -> 2018-04-01
A41: 23 | D41: 4001.76 | E41: 3968.251 | F41: 3931.927 | G41: 3862.137 | H41: 3778.404 | I41: 3829.903 | J41: 3654.618 | K41: 3595.995 | L41: 3626.622 | M41: 3622.504 | N41: 3699.854 | O41: 3744.723 | P41: 45316.698 | Q41: 4001.76 | R41: 2018-01-01
A42: 2 | D42: 5106.868 | E42: 5228.836 | F42: 5152.597 | G42: 5015.616 | H42: 4996.581 | I42: 4970.735 | J42: 4928.08 | K42: 5016.854 | L42: 5010.126 | M42: 5221.112 | N42: 5144.923 | O42: 5190.31 | P42: =SUM(D42:O42) -> 60982.638 | Q42: =MAX(D42:O42) -> 5228.836 | R42: =INDEX($D$38:$O$38,MATCH(Q42,$D42:$O42,0)) -> 2018-02-01
A43: 3 | D43: 3044.835 | E43: 3165.724 | F43: 2936.157 | G43: 2832.737 | H43: 2790.268 | I43: 2642.027 | J43: 2697.375 | K43: 2738.079 | L43: 2684.688 | M43: 2751.567 | N43: 2958.556 | O43: 3120.735 | P43: 34362.748 | Q43: 3165.724 | R43: 2018-02-01
A44: 4 | D44: 2633.598 | E44: 2437.032 | F44: 2551.955 | G44: 2453.03 | H44: 2354.556 | I44: 2611.745 | J44: 2612.403 | K44: 2763.986 | L44: 2602.496 | M44: 2752.696 | N44: 2553.496 | O44: 2503.218 | P44: 30830.211 | Q44: 2763.986 | R44: 2018-08-01
A45: 5 | D45: 2779.067 | E45: 2869.538 | F45: 2721.992 | G45: 3450.44 | H45: 3858.024 | I45: 3693.93 | J45: 3911.697 | K45: 3885 | L45: 3581.145 | M45: 3055.421 | N45: 2832.361 | O45: 2887.872 | P45: 39526.487 | Q45: 3911.697 | R45: 2018-07-01
A46: 6 | D46: 4475.325 | E46: 4880.02 | F46: 4434.525 | G46: 4814.779 | H46: 4723.4 | I46: 4119.123 | J46: 4821.993 | K46: 5334.552 | L46: 5154.96 | M46: 4196.418 | N46: 4699.364 | O46: 4772.531 | P46: 56426.99 | Q46: 5334.552 | R46: 2018-08-01
A47: 7 | D47: 3061.67 | E47: 3134.306 | F47: 3167.087 | G47: 3035.386 | H47: 3408.92 | I47: 3260.476 | J47: 3649.725 | K47: 3544.709 | L47: 3110.418 | M47: 3118.114 | N47: 3034.592 | O47: 2905.031 | P47: 38430.434 | Q47: 3649.725 | R47: 2018-07-01
A48: 8 | D48: 4179.994 | E48: 4116.866 | F48: 4122.766 | G48: 4175.738 | H48: 4152.031 | I48: 4106.294 | J48: 4239.071 | K48: 4195.243 | L48: 4110.039 | M48: 4143.346 | N48: 4199.874 | O48: 4103.484 | P48: 49844.746 | Q48: 4239.071 | R48: 2018-07-01
A49: 9 | D49: 62256 | E49: 62379 | F49: 63189 | G49: 61994.13 | H49: 61517.53 | I49: 59396.53 | J49: 62813.1 | K49: 61040.2 | L49: 59942.23 | M49: 61096.84 | N49: 60588.02 | O49: 60856.67 | P49: 737069.25 | Q49: 63189 | R49: 2018-03-01
A50: 10 | D50: 8442.418 | E50: 8358.511 | F50: 8105.56 | G50: 8224.904 | H50: 8483.355 | I50: 8479.861 | J50: 8624.309 | K50: 8557.473 | L50: 9557.949 | M50: 8207.006 | N50: 8147.16 | O50: 8210.105 | P50: 101398.611 | Q50: 9557.949 | R50: 2018-09-01
A51: 11 | D51: 8657.716 | E51: 8652.44 | F51: 8902.788 | G51: 9184 | H51: 9377.531 | I51: 8867.607 | J51: 8953.067 | K51: 8889.252 | L51: 8913.068 | M51: 9166.261 | N51: 9181.978 | O51: 9106.778 | P51: 107852.486 | Q51: 9377.531 | R51: 2018-05-01
A52: 12 | D52: 5071.446 | E52: 5121.796 | F52: 5189.142 | G52: 7026.441 | H52: 7631.118 | I52: 7475.982 | J52: 8008.901 | K52: 8512.119 | L52: 7510.109 | M52: 6467.324 | N52: 5024.339 | O52: 5040.661 | P52: 78079.378 | Q52: 8512.119 | R52: 2018-08-01
A53: 13 | D53: 1785.914 | E53: 1777.647 | F53: 1775.562 | G53: 2368.014 | H53: 2782.803 | I53: 2718.5 | J53: 2820.427 | K53: 2869.488 | L53: 2416.084 | M53: 2158.53 | N53: 2108.187 | O53: 1774.449 | P53: 27355.605 | Q53: 2869.488 | R53: 2018-08-01
A54: 14 | D54: 6008.589 | E54: 5809.049 | F54: 6148.594 | G54: 6208.017 | H54: 6002.525 | I54: 6222.267 | J54: 6246.743 | K54: 6290.159 | L54: 5921.322 | M54: 6413.485 | N54: 5857.676 | O54: 6328.834 | P54: 73457.26 | Q54: 6413.485 | R54: 2018-10-01
A55: 15 | D55: 3065.39 | E55: 2963.974 | F55: 2942.471 | G55: 3177.044 | H55: 3683.091 | I55: 3760.293 | J55: 3950.198 | K55: 3875.251 | L55: 3607.348 | M55: 3124.811 | N55: 2862.724 | O55: 2867.945 | P55: 39880.54 | Q55: 3950.198 | R55: 2018-07-01
A56: 16 | D56: 4777.374 | E56: 4899.011 | F56: 4820.959 | G56: 4753.447 | H56: 4477.886 | I56: 4414.122 | J56: 4523.039 | K56: 4447.909 | L56: 4598.115 | M56: 4784.445 | N56: 4793.247 | O56: 4869.476 | P56: 56159.03 | Q56: 4899.011 | R56: 2018-02-01
A57: 17 | D57: 4509.541 | E57: 4640.64 | F57: 4637.138 | G57: 4368.632 | H57: 3971.707 | I57: 3937.003 | J57: 3983.565 | K57: 4133.544 | L57: 4257.915 | M57: 4457.15 | N57: 4390.914 | O57: 4512.599 | P57: 51800.348 | Q57: 4640.64 | R57: 2018-02-01
A58: 18 | D58: 8308 | E58: 7585 | F58: 7410 | G58: 9091.2 | H58: 9326.83 | I58: 9601.17 | J58: 10739.17 | K58: 10982.51 | L58: 9616.03 | M58: 7396.07 | N58: 7264.42 | O58: 7321.84 | P58: 104642.24 | Q58: 10982.51 | R58: 2018-08-01
A59: 19 | D59: 5683.281 | E59: 5615.932 | F59: 5617.817 | G59: 5574.057 | H59: 5024.534 | I59: 4956.975 | J59: 4832.483 | K59: 5151.419 | L59: 5185.685 | M59: 5362.346 | N59: 5780.531 | O59: 5915.085 | P59: 64700.145 | Q59: 5915.085 | R59: 2018-12-01
A60: 20 | D60: 4817.382 | E60: 5010.657 | F60: 5289.252 | G60: 5335.106 | H60: 4795.331 | I60: 4586.645 | J60: 4694.739 | K60: 5016.198 | L60: 4987.947 | M60: 5059.492 | N60: 5305.948 | O60: 5437.411 | P60: 60336.108 | Q60: 5437.411 | R60: 2018-12-01
A61: 21 | D61: 4338.623 | E61: 4320.718 | F61: 4136.319 | G61: 5872.945 | H61: 5696.32 | I61: 5612.318 | J61: 6844.556 | K61: 7163.116 | L61: 6990.209 | M61: 5036.215 | N61: 4252.462 | O61: 4379.93 | P61: 64643.731 | Q61: 7163.116 | R61: 2018-08-01
A62: Schedule 25 Total | D62: =SUM(D39:D61) -> 168441.225 | E62: 169827.503 | F62: 170479.365 | G62: 177438.686 | H62: 175527.862 | I62: 172800.193 | J62: 180672.939 | K62: 181839.682 | L62: 176230.887 | M62: 171790.483 | N62: 167251.615 | O62: 168725.314 | P62: =IF(ROUND(SUM(P39:P61),0)<>ROUND(SUM(D62:O62),0),#VALUE!,SUM(P39:P61)) -> 2081025.754
P64: =P$2 -> 12-mo Ended
A65: KVA in excess of 3,000 | D65: =D$3 -> 2018-01-01 | E65: =E$3 -> 2018-02-01 | F65: 2018-03-01 | G65: 2018-04-01 | H65: 2018-05-01 | I65: 2018-06-01 | J65: 2018-07-01 | K65: 2018-08-01 | L65: 2018-09-01 | M65: 2018-10-01 | N65: 2018-11-01 | O65: 2018-12-01 | P65: Total
A66: 1 | B66: =B4 -> 0 | C66: 0 | D66: =IF(D39>3000,D39-3000,0) -> 6397.434 | E66: =IF(E39>3000,E39-3000,0) -> 7808.555 | F66: =IF(F39>3000,F39-3000,0) -> 7876.92 | G66: =MAX(0,G39-3000) -> 9189.222 | H66: 7398.216 | I66: 8271.489 | J66: 7980.262 | K66: 8527.986 | L66: 7716.938 | M66: 8924.82 | N66: 7440.25 | O66: 7616.862 | P66: =SUM(D66:O66) -> 95148.954
A67: 22 | B67: 0 | C67: 0 | D67: =IF(D40>3000,D40-3000,0) -> 0 | E67: 0 | F67: 0 | G67: =MAX(0,G40-3000) -> 0 | H67: 0 | I67: 0 | J67: 0 | K67: 0 | L67: 0 | M67: 0 | N67: 0 | O67: 0 | P67: =SUM(D67:O67) -> 0
A68: 23 | B68: 0 | C68: 0 | D68: =IF(D41>3000,D41-3000,0) -> 1001.76 | E68: 968.251 | F68: 931.927 | G68: =MAX(0,G41-3000) -> 862.137 | H68: 778.404 | I68: 829.903 | J68: 654.618 | K68: 595.995 | L68: 626.622 | M68: 622.504 | N68: 699.854 | O68: 744.723 | P68: 9316.698
A69: 2 | B69: =B7 -> 0 | C69: 0 | D69: =IF(D42>3000,D42-3000,0) -> 2106.868 | E69: 2228.836 | F69: 2152.597 | G69: =MAX(0,G42-3000) -> 2015.616 | H69: 1996.581 | I69: 1970.735 | J69: 1928.08 | K69: 2016.854 | L69: 2010.126 | M69: 2221.112 | N69: 2144.923 | O69: 2190.31 | P69: 24982.638
A70: 3 | B70: 0 | C70: 0 | D70: 44.835 | E70: 165.724 | F70: 0 | G70: =MAX(0,G43-3000) -> 0 | H70: 0 | I70: 0 | J70: 0 | K70: 0 | L70: 0 | M70: 0 | N70: 0 | O70: 120.735 | P70: 331.294
A71: 4 | B71: 0 | C71: 0 | D71: 0 | E71: 0 | F71: 0 | G71: =MAX(0,G44-3000) -> 0 | H71: 0 | I71: 0 | J71: 0 | K71: 0 | L71: 0 | M71: 0 | N71: 0 | O71: 0 | P71: 0
A72: 5 | B72: 0 | C72: 0 | D72: 0 | E72: 0 | F72: 0 | G72: =MAX(0,G45-3000) -> 450.44 | H72: 858.024 | I72: 693.93 | J72: 911.697 | K72: 885 | L72: 581.145 | M72: 55.421 | N72: 0 | O72: 0 | P72: 4435.657
A73: 6 | B73: 0 | C73: 0 | D73: 1475.325 | E73: 1880.02 | F73: 1434.525 | G73: =MAX(0,G46-3000) -> 1814.779 | H73: 1723.4 | I73: 1119.123 | J73: 1821.993 | K73: 2334.552 | L73: 2154.96 | M73: 1196.418 | N73: 1699.364 | O73: 1772.531 | P73: 20426.99
A74: 7 | B74: 0 | C74: 0 | D74: 61.67 | E74: 134.306 | F74: 167.087 | G74: =MAX(0,G47-3000) -> 35.386 | H74: 408.92 | I74: 260.476 | J74: 649.725 | K74: 544.709 | L74: 110.418 | M74: 118.114 | N74: 34.592 | O74: 0 | P74: 2525.403
A75: 8 | B75: 0 | C75: 0 | D75: 1179.994 | E75: 1116.866 | F75: 1122.766 | G75: =MAX(0,G48-3000) -> 1175.738 | H75: 1152.031 | I75: 1106.294 | J75: 1239.071 | K75: 1195.243 | L75: 1110.039 | M75: 1143.346 | N75: 1199.874 | O75: 1103.484 | P75: 13844.746
A76: 9 | B76: 0 | C76: 0 | D76: =MAX(0,D49-3000) -> 59256 | E76: 59379 | F76: 60189 | G76: =MAX(0,G49-3000) -> 58994.13 | H76: 58517.53 | I76: 56396.53 | J76: 59813.1 | K76: 58040.2 | L76: 56942.23 | M76: 58096.84 | N76: 57588.02 | O76: 57856.67 | P76: 701069.25
A77: 10 | B77: 0 | C77: 0 | D77: =IF(D50>3000,D50-3000,0) -> 5442.418 | E77: 5358.511 | F77: 5105.56 | G77: =MAX(0,G50-3000) -> 5224.904 | H77: 5483.355 | I77: 5479.861 | J77: 5624.309 | K77: 5557.473 | L77: 6557.949 | M77: 5207.006 | N77: 5147.16 | O77: 5210.105 | P77: 65398.611
A78: 11 | B78: 0 | C78: 0 | D78: 5657.716 | E78: 5652.44 | F78: 5902.788 | G78: =MAX(0,G51-3000) -> 6184 | H78: 6377.531 | I78: 5867.607 | J78: 5953.067 | K78: 5889.252 | L78: 5913.068 | M78: 6166.261 | N78: 6181.978 | O78: 6106.778 | P78: 71852.486
A79: 12 | B79: 0 | C79: 0 | D79: 2071.446 | E79: 2121.796 | F79: 2189.142 | G79: =MAX(0,G52-3000) -> 4026.441 | H79: 4631.118 | I79: 4475.982 | J79: 5008.901 | K79: 5512.119 | L79: 4510.109 | M79: 3467.324 | N79: 2024.339 | O79: 2040.661 | P79: 42079.378
A80: 13 | B80: 0 | C80: 0 | D80: 0 | E80: 0 | F80: 0 | G80: =MAX(0,G53-3000) -> 0 | H80: 0 | I80: 0 | J80: 0 | K80: 0 | L80: 0 | M80: 0 | N80: 0 | O80: 0 | P80: 0
A81: 14 | B81: 0 | C81: 0 | D81: 3008.589 | E81: 2809.049 | F81: 3148.594 | G81: =MAX(0,G54-3000) -> 3208.017 | H81: 3002.525 | I81: 3222.267 | J81: 3246.743 | K81: 3290.159 | L81: 2921.322 | M81: 3413.485 | N81: 2857.676 | O81: 3328.834 | P81: 37457.26
A82: 15 | B82: 0 | C82: 0 | D82: 65.39 | E82: 0 | F82: 0 | G82: =MAX(0,G55-3000) -> 177.044 | H82: 683.091 | I82: 760.293 | J82: 950.198 | K82: 875.251 | L82: 607.348 | M82: 124.811 | N82: 0 | O82: 0 | P82: 4243.426
A83: 16 | B83: 0 | C83: 0 | D83: 1777.374 | E83: 1899.011 | F83: 1820.959 | G83: =MAX(0,G56-3000) -> 1753.447 | H83: 1477.886 | I83: 1414.122 | J83: 1523.039 | K83: 1447.909 | L83: 1598.115 | M83: 1784.445 | N83: 1793.247 | O83: 1869.476 | P83: 20159.03
A84: 17 | B84: 0 | C84: 0 | D84: 1509.541 | E84: 1640.64 | F84: 1637.138 | G84: =MAX(0,G57-3000) -> 1368.632 | H84: 971.707 | I84: 937.003 | J84: 983.565 | K84: 1133.544 | L84: 1257.915 | M84: 1457.15 | N84: 1390.914 | O84: 1512.599 | P84: 15800.348
A85: 18 | B85: 0 | C85: 0 | D85: 5308 | E85: 4585 | F85: 4410 | G85: =MAX(0,G58-3000) -> 6091.2 | H85: 6326.83 | I85: 6601.17 | J85: 7739.17 | K85: 7982.51 | L85: 6616.03 | M85: 4396.07 | N85: 4264.42 | O85: 4321.84 | P85: 68642.24
A86: 19 | B86: 0 | C86: 0 | D86: 2683.281 | E86: 2615.932 | F86: 2617.817 | G86: =MAX(0,G59-3000) -> 2574.057 | H86: 2024.534 | I86: 1956.975 | J86: 1832.483 | K86: 2151.419 | L86: 2185.685 | M86: 2362.346 | N86: 2780.531 | O86: 2915.085 | P86: 28700.145
A87: 20 | B87: 0 | C87: 0 | D87: 1817.382 | E87: 2010.657 | F87: 2289.252 | G87: =MAX(0,G60-3000) -> 2335.106 | H87: 1795.331 | I87: 1586.645 | J87: 1694.739 | K87: 2016.198 | L87: 1987.947 | M87: 2059.492 | N87: 2305.948 | O87: 2437.411 | P87: 24336.108
A88: 21 | B88: 0 | C88: 0 | D88: 1338.623 | E88: 1320.718 | F88: 1136.319 | G88: =MAX(0,G61-3000) -> 2872.945 | H88: 2696.32 | I88: 2612.318 | J88: 3844.556 | K88: 4163.116 | L88: 3990.209 | M88: 2036.215 | N88: 1252.462 | O88: 1379.93 | P88: 28643.731
A89: Schedule 25 Total | D89: =SUM(D66:D88) -> 102203.646 | E89: 103695.312 | F89: 104132.391 | G89: 110353.241 | H89: 108303.334 | I89: 105562.723 | J89: 113399.316 | K89: 114159.489 | L89: 109398.175 | M89: 104853.18 | N89: 100805.552 | O89: 102528.034 | P89: =IF(ROUND(SUM(P66:P88),0)<>ROUND(SUM(D89:O89),0),#VALUE!,SUM(P66:P88)) -> 1279394.393
P92: =P$2 -> 12-mo Ended
A93: 9 KWHs | D93: =D$3 -> 2018-01-01 | E93: =E$3 -> 2018-02-01 | F93: 2018-03-01 | G93: 2018-04-01 | H93: 2018-05-01 | I93: 2018-06-01 | J93: 2018-07-01 | K93: 2018-08-01 | L93: 2018-09-01 | M93: 2018-10-01 | N93: 2018-11-01 | O93: 2018-12-01 | P93: Total
B94: 60 KV | D94: 5562144 | E94: 4876344 | F94: 5097348 | G94: 5210820 | H94: 5487552 | I94: 5107032 | J94: 5177772 | K94: 5112972 | L94: 5004972 | M94: 5215464 | N94: 5106708 | O94: 5000688 | P94: =SUM(D94:O94) -> 61959816
B95: 4.16 KV | D95: 1355090 | E95: 1231610 | F95: 1351470 | G95: 1292650 | H95: 1502960 | I95: 1262550 | J95: 1286030 | K95: 1302820 | L95: 1256680 | M95: 1377130 | N95: 1350120 | O95: 1387600 | P95: =SUM(D95:O95) -> 15956710
B96: 115 KV | D96: 35196336 | E96: 32618736 | F96: 35504928 | G96: 34355376 | H96: 32622984 | I96: 33290064 | J96: 34107480 | K96: 34747920 | L96: 32144544 | M96: 34857792 | N96: 33153120 | O96: 34911576 | P96: =SUM(D96:O96) -> 407510856
A97: 9 Total | D97: =SUM(D94:D96) -> 42113570 | E97: 38726690 | F97: 41953746 | G97: 40858846 | H97: 39613496 | I97: 39659646 | J97: 40571282 | K97: 41163712 | L97: 38406196 | M97: 41450386 | N97: 39609948 | O97: 41299864 | P97: 485427382
D98: =D14 -> 42113570 | E98: 38726690 | F98: 42012008 | G98: 40858220 | H98: 39613368 | I98: 39658628 | J98: 40571988 | K98: 41162272 | L98: 38387778 | M98: 41469272 | N98: 39553724 | O98: 41299864 | P98: =SUM(D98:O98) -> 485427382
A99: 9 KVA
B100: 60 KV | D100: 9615 | E100: 9738 | F100: 9266 | G100: 9426.5 | H100: 13524.7 | I100: 8784.3 | J100: 8958.43 | K100: 9132.94 | L100: 11689.97 | M100: 9293.58 | N100: 10280.13 | O100: 9078.28 | P100: =SUM(D100:O100) -> 118787.83
B101: 4.16 KV | P101: =SUM(D101:O101) -> 0
B102: 115 KV | D102: 52272 | E102: 52705 | F102: 53136 | G102: 51984.8 | H102: 51840 | I102: 50544 | J102: 52848.78 | K102: 51408 | L102: 50976 | M102: 51408 | N102: 51696 | O102: 52128.2 | P102: =SUM(D102:O102) -> 622946.78
A103: 9 Total | D103: =SUM(D100:D102) -> 61887 | E103: 62443 | F103: 62402 | G103: 61411.3 | H103: 65364.7 | I103: 59328.3 | J103: 61807.21 | K103: 60540.94 | L103: 62665.97 | M103: 60701.58 | N103: 61976.13 | O103: 61206.48 | P103: 741734.61
D104: =D49 -> 62256 | E104: 62379 | F104: 63189 | G104: 61994.13 | H104: 61517.53 | I104: 59396.53 | J104: 62813.1 | K104: 61040.2 | L104: 59942.23 | M104: 61096.84 | N104: 60588.02 | O104: 60856.67 | P104: =SUM(D104:O104) -> 737069.25
A106: *9 | B106: Class Peak | C106: 4.16kV | D106: 1850 | E106: 1780 | F106: 1740 | G106: 1770 | H106: 2010 | I106: 1790 | J106: 1910 | K106: 1960 | L106: 1970 | M106: 1880 | N106: 1870 | O106: 1890 | P106: =AVERAGE(D106:O106) -> 1868.333333
A108: Calc Revenue for 9 | D108: =500000*0.0575+MIN(5500000,D14-500000)*0.05177+MAX(0,D14-6000000)*0.04433+15000+D76*5.25-D100*1.1-D102*1.4 -> 2156736.258 | E108: =500000*0.0575+MIN(5500000,E14-500000)*0.05177+MAX(0,E14-6000000)*0.04433+15000+E76*5.25-E100*1.1-E102*1.4 -> 2006500.118 | F108: =500000*0.0575+MIN(5500000,F14-500000)*0.05177+MAX(0,F14-6000000)*0.04433+15000+F76*5.25-F100*1.1-F102*1.4 -> 2156306.565 | G108: =500000*0.05616+MIN(5500000,G14-500000)*0.05053+MAX(0,G14-6000000)*0.0432+21000+G76*6-G100*1.1-G102*1.4 -> 2103687.014 | H108: 2042744.508 | I108: 2039002.58 | J108: 2095540.917 | K108: 2112228.916 | L108: 1983575.023 | M108: 2125654.452 | N108: 2038361.454 | O108: 2116123.557 | P108: =SUM(D108:O108) -> 24976461.36
A109: Revenue for 9 per Handbill Report | D109: 2183197 | E109: 2154617 | F109: 2076593 | G109: =2165579+21000-9245.5-77617.4 -> 2099716.1 | H109: =2051752+21000-73180.8-9497.4 -> 1990073.8 | I109: =2227520.8+21000-74188.8-9422.6 -> 2164909.4 | J109: =2172483.28+21000-74592-9458.9 -> 2109432.38 | K109: =2138921.74+21000-76406.4-9422.6 -> 2074092.74 | L109: =2104738.35+21000-76004.6-8784.6 -> 2040949.15 | M109: =2150265.77+21000-72777.6-8819.8 -> 2089668.37 | N109: =2158550.53+21000-70761.6-8996.9 -> 2099792.03 | O109: =2049012.26+21000-70358.4-9369.8 -> 1990284.06 | P109: =SUM(D109:O109) -> 25073325.03
A111: Primary Voltage Discount
A112: >11 and <60 | D112: =(D62-D60-D61-D49)*#REF! ->  | E112: =(E62-E60-E61-E49)*#REF! ->  | F112: =(F62-F60-F61-F49)*#REF! ->  | G112: =(G62-G60-G61-G49)*#REF! ->  | H112: =(H62-H60-H61-H49)*#REF! ->  | I112: =(I62-I60-I61-I49)*#REF! ->  | J112: =(J62-J60-J61-J49)*#REF! ->  | K112: =(K62-K60-K61-K49)*#REF! ->  | L112: =(L62-L60-L61-L49)*#REF! ->  | M112: =(M62-M60-M61-M49)*#REF! ->  | N112: =(N62-N60-N61-N49)*#REF! ->  | O112: =(O62-O60-O61-O49)*#REF! ->  | P112: =SUM(D112:O112) -> 
A113: >60 and <115 | D113: =D100*#REF! ->  | E113: =E100*#REF! ->  | F113: =F100*#REF! ->  | G113: =G100*#REF! ->  | H113: =H100*#REF! ->  | I113: =I100*#REF! ->  | J113: =J100*#REF! ->  | K113: =K100*#REF! ->  | L113: =L100*#REF! ->  | M113: =M100*#REF! ->  | N113: =N100*#REF! ->  | O113: =O100*#REF! ->  | P113: =SUM(D113:O113) -> 
A114: >115 | D114: =D102*#REF! ->  | E114: =E102*#REF! ->  | F114: =F102*#REF! ->  | G114: =G102*#REF! ->  | H114: =H102*#REF! ->  | I114: =I102*#REF! ->  | J114: =J102*#REF! ->  | K114: =K102*#REF! ->  | L114: =L102*#REF! ->  | M114: =M102*#REF! ->  | N114: =N102*#REF! ->  | O114: =O102*#REF! ->  | P114: =SUM(D114:O114) -> 
D115: =SUM(D112:D114) -> 

Sheet ID Sch 25
A1: Idaho Schedule 25 Billing Determinants | S1: 1st | T1: =S2 -> 500000
Q2: 12-mo Ended | S2: 500000 | T2: 99999999
A3: KWH | C3: SA Account ID | D3: new SA | E3: 2018-01-01 | F3: 2018-02-01 | G3: 2018-03-01 | H3: 2018-04-01 | I3: 2018-05-01 | J3: 2018-06-01 | K3: 2018-07-01 | L3: 2018-08-01 | M3: 2018-09-01 | N3: 2018-10-01 | O3: 2018-11-01 | P3: 2018-12-01 | Q3: Total | S3: kwhs/mo | T3: kwhs/mo
A4: 1 | E4: 3570885 | F4: 3377124 | G4: 3974775 | H4: 3647640.65 | I4: 3727456 | J4: 3396866.07 | K4: 3511807.18 | L4: 3611794.59 | M4: 3359233.92 | N4: 3676400.6 | O4: 3409588.82 | P4: 3662546.52 | Q4: =SUM(E4:P4) -> 42926118.35 | S4: =S$2*12-SUMPRODUCT(--($E4:$P4<=S$2),S$2-$E4:$P4) -> 6000000 | T4: =T$2*12-SUM($R4:S4)-SUMPRODUCT(--($E4:$P4<=T$2),T$2-$E4:$P4) -> 36926118.35
A5: 2 | E5: 3679156.8 | F5: 3339014.4 | G5: 3604975.2 | H5: 3383438.4 | I5: 3228696 | J5: 3316248 | K5: 3255537.6 | L5: 3484065.6 | M5: 3198009.6 | N5: 3393489.6 | O5: 3015792 | P5: 2906258.4 | Q5: 39804681.6 | S5: =S$2*12-SUMPRODUCT(--($E5:$P5<=S$2),S$2-$E5:$P5) -> 6000000 | T5: =T$2*12-SUM($R5:S5)-SUMPRODUCT(--($E5:$P5<=T$2),T$2-$E5:$P5) -> 33804681.6
A6: 3 | E6: 2000737.2 | F6: 1839734.4 | G6: 1923717.6 | H6: 1877064 | I6: 1960232.4 | J6: 1635102 | K6: 2054488.8 | L6: 2241414 | M6: 1943197.2 | N6: 2062267.2 | O6: 1865614.8 | P6: 1876803.6 | Q6: 23280373.2 | S6: =S$2*12-SUMPRODUCT(--($E6:$P6<=S$2),S$2-$E6:$P6) -> 6000000 | T6: =T$2*12-SUM($R6:S6)-SUMPRODUCT(--($E6:$P6<=T$2),T$2-$E6:$P6) -> 17280373.2
A7: 4 | E7: 855483.6 | F7: 770070 | G7: 810138 | H7: 737127.6 | I7: 784754.4 | J7: 776937.6 | K7: 944554.8 | L7: 909382.8 | M7: 732451.2 | N7: 716073.6 | O7: 766382.4 | P7: 875492.399 | Q7: 9678848.399 | S7: 6000000 | T7: =T$2*12-SUM($R7:S7)-SUMPRODUCT(--($E7:$P7<=T$2),T$2-$E7:$P7) -> 3678848.399
A8: 5 | E8: 2716546 | F8: 2657172 | G8: 2845054.8 | H8: 2747959.2 | I8: 2874925.2 | J8: 2812964 | K8: 2897428.8 | L8: 2947613.2 | M8: 2809640.4 | N8: 2854894 | O8: 2695456.4 | P8: 2726613.4 | Q8: 33586267.4 | S8: 6000000 | T8: =T$2*12-SUM($R8:S8)-SUMPRODUCT(--($E8:$P8<=T$2),T$2-$E8:$P8) -> 27586267.4
A9: 6 | E9: 2024685.6 | F9: 1845659.2 | G9: 1983111.2 | H9: 1946565.6 | I9: 1911795.2 | J9: 2014941.6 | K9: 2110444 | L9: 2128162.4 | M9: 1961960 | N9: 1978127.2 | O9: 1944516 | P9: 2034099.2 | Q9: 23884067.2 | S9: 6000000 | T9: =T$2*12-SUM($R9:S9)-SUMPRODUCT(--($E9:$P9<=T$2),T$2-$E9:$P9) -> 17884067.2
A10: 7 | E10: 2152806 | F10: 1935968 | G10: 2017902 | H10: 1866831.21 | I10: 1957436.21 | J10: 1838540.85 | K10: 1886185.42 | L10: 2016673.57 | M10: 1833304.79 | N10: 2202865.07 | O10: 1956988.43 | P10: 2004567.71 | Q10: 23670069.26 | S10: 6000000 | T10: =T$2*12-SUM($R10:S10)-SUMPRODUCT(--($E10:$P10<=T$2),T$2-$E10:$P10) -> 17670069.26
A11: 8 | E11: 4215097.6 | F11: 4053899.2 | G11: 4386580.2 | H11: 4053510.6 | I11: 4146743.2 | J11: 3186219.6 | K11: 4270046 | L11: 4460645.6 | M11: 4008280.6 | N11: 4380319.4 | O11: 4211462.4 | P11: 4357252.6 | Q11: 49730057 | S11: 6000000 | T11: =T$2*12-SUM($R11:S11)-SUMPRODUCT(--($E11:$P11<=T$2),T$2-$E11:$P11) -> 43730057
A12: 9 | E12: 3318210 | F12: 2835778.8 | G12: 3183040.32 | H12: 2981333.76 | I12: 3035629.44 | J12: 3049105.68 | K12: 2820538.8 | L12: 2933392.08 | M12: 2812996.32 | N12: 3297083.52 | O12: 2928690.48 | P12: 2996199.12 | Q12: 36191998.32 | S12: 6000000 | T12: =T$2*12-SUM($R12:S12)-SUMPRODUCT(--($E12:$P12<=T$2),T$2-$E12:$P12) -> 30191998.32
A13: 10 | E13: 1545243 | F13: 1428527.1 | G13: 1557110.1 | H13: 1532766.9 | I13: 1515313.8 | J13: 1496607 | K13: 1531580.4 | L13: 1474000.5 | M13: 1452761.1 | N13: 1518279 | O13: 1414324.8 | P13: 1376247.6 | Q13: 17842761.3 | S13: 6000000 | T13: =T$2*12-SUM($R13:S13)-SUMPRODUCT(--($E13:$P13<=T$2),T$2-$E13:$P13) -> 11842761.3
A14: 11 | E14: 1283114 | F14: 1178436 | G14: 1294904.8 | H14: 1281126 | I14: 1444072 | J14: 1393207.2 | K14: 1552877.2 | L14: 1562327.2 | M14: 1394870.4 | N14: 1363555.2 | O14: 1271264.4 | P14: 1285708.2 | Q14: 16305462.6 | S14: 6000000 | T14: =T$2*12-SUM($R14:S14)-SUMPRODUCT(--($E14:$P14<=T$2),T$2-$E14:$P14) -> 10305462.6
A15: 12 | E15: 883282 | F15: 846266 | G15: 918610 | H15: 841644 | I15: 844392 | J15: 848816 | K15: 669522 | L15: 818122 | M15: 744832 | N15: 890448 | O15: 852706 | P15: 890087 | Q15: 10048727 | S15: 6000000 | T15: =T$2*12-SUM($R15:S15)-SUMPRODUCT(--($E15:$P15<=T$2),T$2-$E15:$P15) -> 4048727
B16: Schedule 25 Total | E16: =SUM(E4:E15) -> 28245246.8 | F16: =SUM(F4:F15) -> 26107649.1 | G16: 28499919.22 | H16: 26897007.92 | I16: 27431445.85 | J16: 25765555.6 | K16: 27505011 | L16: 28587593.54 | M16: 26251537.53 | N16: 28333802.39 | O16: 26332786.93 | P16: 26991875.75 | Q16: =IF(ROUND(SUM(E16:P16),3)<>ROUND(SUM(Q4:Q15),3),#VALUE!,SUM(E16:P16)) -> 326949431.6 | S16: =SUM(S4:S15) -> 72000000 | T16: =SUM(T4:T15) -> 254949431.6
T17: =SUM(S16:T16) -> 326949431.6
B18: Revenue Run Total | E18: ='Billed Usage'!D105 -> 28245246.8 | F18: ='Billed Usage'!E105 -> 26107649.1 | G18: ='Billed Usage'!F105 -> 22507242.22 | H18: ='Billed Usage'!G105 -> 27375213.06 | I18: ='Billed Usage'!H105 -> 5514471.86 | J18: ='Billed Usage'!I105 -> 27431445.85 | K18: ='Billed Usage'!J105 -> 25765555.6 | L18: ='Billed Usage'!K105 -> 27505011 | M18: ='Billed Usage'!L105 -> 28587593.54 | N18: ='Billed Usage'!M105 -> 26251537.53 | O18: ='Billed Usage'!N105 -> 28333802.39 | P18: ='Billed Usage'!O105 -> 26332786.93 | Q18: =SUM(E18:P18) -> 299957555.9
B19: Booked Unbilled Reversal | E19: ='Unbilled Usage '!E44 -> 0 | F19: ='Unbilled Usage '!F44 -> 0 | G19: ='Unbilled Usage '!G44 -> 0 | H19: ='Unbilled Usage '!H44 -> 0 | I19: ='Unbilled Usage '!I44 -> -5514472 | J19: ='Unbilled Usage '!J44 -> -65455690 | K19: ='Unbilled Usage '!K44 -> -23353787 | L19: ='Unbilled Usage '!L44 -> -27387310 | M19: ='Unbilled Usage '!M44 -> -31378615 | N19: ='Unbilled Usage '!N44 -> -26434177 | O19: ='Unbilled Usage '!O44 -> -28254820 | P19: ='Unbilled Usage '!P44 -> -26284114 | Q19: =SUM(E19:P19) -> -234062985
B20: Gross Booked Unbilled | E20: ='Unbilled Usage '!E43 -> 0 | F20: ='Unbilled Usage '!F43 -> 0 | G20: ='Unbilled Usage '!G43 -> 0 | H20: ='Unbilled Usage '!H43 -> 5514472 | I20: ='Unbilled Usage '!I43 -> 65455690 | J20: ='Unbilled Usage '!J43 -> 23353787 | K20: ='Unbilled Usage '!K43 -> 27387310 | L20: ='Unbilled Usage '!L43 -> 31378615 | M20: ='Unbilled Usage '!M43 -> 26434177 | N20: ='Unbilled Usage '!N43 -> 28254820 | O20: ='Unbilled Usage '!O43 -> 26284114 | P20: ='Unbilled Usage '!P43 -> 27065983 | Q20: =SUM(E20:P20) -> 261128968
B21: Calendar per Books Total | E21: =SUM(E18:E20) -> 28245246.8 | F21: 26107649.1 | G21: 22507242.22 | H21: 32889685.06 | I21: 65455689.86 | J21: -14670457.15 | K21: 29799078.6 | L21: 31496316 | M21: 23643155.54 | N21: 28072180.53 | O21: 26363096.39 | P21: 27114655.93 | Q21: 327023538.9
B22: Gross Unbilled True-up | E22: =E16-E21-E23 -> -3.725290298e-09 | F22: =F16-F21-F23 -> -3.725290298e-09 | G22: =G16-G21-G23 -> 5992677 | H22: =H16-H21-H23 -> -0.1399999969 | I22: =I16-I21-I23 -> -38024244.15 | J22: 2411768.6 | K22: 117701 | L22: -2791021.46 | M22: -182639.47 | N22: 78982.39 | O22: 48672.93 | P22: -74107.251 | Q22: =SUM(E22:P22) -> -32422210.55
B23: Unbilled Reversal True-up | E23: 0 | F23: =-E22 -> 3.725290298e-09 | G23: =-F22 -> 3.725290298e-09 | H23: =-G22 -> -5992677 | I23: =-H22 -> 0.1399999969 | J23: 38024244.15 | K23: -2411768.6 | L23: -117701 | M23: 2791021.46 | N23: 182639.47 | O23: -78982.39 | P23: -48672.93 | Q23: =SUM(E23:P23) -> 32348103.3
B24: Adj Revenue Runs, Sch 25 | E24: =SUM(E21:E23) -> 28245246.8 | F24: 26107649.1 | G24: =SUM(G21:G23) -> 28499919.22 | H24: =SUM(H21:H23) -> 26897007.92 | I24: 27431445.85 | J24: 25765555.6 | K24: 27505011 | L24: 28587593.54 | M24: 26251537.53 | N24: 28333802.39 | O24: 26332786.93 | P24: =SUM(P21:P23) -> 26991875.75 | Q24: =SUM(Q21:Q23) -> 326949431.6
A26: Schedule 25P KWH
A27: 1 | C27: 2166400000 | D27: 2160125933 | E27: 31034360 | F27: 29136680 | G27: 33893450 | H27: 34523990 | I27: 36069710 | J27: 33600660 | K27: 38255050 | L27: 62513600 | M27: 47084840 | N27: 35905670 | O27: 30311220 | P27: 34319970 | Q27: =SUM(E27:P27) -> 446649200 | S27: =Q27/8760/1000 -> 50.9873516
Q28: =SUM(E28:P28) -> 0 | S28: =Q28/8760/1000 -> 0
A29: 25P Tie Load | E29: =E27-E28 -> 31034360 | F29: 29136680 | G29: 33893450 | H29: 34523990 | I29: 36069710 | J29: 33600660 | K29: 38255050 | L29: 62513600 | M29: 47084840 | N29: 35905670 | O29: 30311220 | P29: 34319970 | Q29: =IF(ROUND(SUM(E29:P29),3)<>ROUND(Q27-Q28,3),#VALUE!,SUM(E29:P29)) -> 446649200 | S29: =Q29/8760/1000 -> 50.9873516
B31: Revenue Run Total | E31: ='Billed Usage'!D106 -> 31034360 | F31: ='Billed Usage'!E106 -> 29136680 | G31: ='Billed Usage'!F106 -> 33893450 | H31: ='Billed Usage'!G106 -> 34523990 | I31: ='Billed Usage'!H106 -> 0 | J31: ='Billed Usage'!I106 -> 36069710 | K31: ='Billed Usage'!J106 -> 33600660 | L31: ='Billed Usage'!K106 -> 38255050 | M31: ='Billed Usage'!L106 -> 62513600 | N31: ='Billed Usage'!M106 -> 47084840 | O31: ='Billed Usage'!N106 -> 35905670 | P31: ='Billed Usage'!O106 -> 30311220 | Q31: =SUM(E31:P31) -> 412329230
B32: Booked Unbilled Reversal | E32: ='Unbilled Usage '!E47 -> 0 | F32: ='Unbilled Usage '!F47 -> 0 | G32: ='Unbilled Usage '!G47 -> 0 | H32: ='Unbilled Usage '!H47 -> 0 | I32: ='Unbilled Usage '!I47 -> 0 | J32: ='Unbilled Usage '!J47 -> 0 | K32: ='Unbilled Usage '!K47 -> -35849850 | L32: ='Unbilled Usage '!L47 -> -37927498 | M32: ='Unbilled Usage '!M47 -> -62513600 | N32: ='Unbilled Usage '!N47 -> -46333333 | O32: ='Unbilled Usage '!O47 -> -36250894 | P32: ='Unbilled Usage '!P47 -> -30311220 | Q32: =SUM(E32:P32) -> -249186395
B33: Gross Booked Unbilled | E33: ='Unbilled Usage '!E46 -> 0 | F33: ='Unbilled Usage '!F46 -> 0 | G33: ='Unbilled Usage '!G46 -> 0 | H33: ='Unbilled Usage '!H46 -> 0 | I33: ='Unbilled Usage '!I46 -> 0 | J33: ='Unbilled Usage '!J46 -> 35849850 | K33: ='Unbilled Usage '!K46 -> 37927498 | L33: ='Unbilled Usage '!L46 -> 62513600 | M33: ='Unbilled Usage '!M46 -> 46333333 | N33: ='Unbilled Usage '!N46 -> 36250894 | O33: ='Unbilled Usage '!O46 -> 30311220 | P33: ='Unbilled Usage '!P46 -> 30311220 | Q33: =SUM(E33:P33) -> 279497615
B34: Calendar per Books Total | E34: =SUM(E31:E33) -> 31034360 | F34: 29136680 | G34: 33893450 | H34: 34523990 | I34: 0 | J34: 71919560 | K34: 35678308 | L34: 62841152 | M34: 46333333 | N34: 37002401 | O34: 29965996 | P34: 30311220 | Q34: 442640450
B35: Gross Unbilled True-up | E35: =E29-E34-E36 -> 0 | F35: 0 | G35: 0 | H35: 0 | I35: 36069710 | J35: -2249190 | K35: 327552 | L35: 0 | M35: 751507 | N35: -345224 | O35: 0 | P35: 4008750 | Q35: =SUM(E35:P35) -> 38563105
B36: Unbilled Reversal True-up | E36: 0 | F36: =-E35 -> 0 | G36: =-F35 -> 0 | H36: =-G35 -> 0 | I36: =-H35 -> 0 | J36: -36069710 | K36: 2249190 | L36: -327552 | M36: 0 | N36: -751507 | O36: 345224 | P36: 0 | Q36: =SUM(E36:P36) -> -34554355
B37: Adj Revenue Runs, Sch 25P | E37: =SUM(E34:E36) -> 31034360 | F37: 29136680 | G37: =SUM(G34:G36) -> 33893450 | H37: =SUM(H34:H36) -> 34523990 | I37: 36069710 | J37: 33600660 | K37: 38255050 | L37: 62513600 | M37: 47084840 | N37: 35905670 | O37: 30311220 | P37: =SUM(P34:P36) -> 34319970 | Q37: =SUM(Q34:Q36) -> 446649200
E38: =E37-E27 -> 0 | F38: =F37-F27 -> 0 | G38: 0 | H38: 0 | I38: 0 | J38: 0 | K38: 0 | L38: 0 | M38: 0 | N38: 0 | O38: 0 | P38: 0 | Q38: 0
Q40: =Q$2 -> 12-mo Ended
A41: KVA | E41: =E$3 -> 2018-01-01 | F41: 2018-02-01 | G41: 2018-03-01 | H41: 2018-04-01 | I41: 2018-05-01 | J41: 2018-06-01 | K41: 2018-07-01 | L41: 2018-08-01 | M41: 2018-09-01 | N41: 2018-10-01 | O41: 2018-11-01 | P41: 2018-12-01 | Q41: Total | S41: Peak | T41: Month
A42: 1 | E42: 9479 | F42: 9446 | G42: 9544 | H42: 7905.73 | I42: 9368 | J42: 7767.28 | K42: 7735.2 | L42: 8952.48 | M42: 7523.96 | N42: 8152.61 | O42: 7792.81 | P42: 7960.9 | Q42: =SUM(E42:P42) -> 101627.97 | S42: =MAX(F42:P42) -> 9544 | T42: =INDEX($E$41:$P$41,MATCH(S42,$E42:$P42,0)) -> 2018-03-01
A43: 2 | E43: 9294.439 | F43: 9199.211 | G43: 9152.647 | H43: 9054.852 | I43: 8977.127 | J43: 9117.304 | K43: 9052.837 | L43: 9060.988 | M43: 9160.177 | N43: 9216.146 | O43: 8951.937 | P43: 9318.146 | Q43: =SUM(E43:P43) -> 109555.811 | S43: =MAX(F43:P43) -> 9318.146 | T43: =INDEX($E$41:$P$41,MATCH(S43,$E43:$P43,0)) -> 2018-12-01
A44: 3 | E44: 3551.124 | F44: 3553.428 | G44: 3500.372 | H44: 3878.217 | I44: 3781.306 | J44: 3664.134 | K44: 3889.227 | L44: 4324.099 | M44: 4174.555 | N44: 3991.653 | O44: 3724.791 | P44: 3528.16 | Q44: 45561.066 | S44: =MAX(F44:P44) -> 4324.099 | T44: 2018-08-01
A45: 4 | E45: 1470.951 | F45: 1514.217 | G45: 1452.974 | H45: 1502.412 | I45: 2113.161 | J45: 1640.702 | K45: 2285.45 | L45: 2076.445 | M45: 1636.68 | N45: 1387.86 | O45: 1481.502 | P45: 1528.666 | Q45: 20091.02 | S45: 2285.45 | T45: 2018-07-01
A46: 5 | E46: 4610.773 | F46: 4618.883 | G46: 4475.129 | H46: 4611.041 | I46: 4669.124 | J46: 4824.617 | K46: 4914.239 | L46: 4870.278 | M46: 4810.247 | N46: 4657.504 | O46: 4480.619 | P46: 4578.242 | Q46: 56120.696 | S46: 4914.239 | T46: 2018-07-01
A47: 6 | E47: 3605.53 | F47: 3655.526 | G47: 3541.928 | H47: 3690.566 | I47: 3858.152 | J47: 6465.03 | K47: 4155.743 | L47: 4294.495 | M47: 6812.565 | N47: 3414.255 | O47: 3577.168 | P47: 3630.338 | Q47: 50701.296 | S47: 6812.565 | T47: 2018-09-01
A48: 7 | E48: 5044 | F48: 4912 | G48: 4816 | H48: 4658.95 | I48: 4604.62 | J48: 4645.77 | K48: 4557.76 | L48: 4585.66 | M48: 4714.62 | N48: 4812.7 | O48: 4439.93 | P48: 4633 | Q48: 56425.01 | S48: 4912 | T48: 2018-02-01
A49: 8 | E49: =4906.126+3000 -> 7906.126 | F49: =5327.918+3000 -> 8327.918 | G49: =3000+5152.47 -> 8152.47 | H49: =3000+5030.346 -> 8030.346 | I49: =3000+4837.043 -> 7837.043 | J49: =3000+5031.288 -> 8031.288 | K49: =3000+4936.945 -> 7936.945 | L49: =3000+5199.279 -> 8199.279 | M49: =3000+4591.183 -> 7591.183 | N49: =3000+5205.028 -> 8205.028 | O49: =3000+5566.527 -> 8566.527 | P49: =3000+5125.313 -> 8125.313 | Q49: 96909.466 | S49: 8566.527 | T49: 2018-11-01
A50: 9 | E50: 7335.11 | F50: 7167.325 | G50: 7153.704 | H50: 7160.119 | I50: 6821.823 | J50: 7082.709 | K50: 6755.749 | L50: 6814.946 | M50: 6787.026 | N50: 7060.482 | O50: 7534.907 | P50: 7524.973 | Q50: 85198.873 | S50: 7534.907 | T50: 2018-11-01
A51: 10 | E51: 3289.632 | F51: 3213.121 | G51: 3223.986 | H51: 3157.445 | I51: 3102.376 | J51: 3153.372 | K51: 3175.211 | L51: 3113.812 | M51: 3079.127 | N51: 3144.704 | O51: 3151.069 | P51: 3234.101 | Q51: 38037.956 | S51: =MAX(F51:P51) -> 3234.101 | T51: 2018-12-01
A52: 11 | E52: 2116.215 | F52: 2162.449 | G52: 2160.468 | H52: 2609.414 | I52: 2681.389 | J52: 2621.434 | K52: 2733.334 | L52: 2945.414 | M52: 2722.09 | N52: 2404.872 | O52: 2213.878 | P52: 2150.415 | Q52: 29521.372 | S52: =MAX(F52:P52) -> 2945.414 | T52: 2018-08-01
A53: 12 | E53: 2566.598 | F53: 2651.949 | G53: 2607.488 | H53: 2524.761 | I53: 2495.596 | J53: 2406.368 | K53: 2346.623 | L53: 2297.024 | M53: 2390.063 | N53: 2444.353 | O53: 2531.633 | P53: 2581.77 | Q53: 29844.226 | S53: 2651.949 | T53: 2018-02-01
E54: =SUM(E42:E53) -> 60269.498 | F54: =SUM(F42:F53) -> 60422.027 | G54: 59781.166 | H54: 58783.853 | I54: 60309.717 | J54: 61420.008 | K54: 59538.318 | L54: 61534.92 | M54: 61402.293 | N54: 58892.167 | O54: 58446.771 | P54: 58794.024 | Q54: =IF(ROUND(SUM(E54:P54),3)<>ROUND(SUM(Q42:Q53),3),#VALUE!,SUM(E54:P54)) -> 719594.762
Q56: =Q$2 -> 12-mo Ended
A57: KVA in excess of 3,000 | E57: =E$3 -> 2018-01-01 | F57: 2018-02-01 | G57: 2018-03-01 | H57: 2018-04-01 | I57: 2018-05-01 | J57: 2018-06-01 | K57: 2018-07-01 | L57: 2018-08-01 | M57: 2018-09-01 | N57: 2018-10-01 | O57: 2018-11-01 | P57: 2018-12-01 | Q57: Total
A58: 1 | B58: =B42 -> 0 | C58: =C42 -> 0 | D58: 0 | E58: =MAX(0,E42-3000) -> 6479 | F58: 6446 | G58: 6544 | H58: 4905.73 | I58: 6368 | J58: 4767.28 | K58: 4735.2 | L58: 5952.48 | M58: 4523.96 | N58: 5152.61 | O58: 4792.81 | P58: 4960.9 | Q58: =SUM(E58:P58) -> 65627.97
A59: 2 | B59: =B43 -> 0 | C59: 0 | D59: 0 | E59: 6294.439 | F59: 6199.211 | G59: 6152.647 | H59: 6054.852 | I59: 5977.127 | J59: 6117.304 | K59: 6052.837 | L59: 6060.988 | M59: 6160.177 | N59: 6216.146 | O59: 5951.937 | P59: 6318.146 | Q59: 73555.811
A60: 3 | B60: 0 | C60: 0 | D60: 0 | E60: 551.124 | F60: 553.428 | G60: 500.372 | H60: 878.217 | I60: 781.306 | J60: 664.134 | K60: 889.227 | L60: 1324.099 | M60: 1174.555 | N60: 991.653 | O60: 724.791 | P60: 528.16 | Q60: 9561.066
A61: 4 | B61: 0 | C61: 0 | D61: 0 | E61: 0 | F61: 0 | G61: 0 | H61: 0 | I61: 0 | J61: 0 | K61: 0 | L61: 0 | M61: 0 | N61: 0 | O61: 0 | P61: 0 | Q61: 0
A62: 5 | B62: 0 | C62: 0 | D62: 0 | E62: 1610.773 | F62: 1618.883 | G62: 1475.129 | H62: 1611.041 | I62: 1669.124 | J62: 1824.617 | K62: 1914.239 | L62: 1870.278 | M62: 1810.247 | N62: 1657.504 | O62: 1480.619 | P62: 1578.242 | Q62: 20120.696
A63: 6 | B63: 0 | C63: 0 | D63: 0 | E63: 605.53 | F63: 655.526 | G63: 541.928 | H63: 690.566 | I63: 858.152 | J63: 3465.03 | K63: 1155.743 | L63: 1294.495 | M63: 3812.565 | N63: 414.255 | O63: 577.168 | P63: 630.338 | Q63: 14701.296
A64: 7 | B64: 0 | C64: 0 | D64: 0 | E64: 2044 | F64: 1912 | G64: 1816 | H64: 1658.95 | I64: 1604.62 | J64: 1645.77 | K64: 1557.76 | L64: 1585.66 | M64: 1714.62 | N64: 1812.7 | O64: 1439.93 | P64: 1633 | Q64: 20425.01
A65: 8 | B65: 0 | C65: 0 | D65: 0 | E65: 4906.126 | F65: 5327.918 | G65: 5152.47 | H65: 5030.346 | I65: 4837.043 | J65: 5031.288 | K65: 4936.945 | L65: 5199.279 | M65: 4591.183 | N65: 5205.028 | O65: 5566.527 | P65: 5125.313 | Q65: 60909.466
A66: 9 | B66: 0 | C66: 0 | D66: 0 | E66: 4335.11 | F66: 4167.325 | G66: 4153.704 | H66: 4160.119 | I66: 3821.823 | J66: 4082.709 | K66: 3755.749 | L66: 3814.946 | M66: 3787.026 | N66: 4060.482 | O66: 4534.907 | P66: 4524.973 | Q66: 49198.873
A67: 10 | B67: 0 | C67: 0 | D67: 0 | E67: 289.632 | F67: 213.121 | G67: 223.986 | H67: 157.445 | I67: 102.376 | J67: 153.372 | K67: 175.211 | L67: 113.812 | M67: 79.127 | N67: 144.704 | O67: 151.069 | P67: 234.101 | Q67: 2037.956
A68: 11 | B68: 0 | C68: 0 | D68: 0 | E68: 0 | F68: 0 | G68: 0 | H68: 0 | I68: 0 | J68: 0 | K68: 0 | L68: 0 | M68: 0 | N68: 0 | O68: 0 | P68: 0 | Q68: 0
A69: 12 | B69: 0 | C69: 0 | D69: 0 | E69: 0 | F69: 0 | G69: 0 | H69: 0 | I69: 0 | J69: 0 | K69: 0 | L69: 0 | M69: 0 | N69: 0 | O69: 0 | P69: 0 | Q69: 0
E70: =SUM(E58:E69) -> 27115.734 | F70: =SUM(F58:F69) -> 27093.412 | G70: 26560.236 | H70: 25147.266 | I70: 26019.571 | J70: 27751.504 | K70: 25172.911 | L70: 27216.037 | M70: 27653.46 | N70: 25655.082 | O70: 25219.758 | P70: 25533.173 | Q70: =IF(ROUND(SUM(E70:P70),3)<>ROUND(SUM(Q58:Q69),3),#VALUE!,SUM(E70:P70)) -> 316138.144
E71: =E54-E70 -> 33153.764 | F71: =F54-F70 -> 33328.615 | G71: 33220.93 | H71: 33636.587 | I71: 34290.146 | J71: 33668.504 | K71: 34365.407 | L71: 34318.883 | M71: 33748.833 | N71: 33237.085 | O71: 33227.013 | P71: =P54-P70 -> 33260.851
Q73: =Q$2 -> 12-mo Ended
A74: Cust 8 KWH | E74: =E$3 -> 2018-01-01 | F74: 2018-02-01 | G74: 2018-03-01 | H74: 2018-04-01 | I74: 2018-05-01 | J74: 2018-06-01 | K74: 2018-07-01 | L74: 2018-08-01 | M74: 2018-09-01 | N74: 2018-10-01 | O74: 2018-11-01 | P74: 2018-12-01 | Q74: Total
B75: PVD | E75: 3717403.2 | F75: 3583395.2 | G75: 3884182.4 | H75: 3562462.4 | I75: 3689912.8 | J75: 2876042.4 | K75: 3857330.4 | L75: 4039974.4 | M75: 3599360.8 | N75: 3912596.8 | O75: 3823215.2 | P75: 3917488.4 | Q75: =SUM(E75:P75) -> 44463364.4
B76: PVD | E76: 109648 | F76: 99545.6 | G76: 108442.6 | H76: 92163.4 | I76: 61420.8 | J76: 29391.6 | K76: 63266 | L76: 71192.8 | M76: 76889.4 | N76: 91508.2 | O76: 57215.2 | P76: 62993 | Q76: =SUM(E76:P76) -> 923676.6
B77: No PVD | E77: 388046.4 | F77: 370958.4 | G77: 393955.2 | H77: 398884.8 | I77: 395409.6 | J77: 280785.6 | K77: 349449.6 | L77: 349478.4 | M77: 332030.4 | N77: 376214.4 | O77: 331032 | P77: 376771.2 | Q77: =SUM(E77:P77) -> 4343016
A78: * | E78: =SUM(E75:E77) -> 4215097.6 | F78: 4053899.2 | G78: 4386580.2 | H78: 4053510.6 | I78: 4146743.2 | J78: 3186219.6 | K78: 4270046 | L78: 4460645.6 | M78: 4008280.6 | N78: 4380319.4 | O78: 4211462.4 | P78: 4357252.6 | Q78: =IF(ROUND(SUM(E78:P78),3)<>ROUND(SUM(Q75:Q77),3),#VALUE!,SUM(E78:P78)) -> 49730057
E79: =E11 -> 4215097.6 | F79: =F11 -> 4053899.2 | G79: 4386580.2 | H79: 4053510.6 | I79: 4146743.2 | J79: 3186219.6 | K79: 4270046 | L79: 4460645.6 | M79: 4008280.6 | N79: 4380319.4 | O79: 4211462.4 | P79: 4357252.6 | Q79: =Q18 -> 299957555.9
A80: Customer 8 KVA
B81: PVD | C81: 9500610000 | D81: 9500733110 | E81: 6930.665 | F81: 7393.875 | G81: 7200.755 | H81: 7069.764 | I81: 7102.469 | J81: 6787.098 | K81: 7137.837 | L81: 7297.468 | M81: 6656.202 | N81: 7292.198 | O81: 7282.868 | P81: 7237.662 | Q81: =SUM(E81:P81) -> 85388.861
B82: PVD | C82: 9500610000 | D82: 9509358876 | E82: 283.478 | F82: 285.833 | G82: 283.478 | H82: 278.104 | I82: 214.141 | J82: 216.308 | K82: 277.143 | L82: 289.391 | M82: 288.278 | N82: 288.278 | O82: 287.215 | P82: 280.671 | Q82: =SUM(E82:P82) -> 3272.318
B83: No PVD | Q83: =SUM(E83:P83) -> 0
A84: * | E84: =SUM(E81:E83) -> 7214.143 | F84: 7679.708 | G84: 7484.233 | H84: 7347.868 | I84: 7316.61 | J84: 7003.406 | K84: 7414.98 | L84: 7586.859 | M84: 6944.48 | N84: 7580.476 | O84: 7570.083 | P84: 7518.333 | Q84: 88661.179
D85: Totalized KVA | E85: =E49 -> 7906.126 | F85: 8327.918 | G85: 8152.47 | H85: 8030.346 | I85: 7837.043 | J85: 8031.288 | K85: 7936.945 | L85: 8199.279 | M85: 7591.183 | N85: 8205.028 | O85: 8566.527 | P85: 8125.313 | Q85: =Q49 -> 96909.466
B87: Schedule 25 PVD | D87: -0.2 | E87: =(E54-E49+E81+E82)*$D$87 -> -11915.503 | F87: -11954.7634 | G87: -11822.5858 | H87: -11620.275 | I87: -11957.8568 | J87: -12078.4252 | K87: -11803.2706 | L87: -12184.5 | M87: -12151.118 | N87: -11653.523 | O87: -11490.0654 | P87: -11637.4088 | Q87: =SUM(E87:P87) -> -142269.295
A90: Schedule 25P kVA
B91: Total KVA | C91: =C27 -> 2166400000 | D91: =D27 -> 2160125933 | E91: 86200 | F91: 56450 | G91: 83990 | H91: 60660 | I91: 60400 | J91: 89400 | K91: 118390 | L91: 118500 | M91: 83600 | N91: 77850 | O91: 66790 | P91: 79580 | Q91: =SUM(E91:P91) -> 981810
B92: Block 2 KVA | E92: =IF(E91>55000, 52000,E91-3000) -> 52000 | F92: 52000 | G92: 52000 | H92: 52000 | I92: 52000 | J92: 52000 | K92: 52000 | L92: 52000 | M92: 52000 | N92: 52000 | O92: 52000 | P92: 52000 | Q92: =SUM(E92:P92) -> 624000
B93: Block 3 KVA | E93: =MAX(0,E91-55000) -> 31200 | F93: 1450 | G93: 28990 | H93: 5660 | I93: 5400 | J93: 34400 | K93: 63390 | L93: 63500 | M93: 28600 | N93: 22850 | O93: 11790 | P93: 24580 | Q93: =SUM(E93:P93) -> 321810
B94: Bills | E94: 1 | F94: 1 | G94: 1 | H94: 1 | I94: 1 | J94: 1 | K94: 1 | L94: 1 | M94: 1 | N94: 1 | O94: 1 | P94: 1 | Q94: =SUM(E94:P94) -> 12
B95: Block 1 kWhs | E95: =E29 -> 31034360 | F95: =F29 -> 29136680 | G95: 33893450 | H95: 34523990 | I95: 36069710 | J95: 33600660 | K95: 38255050 | L95: 62513600 | M95: 47084840 | N95: 35905670 | O95: 30311220 | P95: 34319970 | Q95: =SUM(E95:P95) -> 446649200
B96: Block 2 kWhs | E96: =E28 -> 0 | F96: =F28 -> 0 | G96: 0 | H96: 0 | I96: 0 | J96: 0 | K96: 0 | L96: 0 | M96: 0 | N96: 0 | O96: 0 | P96: 0 | Q96: 0
A98: Summarize Schedule 25 Billing Determinants
B99: Bills | E99: 12 | F99: 12 | G99: 12 | H99: 12 | I99: 12 | J99: 12 | K99: 12 | L99: 12 | M99: 12 | N99: 12 | O99: 12 | P99: 12 | Q99: =SUM(E99:P99) -> 144
B100: Total Block 1 kWhs | D100: 500000 | E100: =E99*$D$100 -> 6000000 | F100: =F99*$D$100 -> 6000000 | G100: 6000000 | H100: 6000000 | I100: 6000000 | J100: 6000000 | K100: 6000000 | L100: 6000000 | M100: 6000000 | N100: 6000000 | O100: 6000000 | P100: 6000000 | Q100: =SUM(E100:P100) -> 72000000
B101: Total Block 2 kWhs | D101: Over 500,000 | E101: =E16-E100 -> 22245246.8 | F101: =F16-F100 -> 20107649.1 | G101: 22499919.22 | H101: 20897007.92 | I101: 21431445.85 | J101: 19765555.6 | K101: 21505011 | L101: 22587593.54 | M101: 20251537.53 | N101: 22333802.39 | O101: 20332786.93 | P101: 20991875.75 | Q101: =SUM(E101:P101) -> 254949431.6
B102: Total kWhs | E102: =SUM(E99:E101) -> 28245258.8 | F102: =SUM(F99:F101) -> 26107661.1 | G102: 28499931.22 | H102: 26897019.92 | I102: 27431457.85 | J102: 25765567.6 | K102: 27505023 | L102: 28587605.54 | M102: 26251549.53 | N102: 28333814.39 | O102: 26332798.93 | P102: 26991887.75 | Q102: 326949575.6
B103: Primary Voltage KVA | E103: =E54-E49+E81+E82 -> 59577.515 | F103: 59773.817 | G103: 59112.929 | H103: 58101.375 | I103: 59789.284 | J103: 60392.126 | K103: 59016.353 | L103: 60922.5 | M103: 60755.59 | N103: 58267.615 | O103: 57450.327 | P103: 58187.044 | Q103: =SUM(E103:P103) -> 711346.475
B104: Excess KVA | E104: =E70 -> 27115.734 | F104: =F70 -> 27093.412 | G104: 26560.236 | H104: 25147.266 | I104: 26019.571 | J104: 27751.504 | K104: 25172.911 | L104: 27216.037 | M104: 27653.46 | N104: 25655.082 | O104: 25219.758 | P104: 25533.173 | Q104: =SUM(E104:P104) -> 316138.144

Sheet Weather Adjustment
D1: Annual Total | E1: 2018-01-01 | F1: 2018-02-01 | G1: 2018-03-01 | H1: 2018-04-01 | I1: 2018-05-01 | J1: 2018-06-01 | K1: 2018-07-01 | L1: 2018-08-01 | M1: 2018-09-01 | N1: 2018-10-01 | O1: 2018-11-01 | P1: 2018-12-01
B2: Total Electric Adjustment | D2: =SUM(E2:P2) -> 46958043 | E2: =SUM(E4:E5) -> 33295935 | F2: =SUM(F4:F5) -> -12360606 | G2: -2530789 | H2: -648291 | I2: 17239274 | J2: 15042555 | K2: -34805913 | L2: -14247244 | M2: 12188513 | N2: 2434903 | O2: 4500248 | P2: 26849458
B4: WA subtotal | D4: =SUM(E4:P4) -> 29571094 | E4: =SUM(E7:E9) -> 21893795 | F4: =SUM(F7:F9) -> -8109342 | G4: -1665045 | H4: -440124 | I4: 10908455 | J4: 10161823 | K4: -23915126 | L4: -9790240 | M4: 8344723 | N4: 1613050 | O4: 2940746 | P4: 17628379
B5: ID subtotal | D5: =SUM(E5:P5) -> 17386949 | E5: =SUM(E11:E13) -> 11402140 | F5: =SUM(F11:F13) -> -4251264 | G5: -865744 | H5: -208167 | I5: 6330819 | J5: 4880732 | K5: -10890787 | L5: -4457004 | M5: 3843790 | N5: 821853 | O5: 1559502 | P5: 9221079
B7: WA Sch 1 | D7: =SUM(E7:P7) -> 29585305 | E7: 18971503 | F7: -7032417 | G7: -1444882 | H7: -357275 | I7: 11243016 | J7: 8391924 | K7: -18566532 | L7: -7591998 | M7: 6498512 | N7: 1439157 | O7: 2721258 | P7: 15313039
B8: WA Sch 11 | D8: =SUM(E8:P8) -> 1578297 | E8: 1930773 | F8: -710823 | G8: -145200 | H8: -42341 | I8: 444874 | J8: 944145 | K8: -2529540 | L8: -1038088 | M8: 865276 | N8: 123714 | O8: 198669 | P8: 1536838
B9: WA Sch 21 | D9: =SUM(E9:P9) -> -1592508 | E9: 991519 | F9: -366102 | G9: -74963 | H9: -40508 | I9: -779435 | J9: 825754 | K9: -2819054 | L9: -1160154 | M9: 980935 | N9: 50179 | O9: 20819 | P9: 778502
B11: ID Sch 1 | D11: =SUM(E11:P11) -> 16755498 | E11: 9268696 | F11: -3450152 | G11: -703489 | H11: -155370 | I11: 6390820 | J11: 3747841 | K11: -7549185 | L11: -3091284 | M11: 2671464 | N11: 705338 | O11: 1399364 | P11: 7521455
B12: ID Sch 11 | D12: =SUM(E12:P12) -> 875278 | E12: 1291253 | F12: -483255 | G12: -98557 | H12: -30755 | I12: 225550 | J12: 677027 | K12: -1860138 | L12: -759631 | M12: 654036 | N12: 82564 | O12: 130615 | P12: 1046569
B13: ID Sch 21 | D13: =SUM(E13:P13) -> -243827 | E13: 842191 | F13: -317857 | G13: -63698 | H13: -22042 | I13: -285551 | J13: 455864 | K13: -1481464 | L13: -606089 | M13: 518290 | N13: 33951 | O13: 29523 | P13: 653055
D17: Annual Total | E17: =E1 -> 2018-01-01 | F17: 2018-02-01 | G17: 2018-03-01 | H17: 2018-04-01 | I17: 2018-05-01 | J17: 2018-06-01 | K17: 2018-07-01 | L17: 2018-08-01 | M17: 2018-09-01 | N17: 2018-10-01 | O17: 2018-11-01 | P17: 2018-12-01
B18: Total Gas Adjustment | D18: =D20+D21 -> 12979725 | E18: 4671986 | F18: -1741569 | G18: -356959 | H18: -26245 | I18: 4701411 | J18: 867815 | K18: 0 | L18: 0 | M18: 0 | N18: 321469 | O18: 743204 | P18: 3798613
B20: WA subtotal | D20: =SUM(E20:P20) -> 9164130 | E20: =SUM(E23:E25) -> 3291011 | F20: =SUM(F23:F25) -> -1225565 | G20: -251734 | H20: -18594 | I20: 3330064 | J20: 614708 | K20: 0 | L20: 0 | M20: 0 | N20: 228347 | O20: 526005 | P20: 2669888
B21: ID subtotal | D21: 3815595 | E21: =SUM(E27:E28) -> 1380975 | F21: =SUM(F27:F28) -> -516004 | G21: -105225 | H21: -7651 | I21: 1371347 | J21: 253107 | K21: 0 | L21: 0 | M21: 0 | N21: 93122 | O21: 217199 | P21: 1128725
B23: WA 101 | D23: =SUM(E23:P23) -> 6856979 | E23: 2469710 | F23: -917801 | G23: -187839 | H23: -13799 | I23: 2477504 | J23: 456349 | K23: 0 | L23: 0 | M23: 0 | N23: 169485 | O23: 392134 | P23: 2011236
B24: WA 111 | D24: 2239073 | E24: 792369 | F24: -296989 | G24: -61700 | H24: -4598 | I24: 817214 | J24: 151843 | K24: 0 | L24: 0 | M24: 0 | N24: 56255 | O24: 128342 | P24: 656337
B25: WA 121 | D25: 68078 | E25: 28932 | F25: -10775 | G25: -2195 | H25: -197 | I25: 35346 | J25: 6516 | K25: 0 | L25: 0 | M25: 0 | N25: 2607 | O25: 5529 | P25: 2315
B27: ID 101 | D27: =SUM(E27:P27) -> 3169293 | E27: 1133807 | F27: -422651 | G27: -86115 | H27: -6436 | I27: 1152162 | J27: 212695 | K27: 0 | L27: 0 | M27: 0 | N27: 78331 | O27: 183024 | P27: 924476
B28: ID 111 | D28: 646302 | E28: 247168 | F28: -93353 | G28: -19110 | H28: -1215 | I28: 219185 | J28: 40412 | K28: 0 | L28: 0 | M28: 0 | N28: 14791 | O28: 34175 | P28: 204249
B31: Adjustment to Normal | E31: =E1 -> 2018-01-01 | F31: =F1 -> 2018-02-01 | G31: 2018-03-01 | H31: 2018-04-01 | I31: 2018-05-01 | J31: 2018-06-01 | K31: 2018-07-01 | L31: 2018-08-01 | M31: 2018-09-01 | N31: 2018-10-01 | O31: 2018-11-01 | P31: 2018-12-01 | Q31: Total
B32: Medford | C32: Schedule 410 | E32: 520754.0138 | F32: -447274.8665 | G32: -183045.6606 | H32: 116833.164 | I32: 367871.625 | J32: 31851.6133 | K32: 0 | L32: 251.1901 | M32: -11300.38164 | N32: 89748.93312 | O32: 224853.183 | P32: -5939.3385 | Q32: =SUM(E32:P32) -> 704603.475
B33: Roseburg | C33: Schedule 410 | E33: 143910.9283 | F33: -45293.00832 | G33: -58499.81148 | H33: 30235.99152 | I33: 75721.67982 | J33: 13084.47 | K33: 805.35256 | L33: 0 | M33: -2256.94566 | N33: 32570.5296 | O33: 7383.10272 | P33: -5891.19376 | Q33: =SUM(E33:P33) -> 191771.0953
B34: Klammath Falls | C34: Schedule 410 | E34: 210661.7414 | F34: -68991.0793 | G34: -71989.69668 | H34: 37855.07838 | I34: 81140.3604 | J34: 11456.8704 | K34: 421.015 | L34: 52.5384 | M34: -9493.308 | N34: -23208.5304 | O34: 16437.18 | P34: 16003.938 | Q34: 200346.1076
B35: La Grande | C35: Schedule 410 | E35: 96174.44928 | F35: -38867.7927 | G35: -21094.58736 | H35: 8109.13464 | I35: 62263.3158 | J35: 3795.8043 | K35: 439.0258 | L35: -1278.144 | M35: -2809.30032 | N35: -25349.66016 | O35: -37506.4032 | P35: -3403.16268 | Q35: 40472.6794
B36: Total Schedule 410 | E36: =SUM(E32:E35) -> 971501.1327 | F36: -600426.7468 | G36: -334629.7561 | H36: 193033.3685 | I36: 586996.981 | J36: 60188.758 | K36: =SUM(K32:K35) -> 1665.39336 | L36: =SUM(L32:L35) -> -974.4155 | M36: -25859.93562 | N36: 73761.27216 | O36: 211167.0625 | P36: 770.24306 | Q36: =SUM(Q32:Q35) -> 1137193.357
B38: Medford | C38: Schedule 420 | E38: 260593.2681 | F38: -212297.1266 | G38: -87069.10808 | H38: 57931.725 | I38: 184111.5232 | J38: 19541.07948 | K38: 0 | L38: 272.96104 | M38: -8773.69626 | N38: 46159.38096 | O38: 109845.306 | P38: -3017.67619 | Q38: =SUM(E38:P38) -> 367297.6366
B39: Roseburg | C39: Schedule 420 | E39: 90283.64895 | F39: -27441.14176 | G39: -33662.53088 | H39: 18406.03464 | I39: 44252.87262 | J39: 9578.07837 | K39: 857.81668 | L39: 0 | M39: -2080.2921 | N39: 26400.41374 | O39: 4451.7774 | P39: -3863.47732 | Q39: =SUM(E39:P39) -> 127183.2003
B40: Klammath Falls | C40: Schedule 420 | E40: 98517.30084 | F40: -31733.23761 | G40: -31630.26108 | H40: 15665.7333 | I40: 31904.25578 | J40: 7847.5878 | K40: 1495.69 | L40: 1435.2804 | M40: -8817.798 | N40: -9908.67735 | O40: 7248.9256 | P40: 7018.263 | Q40: 89043.06268
B41: La Grande | C41: Schedule 420 | E41: 55628.352 | F41: -22299.123 | G41: -11737.1208 | H41: 3869.83548 | I41: 27180.8802 | J41: 1662.366 | K41: 342.1327 | L41: -1979.694 | M41: -3263.13504 | N41: -12250.78072 | O41: -19916.8732 | P41: -1967.8086 | Q41: 15269.03102
B42: Total Schedule 420 | E42: =SUM(E38:E41) -> 505022.5699 | F42: -293770.629 | G42: -164099.0208 | H42: 95873.32842 | I42: 287449.5318 | J42: 38629.11165 | K42: =SUM(K38:K41) -> 2695.63938 | L42: =SUM(L38:L41) -> -271.45256 | M42: -22934.9214 | N42: 50400.33663 | O42: 101629.1358 | P42: -1830.69911 | Q42: =SUM(Q38:Q41) -> 598792.9307
B44: Medford | C44: Schedule 424 | E44: 1722.30996 | F44: -719.565 | G44: -510.10744 | H44: 723.965 | I44: 3069.055 | J44: 681.36055 | K44: 0 | L44: 0 | M44: -802.59228 | N44: 806.31364 | O44: 1072.97212 | P44: -34.88848 | Q44: =SUM(E44:P44) -> 6008.82307
B45: Roseburg | C45: Schedule 424 | E45: 3206.26944 | F45: -944.12608 | G45: -2039.37888 | H45: 1684.8384 | I45: 6044.70744 | J45: 1842.85584 | K45: 801.41108 | L45: 0 | M45: -2169.67878 | N45: 6686.974 | O45: 248.07041 | P45: -94.51712 | Q45: =SUM(E45:P45) -> 15267.42575
B46: Klammath Falls | C46: Schedule 424 | E46: 948.80496 | F46: -304.82615 | G46: -402.80922 | H46: 318.9795 | I46: 629.88128 | J46: 450.31572 | K46: 158.69632 | L46: 129.22125 | M46: -1044.098605 | N46: -245.28042 | O46: 79.7912 | P46: 136.9095 | Q46: 855.585335
B47: La Grande | C47: Schedule 424 | E47: 0 | F47: 0 | G47: -10.78516 | H47: 56.493 | I47: 636.9675 | J47: 630.9846 | K47: 76.2568 | L47: -2167.76868 | M47: -5353.82088 | N47: -1142.18648 | O47: -35.77 | P47: -0.85116 | Q47: -7310.48046
B48: Total Schedule 424 | E48: =SUM(E44:E47) -> 5877.38436 | F48: -1968.51723 | G48: -2963.0807 | H48: 2784.2759 | I48: 10380.61122 | J48: 3605.51671 | K48: =SUM(K44:K47) -> 1036.3642 | L48: =SUM(L44:L47) -> -2038.54743 | M48: -9370.190545 | N48: 6105.82074 | O48: 1365.06373 | P48: 6.65274 | Q48: 14821.35369
B50: Total Oregon Usage Adjustment | E50: =E36+E42+E48 -> 1482401.087 | F50: =F36+F42+F48 -> -896165.893 | G50: -501691.8577 | H50: 291690.9729 | I50: 884827.124 | J50: 102423.3864 | K50: 5397.39694 | L50: -3284.41549 | M50: -58165.04756 | N50: 130267.4295 | O50: 314161.262 | P50: -1053.80331 | Q50: =SUM(E50:P50) -> 1750807.642
